Workbook

Sheet Anexo Cuantitativo
C4: ANEXO 3 AVANCE CUANTITATIVO
C5: NOMBRE DE LA SECRETARIA: | G5: OPD
C6: NOMBRE DE LA DIRECCIÓN O JEFATURA: | G6: IMMUJERES
C7: TRIMESTRE REPORTADO: | G7: Del 1 de Abril al 30 de Junio del 2025 | I7: Fecha de Elaboración: | J7: =TODAY() -> 2025-07-16
C8: Registro de avances de PbR 2025
D11: NOMBRE DE LA PROPUESTA | E11: DIMENSIÓN A MEDIR (Eficiencia/Eficacia/ Economía/Calidad) | F11: Nombre Indicador (Indicador Operativo) | G11: UNIDAD DE MEDIDA | H11: LÍNEA BASE | I11: META ANUAL (ABSOLUTA) | J11: AVANCE 1 | K11: AVANCE 2 | L11: AVANCE 3 | M11: AVANCE 4 | N11: AVANCE ACUMULADO EN PORCENTAJE
J12: Primer Trimestre (octubre-diciembre 2024) | K12: Segundo Trimestre (enero-marzo 2025) | L12: Tercer Trimestre (abril-junio 2025) | M12: Cuarto Trimestre (julio-septiembre 2025)
C13: 1 | D13: =IFERROR(VLOOKUP($G$5&$G$6&C13,'Pbr''s'!B:X,5,0)," ") -> Enfoque Transversal con Perspectiva de Género | E13: =IFERROR(VLOOKUP($G$5&$G$6&C13&D13,'Pbr''s'!A:X,15,0)," ") -> Eficacia | F13: =IFERROR(VLOOKUP($G$5&$G$6&C13&D13,'Pbr''s'!A:X,7,0)," ") -> Porcentaje de acciones con perspectiva de Género reportadas. | G13: =IFERROR(VLOOKUP($G$5&$G$6&C13&D13,'Pbr''s'!A:X,8,0)," ") -> Número de Acciones reportadas | H13: =IFERROR(VLOOKUP($G$5&$G$6&C13&D13,'Pbr''s'!A:X,9,0)," ") -> 30 | I13: =IFERROR(VLOOKUP($G$5&$G$6&C13&D13,'Pbr''s'!A:X,10,0)," ") -> 30 | J13: 9 | K13: 10 | L13: 22 | N13: =IFERROR(SUM(J13:M13)/I13," ") -> 1.366666667
C14: =C13+1 -> 2 | D14: =IFERROR(VLOOKUP($G$5&$G$6&C14,'Pbr''s'!B:X,5,0)," ") -> Enfoque Transversal con Perspectiva de Género | E14: =IFERROR(VLOOKUP($G$5&$G$6&C14&D14,'Pbr''s'!A:X,15,0)," ") -> Eficacia | F14: =IFERROR(VLOOKUP($G$5&$G$6&C14&D14,'Pbr''s'!A:X,7,0)," ") -> Porcentaje de Instrumentos normativos y programaticos observados para incorporar la Perspectiva de Género. | G14: =IFERROR(VLOOKUP($G$5&$G$6&C14&D14,'Pbr''s'!A:X,8,0)," ") -> Número de Instrumentos incorporados | H14: =IFERROR(VLOOKUP($G$5&$G$6&C14&D14,'Pbr''s'!A:X,9,0)," ") -> 1 | I14: =IFERROR(VLOOKUP($G$5&$G$6&C14&D14,'Pbr''s'!A:X,10,0)," ") -> 3 | J14: =IFERROR(VLOOKUP($G$5&$G$6&C14&D14,'Pbr''s'!A:X,16,0)," ") -> 1 | K14: 0 | L14: 0 | N14: =IFERROR(SUM(J14:M14)/I14," ") -> 0.3333333333
C15: =C14+1 -> 3 | D15: =IFERROR(VLOOKUP($G$5&$G$6&C15,'Pbr''s'!B:X,5,0)," ") -> Enfoque Transversal con Perspectiva de Género | E15: =IFERROR(VLOOKUP($G$5&$G$6&C15&D15,'Pbr''s'!A:X,15,0)," ") -> Eficacia | F15: =IFERROR(VLOOKUP($G$5&$G$6&C15&D15,'Pbr''s'!A:X,7,0)," ") -> Porcentaje de mujeres beneficiadas por incorporación de perspectiva de Género a los Anexos de planeación. | G15: =IFERROR(VLOOKUP($G$5&$G$6&C15&D15,'Pbr''s'!A:X,8,0)," ") -> Número de mujeres beneficiadas | H15: =IFERROR(VLOOKUP($G$5&$G$6&C15&D15,'Pbr''s'!A:X,9,0)," ") -> 1500 | I15: =IFERROR(VLOOKUP($G$5&$G$6&C15&D15,'Pbr''s'!A:X,10,0)," ") -> 2000 | J15: 128 | K15: 1337 | L15: 713 | N15: 1.089
C16: 4 | D16: =IFERROR(VLOOKUP($G$5&$G$6&C16,'Pbr''s'!B:X,5,0)," ") -> Libres por la igualdad | E16: =IFERROR(VLOOKUP($G$5&$G$6&C16&D16,'Pbr''s'!A:X,15,0)," ") -> Eficacia | F16: =IFERROR(VLOOKUP($G$5&$G$6&C16&D16,'Pbr''s'!A:X,7,0)," ") -> Porcentaje de personas beneficiadas por las acciones de promoción | G16: =IFERROR(VLOOKUP($G$5&$G$6&C16&D16,'Pbr''s'!A:X,8,0)," ") -> Número de personas beneficiadas | H16: =IFERROR(VLOOKUP($G$5&$G$6&C16&D16,'Pbr''s'!A:X,9,0)," ") -> 1500 | I16: =IFERROR(VLOOKUP($G$5&$G$6&C16&D16,'Pbr''s'!A:X,10,0)," ") -> 2000 | J16: 200 | K16: 1097 | L16: 1041 | N16: 1.169
C17: 5 | D17: =IFERROR(VLOOKUP($G$5&$G$6&C17,'Pbr''s'!B:X,5,0)," ") -> Libres por la igualdad | E17: =IFERROR(VLOOKUP($G$5&$G$6&C17&D17,'Pbr''s'!A:X,15,0)," ") -> Eficacia | F17: =IFERROR(VLOOKUP($G$5&$G$6&C17&D17,'Pbr''s'!A:X,7,0)," ") -> Porcentaje de Eventos conmemorativos para promover y reconocer los derechos de las mujeres en su diversidad, realizados | G17: =IFERROR(VLOOKUP($G$5&$G$6&C17&D17,'Pbr''s'!A:X,8,0)," ") -> Número de Eventos realizados | H17: =IFERROR(VLOOKUP($G$5&$G$6&C17&D17,'Pbr''s'!A:X,9,0)," ") -> 1 | I17: =IFERROR(VLOOKUP($G$5&$G$6&C17&D17,'Pbr''s'!A:X,10,0)," ") -> 1 | J17: 0 | K17: 1 | L17: 0 | N17: 1
C18: 6 | D18: =IFERROR(VLOOKUP($G$5&$G$6&C18,'Pbr''s'!B:X,5,0)," ") -> Vivir sin violencia | E18: =IFERROR(VLOOKUP($G$5&$G$6&C18&D18,'Pbr''s'!A:X,15,0)," ") -> 0 | F18: =IFERROR(VLOOKUP($G$5&$G$6&C18&D18,'Pbr''s'!A:X,7,0)," ") -> Porcentaje de atenciones de primer contacto, realizadas | G18: =IFERROR(VLOOKUP($G$5&$G$6&C18&D18,'Pbr''s'!A:X,8,0)," ") -> Número de atenciones realizadas | H18: =IFERROR(VLOOKUP($G$5&$G$6&C18&D18,'Pbr''s'!A:X,9,0)," ") -> 425 | I18: =IFERROR(VLOOKUP($G$5&$G$6&C18&D18,'Pbr''s'!A:X,10,0)," ") -> 430 | J18: 159 | K18: 98 | L18: 108 | N18: 0.8488372093
C19: =C18+1 -> 7 | D19: =IFERROR(VLOOKUP($G$5&$G$6&C19,'Pbr''s'!B:X,5,0)," ") -> Vivir sin violencia | E19: =IFERROR(VLOOKUP($G$5&$G$6&C19&D19,'Pbr''s'!A:X,15,0)," ") -> Eficacia | F19: =IFERROR(VLOOKUP($G$5&$G$6&C19&D19,'Pbr''s'!A:X,7,0)," ") -> Porcentaje de acciones de prevención de la violencia de género en la comunidad, realizadas | G19: =IFERROR(VLOOKUP($G$5&$G$6&C19&D19,'Pbr''s'!A:X,8,0)," ") -> Número de acciones realizadas | H19: =IFERROR(VLOOKUP($G$5&$G$6&C19&D19,'Pbr''s'!A:X,9,0)," ") -> 30 | I19: =IFERROR(VLOOKUP($G$5&$G$6&C19&D19,'Pbr''s'!A:X,10,0)," ") -> 40 | J19: =IFERROR(VLOOKUP($G$5&$G$6&C19&D19,'Pbr''s'!A:X,16,0)," ") -> 10 | K19: 6 | L19: 12 | N19: =IFERROR(SUM(J19:M19)/I19," ") -> 0.7
C20: 8 | D20: =IFERROR(VLOOKUP($G$5&$G$6&C20,'Pbr''s'!B:X,5,0)," ") -> Vivir sin violencia | E20: =IFERROR(VLOOKUP($G$5&$G$6&C20&D20,'Pbr''s'!A:X,15,0)," ") -> Eficacia | F20: =IFERROR(VLOOKUP($G$5&$G$6&C20&D20,'Pbr''s'!A:X,7,0)," ") -> Porcentaje de personas beneficiadas con las acciones de prevención, atención y profesionalización en materia de violencia contra las mujeres. | G20: =IFERROR(VLOOKUP($G$5&$G$6&C20&D20,'Pbr''s'!A:X,8,0)," ") -> Número de personas beneficiarias | H20: =IFERROR(VLOOKUP($G$5&$G$6&C20&D20,'Pbr''s'!A:X,9,0)," ") -> 1500 | I20: =IFERROR(VLOOKUP($G$5&$G$6&C20&D20,'Pbr''s'!A:X,10,0)," ") -> 1500 | J20: 457 | K20: 358 | L20: 293 | N20: 0.7386666667
C21: 9 | D21: =IFERROR(VLOOKUP($G$5&$G$6&C21,'Pbr''s'!B:X,5,0)," ") -> Vivir sin violencia | E21: =IFERROR(VLOOKUP($G$5&$G$6&C21&D21,'Pbr''s'!A:X,15,0)," ") -> Eficacia | F21: =IFERROR(VLOOKUP($G$5&$G$6&C21&D21,'Pbr''s'!A:X,7,0)," ") -> Porcentaje de eventos conmemorativos de fechas o acciones contra la violencia de género, realizados | G21: =IFERROR(VLOOKUP($G$5&$G$6&C21&D21,'Pbr''s'!A:X,8,0)," ") -> Número de eventos realizados | H21: =IFERROR(VLOOKUP($G$5&$G$6&C21&D21,'Pbr''s'!A:X,9,0)," ") -> 1 | I21: =IFERROR(VLOOKUP($G$5&$G$6&C21&D21,'Pbr''s'!A:X,10,0)," ") -> 1 | J21: =IFERROR(VLOOKUP($G$5&$G$6&C21&D21,'Pbr''s'!A:X,16,0)," ") -> 1 | K21: 0 | L21: 0 | N21: 1
C22: 10 | D22: =IFERROR(VLOOKUP($G$5&$G$6&C22,'Pbr''s'!B:X,5,0)," ") ->  | E22: =IFERROR(VLOOKUP($G$5&$G$6&C22&D22,'Pbr''s'!A:X,15,0)," ") ->  | F22: =IFERROR(VLOOKUP($G$5&$G$6&C22&D22,'Pbr''s'!A:X,7,0)," ") ->  | G22: =IFERROR(VLOOKUP($G$5&$G$6&C22&D22,'Pbr''s'!A:X,8,0)," ") ->  | H22: =IFERROR(VLOOKUP($G$5&$G$6&C22&D22,'Pbr''s'!A:X,9,0)," ") ->  | I22: =IFERROR(VLOOKUP($G$5&$G$6&C22&D22,'Pbr''s'!A:X,10,0)," ") ->  | J22: =IFERROR(VLOOKUP($G$5&$G$6&C22&D22,'Pbr''s'!A:X,16,0)," ") -> 
C23: 11 | D23: =IFERROR(VLOOKUP($G$5&$G$6&C23,'Pbr''s'!B:X,5,0)," ") ->  | E23: =IFERROR(VLOOKUP($G$5&$G$6&C23&D23,'Pbr''s'!A:X,15,0)," ") ->  | F23: =IFERROR(VLOOKUP($G$5&$G$6&C23&D23,'Pbr''s'!A:X,7,0)," ") ->  | G23: =IFERROR(VLOOKUP($G$5&$G$6&C23&D23,'Pbr''s'!A:X,8,0)," ") ->  | H23: =IFERROR(VLOOKUP($G$5&$G$6&C23&D23,'Pbr''s'!A:X,9,0)," ") ->  | I23: =IFERROR(VLOOKUP($G$5&$G$6&C23&D23,'Pbr''s'!A:X,10,0)," ") ->  | J23: =IFERROR(VLOOKUP($G$5&$G$6&C23&D23,'Pbr''s'!A:X,16,0)," ") -> 
C24: 12 | D24: =IFERROR(VLOOKUP($G$5&$G$6&C24,'Pbr''s'!B:X,5,0)," ") ->  | E24: =IFERROR(VLOOKUP($G$5&$G$6&C24&D24,'Pbr''s'!A:X,15,0)," ") ->  | F24: =IFERROR(VLOOKUP($G$5&$G$6&C24&D24,'Pbr''s'!A:X,7,0)," ") ->  | G24: =IFERROR(VLOOKUP($G$5&$G$6&C24&D24,'Pbr''s'!A:X,8,0)," ") ->  | H24: =IFERROR(VLOOKUP($G$5&$G$6&C24&D24,'Pbr''s'!A:X,9,0)," ") ->  | I24: =IFERROR(VLOOKUP($G$5&$G$6&C24&D24,'Pbr''s'!A:X,10,0)," ") ->  | J24: =IFERROR(VLOOKUP($G$5&$G$6&C24&D24,'Pbr''s'!A:X,16,0)," ") -> 
C25: 13 | D25: =IFERROR(VLOOKUP($G$5&$G$6&C25,'Pbr''s'!B:X,5,0)," ") ->  | E25: =IFERROR(VLOOKUP($G$5&$G$6&C25&D25,'Pbr''s'!A:X,15,0)," ") ->  | F25: =IFERROR(VLOOKUP($G$5&$G$6&C25&D25,'Pbr''s'!A:X,7,0)," ") ->  | G25: =IFERROR(VLOOKUP($G$5&$G$6&C25&D25,'Pbr''s'!A:X,8,0)," ") ->  | H25: =IFERROR(VLOOKUP($G$5&$G$6&C25&D25,'Pbr''s'!A:X,9,0)," ") ->  | I25: =IFERROR(VLOOKUP($G$5&$G$6&C25&D25,'Pbr''s'!A:X,10,0)," ") ->  | J25: =IFERROR(VLOOKUP($G$5&$G$6&C25&D25,'Pbr''s'!A:X,16,0)," ") -> 
C26: 14 | D26: =IFERROR(VLOOKUP($G$5&$G$6&C26,'Pbr''s'!B:X,5,0)," ") ->  | E26: =IFERROR(VLOOKUP($G$5&$G$6&C26&D26,'Pbr''s'!A:X,15,0)," ") ->  | F26: =IFERROR(VLOOKUP($G$5&$G$6&C26&D26,'Pbr''s'!A:X,7,0)," ") ->  | G26: =IFERROR(VLOOKUP($G$5&$G$6&C26&D26,'Pbr''s'!A:X,8,0)," ") ->  | H26: =IFERROR(VLOOKUP($G$5&$G$6&C26&D26,'Pbr''s'!A:X,9,0)," ") ->  | I26: =IFERROR(VLOOKUP($G$5&$G$6&C26&D26,'Pbr''s'!A:X,10,0)," ") ->  | J26: =IFERROR(VLOOKUP($G$5&$G$6&C26&D26,'Pbr''s'!A:X,16,0)," ") -> 
C27: 15 | D27: =IFERROR(VLOOKUP($G$5&$G$6&C27,'Pbr''s'!B:X,5,0)," ") ->  | E27: =IFERROR(VLOOKUP($G$5&$G$6&C27&D27,'Pbr''s'!A:X,15,0)," ") ->  | F27: =IFERROR(VLOOKUP($G$5&$G$6&C27&D27,'Pbr''s'!A:X,7,0)," ") ->  | G27: =IFERROR(VLOOKUP($G$5&$G$6&C27&D27,'Pbr''s'!A:X,8,0)," ") ->  | H27: =IFERROR(VLOOKUP($G$5&$G$6&C27&D27,'Pbr''s'!A:X,9,0)," ") ->  | I27: =IFERROR(VLOOKUP($G$5&$G$6&C27&D27,'Pbr''s'!A:X,10,0)," ") ->  | J27: =IFERROR(VLOOKUP($G$5&$G$6&C27&D27,'Pbr''s'!A:X,16,0)," ") -> 
C28: 16 | D28: =IFERROR(VLOOKUP($G$5&$G$6&C28,'Pbr''s'!B:X,5,0)," ") ->  | E28: =IFERROR(VLOOKUP($G$5&$G$6&C28&D28,'Pbr''s'!A:X,15,0)," ") ->  | F28: =IFERROR(VLOOKUP($G$5&$G$6&C28&D28,'Pbr''s'!A:X,7,0)," ") ->  | G28: =IFERROR(VLOOKUP($G$5&$G$6&C28&D28,'Pbr''s'!A:X,8,0)," ") ->  | H28: =IFERROR(VLOOKUP($G$5&$G$6&C28&D28,'Pbr''s'!A:X,9,0)," ") ->  | I28: =IFERROR(VLOOKUP($G$5&$G$6&C28&D28,'Pbr''s'!A:X,10,0)," ") ->  | J28: =IFERROR(VLOOKUP($G$5&$G$6&C28&D28,'Pbr''s'!A:X,16,0)," ") -> 
C29: 17 | D29: =IFERROR(VLOOKUP($G$5&$G$6&C29,'Pbr''s'!B:X,5,0)," ") ->  | E29: =IFERROR(VLOOKUP($G$5&$G$6&C29&D29,'Pbr''s'!A:X,15,0)," ") ->  | F29: =IFERROR(VLOOKUP($G$5&$G$6&C29&D29,'Pbr''s'!A:X,7,0)," ") ->  | G29: =IFERROR(VLOOKUP($G$5&$G$6&C29&D29,'Pbr''s'!A:X,8,0)," ") ->  | H29: =IFERROR(VLOOKUP($G$5&$G$6&C29&D29,'Pbr''s'!A:X,9,0)," ") ->  | I29: =IFERROR(VLOOKUP($G$5&$G$6&C29&D29,'Pbr''s'!A:X,10,0)," ") ->  | J29: =IFERROR(VLOOKUP($G$5&$G$6&C29&D29,'Pbr''s'!A:X,16,0)," ") -> 
C30: 18 | D30: =IFERROR(VLOOKUP($G$5&$G$6&C30,'Pbr''s'!B:X,5,0)," ") ->  | E30: =IFERROR(VLOOKUP($G$5&$G$6&C30&D30,'Pbr''s'!A:X,15,0)," ") ->  | F30: =IFERROR(VLOOKUP($G$5&$G$6&C30&D30,'Pbr''s'!A:X,7,0)," ") ->  | G30: =IFERROR(VLOOKUP($G$5&$G$6&C30&D30,'Pbr''s'!A:X,8,0)," ") ->  | H30: =IFERROR(VLOOKUP($G$5&$G$6&C30&D30,'Pbr''s'!A:X,9,0)," ") ->  | I30: =IFERROR(VLOOKUP($G$5&$G$6&C30&D30,'Pbr''s'!A:X,10,0)," ") ->  | J30: =IFERROR(VLOOKUP($G$5&$G$6&C30&D30,'Pbr''s'!A:X,16,0)," ") -> 
C31: 19 | D31: =IFERROR(VLOOKUP($G$5&$G$6&C31,'Pbr''s'!B:X,5,0)," ") ->  | E31: =IFERROR(VLOOKUP($G$5&$G$6&C31&D31,'Pbr''s'!A:X,15,0)," ") ->  | F31: =IFERROR(VLOOKUP($G$5&$G$6&C31&D31,'Pbr''s'!A:X,7,0)," ") ->  | G31: =IFERROR(VLOOKUP($G$5&$G$6&C31&D31,'Pbr''s'!A:X,8,0)," ") ->  | H31: =IFERROR(VLOOKUP($G$5&$G$6&C31&D31,'Pbr''s'!A:X,9,0)," ") ->  | I31: =IFERROR(VLOOKUP($G$5&$G$6&C31&D31,'Pbr''s'!A:X,10,0)," ") ->  | J31: =IFERROR(VLOOKUP($G$5&$G$6&C31&D31,'Pbr''s'!A:X,16,0)," ") -> 
C32: 20 | D32: =IFERROR(VLOOKUP($G$5&$G$6&C32,'Pbr''s'!B:X,5,0)," ") ->  | E32: =IFERROR(VLOOKUP($G$5&$G$6&C32&D32,'Pbr''s'!A:X,15,0)," ") ->  | F32: =IFERROR(VLOOKUP($G$5&$G$6&C32&D32,'Pbr''s'!A:X,7,0)," ") ->  | G32: =IFERROR(VLOOKUP($G$5&$G$6&C32&D32,'Pbr''s'!A:X,8,0)," ") ->  | H32: =IFERROR(VLOOKUP($G$5&$G$6&C32&D32,'Pbr''s'!A:X,9,0)," ") ->  | I32: =IFERROR(VLOOKUP($G$5&$G$6&C32&D32,'Pbr''s'!A:X,10,0)," ") ->  | J32: =IFERROR(VLOOKUP($G$5&$G$6&C32&D32,'Pbr''s'!A:X,16,0)," ") -> 
C33: 21 | D33: =IFERROR(VLOOKUP($G$5&$G$6&C33,'Pbr''s'!B:X,5,0)," ") ->  | E33: =IFERROR(VLOOKUP($G$5&$G$6&C33&D33,'Pbr''s'!A:X,15,0)," ") ->  | F33: =IFERROR(VLOOKUP($G$5&$G$6&C33&D33,'Pbr''s'!A:X,7,0)," ") ->  | G33: =IFERROR(VLOOKUP($G$5&$G$6&C33&D33,'Pbr''s'!A:X,8,0)," ") ->  | H33: =IFERROR(VLOOKUP($G$5&$G$6&C33&D33,'Pbr''s'!A:X,9,0)," ") ->  | I33: =IFERROR(VLOOKUP($G$5&$G$6&C33&D33,'Pbr''s'!A:X,10,0)," ") ->  | J33: =IFERROR(VLOOKUP($G$5&$G$6&C33&D33,'Pbr''s'!A:X,16,0)," ") -> 
C34: 22 | D34: =IFERROR(VLOOKUP($G$5&$G$6&C34,'Pbr''s'!B:X,5,0)," ") ->  | E34: =IFERROR(VLOOKUP($G$5&$G$6&C34&D34,'Pbr''s'!A:X,15,0)," ") ->  | F34: =IFERROR(VLOOKUP($G$5&$G$6&C34&D34,'Pbr''s'!A:X,7,0)," ") ->  | G34: =IFERROR(VLOOKUP($G$5&$G$6&C34&D34,'Pbr''s'!A:X,8,0)," ") ->  | H34: =IFERROR(VLOOKUP($G$5&$G$6&C34&D34,'Pbr''s'!A:X,9,0)," ") ->  | I34: =IFERROR(VLOOKUP($G$5&$G$6&C34&D34,'Pbr''s'!A:X,10,0)," ") ->  | J34: =IFERROR(VLOOKUP($G$5&$G$6&C34&D34,'Pbr''s'!A:X,16,0)," ") -> 
C35: 23 | D35: =IFERROR(VLOOKUP($G$5&$G$6&C35,'Pbr''s'!B:X,5,0)," ") ->  | E35: =IFERROR(VLOOKUP($G$5&$G$6&C35&D35,'Pbr''s'!A:X,15,0)," ") ->  | F35: =IFERROR(VLOOKUP($G$5&$G$6&C35&D35,'Pbr''s'!A:X,7,0)," ") ->  | G35: =IFERROR(VLOOKUP($G$5&$G$6&C35&D35,'Pbr''s'!A:X,8,0)," ") ->  | H35: =IFERROR(VLOOKUP($G$5&$G$6&C35&D35,'Pbr''s'!A:X,9,0)," ") ->  | I35: =IFERROR(VLOOKUP($G$5&$G$6&C35&D35,'Pbr''s'!A:X,10,0)," ") ->  | J35: =IFERROR(VLOOKUP($G$5&$G$6&C35&D35,'Pbr''s'!A:X,16,0)," ") -> 
C36: 24 | D36: =IFERROR(VLOOKUP($G$5&$G$6&C36,'Pbr''s'!B:X,5,0)," ") ->  | E36: =IFERROR(VLOOKUP($G$5&$G$6&C36&D36,'Pbr''s'!A:X,15,0)," ") ->  | F36: =IFERROR(VLOOKUP($G$5&$G$6&C36&D36,'Pbr''s'!A:X,7,0)," ") ->  | G36: =IFERROR(VLOOKUP($G$5&$G$6&C36&D36,'Pbr''s'!A:X,8,0)," ") ->  | H36: =IFERROR(VLOOKUP($G$5&$G$6&C36&D36,'Pbr''s'!A:X,9,0)," ") ->  | I36: =IFERROR(VLOOKUP($G$5&$G$6&C36&D36,'Pbr''s'!A:X,10,0)," ") ->  | J36: =IFERROR(VLOOKUP($G$5&$G$6&C36&D36,'Pbr''s'!A:X,16,0)," ") -> 
C37: 25 | D37: =IFERROR(VLOOKUP($G$5&$G$6&C37,'Pbr''s'!B:X,5,0)," ") ->  | E37: =IFERROR(VLOOKUP($G$5&$G$6&C37&D37,'Pbr''s'!A:X,15,0)," ") ->  | F37: =IFERROR(VLOOKUP($G$5&$G$6&C37&D37,'Pbr''s'!A:X,7,0)," ") ->  | G37: =IFERROR(VLOOKUP($G$5&$G$6&C37&D37,'Pbr''s'!A:X,8,0)," ") ->  | H37: =IFERROR(VLOOKUP($G$5&$G$6&C37&D37,'Pbr''s'!A:X,9,0)," ") ->  | I37: =IFERROR(VLOOKUP($G$5&$G$6&C37&D37,'Pbr''s'!A:X,10,0)," ") ->  | J37: =IFERROR(VLOOKUP($G$5&$G$6&C37&D37,'Pbr''s'!A:X,16,0)," ") -> 
C38: 26 | D38: =IFERROR(VLOOKUP($G$5&$G$6&C38,'Pbr''s'!B:X,5,0)," ") ->  | E38: =IFERROR(VLOOKUP($G$5&$G$6&C38&D38,'Pbr''s'!A:X,15,0)," ") ->  | F38: =IFERROR(VLOOKUP($G$5&$G$6&C38&D38,'Pbr''s'!A:X,7,0)," ") ->  | G38: =IFERROR(VLOOKUP($G$5&$G$6&C38&D38,'Pbr''s'!A:X,8,0)," ") ->  | H38: =IFERROR(VLOOKUP($G$5&$G$6&C38&D38,'Pbr''s'!A:X,9,0)," ") ->  | I38: =IFERROR(VLOOKUP($G$5&$G$6&C38&D38,'Pbr''s'!A:X,10,0)," ") ->  | J38: =IFERROR(VLOOKUP($G$5&$G$6&C38&D38,'Pbr''s'!A:X,16,0)," ") -> 
C39: 27 | D39: =IFERROR(VLOOKUP($G$5&$G$6&C39,'Pbr''s'!B:X,5,0)," ") ->  | E39: =IFERROR(VLOOKUP($G$5&$G$6&C39&D39,'Pbr''s'!A:X,15,0)," ") ->  | F39: =IFERROR(VLOOKUP($G$5&$G$6&C39&D39,'Pbr''s'!A:X,7,0)," ") ->  | G39: =IFERROR(VLOOKUP($G$5&$G$6&C39&D39,'Pbr''s'!A:X,8,0)," ") ->  | H39: =IFERROR(VLOOKUP($G$5&$G$6&C39&D39,'Pbr''s'!A:X,9,0)," ") ->  | I39: =IFERROR(VLOOKUP($G$5&$G$6&C39&D39,'Pbr''s'!A:X,10,0)," ") ->  | J39: =IFERROR(VLOOKUP($G$5&$G$6&C39&D39,'Pbr''s'!A:X,16,0)," ") -> 
C40: 28 | D40: =IFERROR(VLOOKUP($G$5&$G$6&C40,'Pbr''s'!B:X,5,0)," ") ->  | E40: =IFERROR(VLOOKUP($G$5&$G$6&C40&D40,'Pbr''s'!A:X,15,0)," ") ->  | F40: =IFERROR(VLOOKUP($G$5&$G$6&C40&D40,'Pbr''s'!A:X,7,0)," ") ->  | G40: =IFERROR(VLOOKUP($G$5&$G$6&C40&D40,'Pbr''s'!A:X,8,0)," ") ->  | H40: =IFERROR(VLOOKUP($G$5&$G$6&C40&D40,'Pbr''s'!A:X,9,0)," ") ->  | I40: =IFERROR(VLOOKUP($G$5&$G$6&C40&D40,'Pbr''s'!A:X,10,0)," ") ->  | J40: =IFERROR(VLOOKUP($G$5&$G$6&C40&D40,'Pbr''s'!A:X,16,0)," ") -> 
C41: 29 | D41: =IFERROR(VLOOKUP($G$5&$G$6&C41,'Pbr''s'!B:X,5,0)," ") ->  | E41: =IFERROR(VLOOKUP($G$5&$G$6&C41&D41,'Pbr''s'!A:X,15,0)," ") ->  | F41: =IFERROR(VLOOKUP($G$5&$G$6&C41&D41,'Pbr''s'!A:X,7,0)," ") ->  | G41: =IFERROR(VLOOKUP($G$5&$G$6&C41&D41,'Pbr''s'!A:X,8,0)," ") ->  | H41: =IFERROR(VLOOKUP($G$5&$G$6&C41&D41,'Pbr''s'!A:X,9,0)," ") ->  | I41: =IFERROR(VLOOKUP($G$5&$G$6&C41&D41,'Pbr''s'!A:X,10,0)," ") ->  | J41: =IFERROR(VLOOKUP($G$5&$G$6&C41&D41,'Pbr''s'!A:X,16,0)," ") -> 
C42: 30 | D42: =IFERROR(VLOOKUP($G$5&$G$6&C42,'Pbr''s'!B:X,5,0)," ") ->  | E42: =IFERROR(VLOOKUP($G$5&$G$6&C42&D42,'Pbr''s'!A:X,15,0)," ") ->  | F42: =IFERROR(VLOOKUP($G$5&$G$6&C42&D42,'Pbr''s'!A:X,7,0)," ") ->  | G42: =IFERROR(VLOOKUP($G$5&$G$6&C42&D42,'Pbr''s'!A:X,8,0)," ") ->  | H42: =IFERROR(VLOOKUP($G$5&$G$6&C42&D42,'Pbr''s'!A:X,9,0)," ") ->  | I42: =IFERROR(VLOOKUP($G$5&$G$6&C42&D42,'Pbr''s'!A:X,10,0)," ") ->  | J42: =IFERROR(VLOOKUP($G$5&$G$6&C42&D42,'Pbr''s'!A:X,16,0)," ") -> 
C43: 31 | D43: =IFERROR(VLOOKUP($G$5&$G$6&C43,'Pbr''s'!B:X,5,0)," ") ->  | E43: =IFERROR(VLOOKUP($G$5&$G$6&C43&D43,'Pbr''s'!A:X,15,0)," ") ->  | F43: =IFERROR(VLOOKUP($G$5&$G$6&C43&D43,'Pbr''s'!A:X,7,0)," ") ->  | G43: =IFERROR(VLOOKUP($G$5&$G$6&C43&D43,'Pbr''s'!A:X,8,0)," ") ->  | H43: =IFERROR(VLOOKUP($G$5&$G$6&C43&D43,'Pbr''s'!A:X,9,0)," ") ->  | I43: =IFERROR(VLOOKUP($G$5&$G$6&C43&D43,'Pbr''s'!A:X,10,0)," ") ->  | J43: =IFERROR(VLOOKUP($G$5&$G$6&C43&D43,'Pbr''s'!A:X,16,0)," ") -> 
C44: 32 | D44: =IFERROR(VLOOKUP($G$5&$G$6&C44,'Pbr''s'!B:X,5,0)," ") ->  | E44: =IFERROR(VLOOKUP($G$5&$G$6&C44&D44,'Pbr''s'!A:X,15,0)," ") ->  | F44: =IFERROR(VLOOKUP($G$5&$G$6&C44&D44,'Pbr''s'!A:X,7,0)," ") ->  | G44: =IFERROR(VLOOKUP($G$5&$G$6&C44&D44,'Pbr''s'!A:X,8,0)," ") ->  | H44: =IFERROR(VLOOKUP($G$5&$G$6&C44&D44,'Pbr''s'!A:X,9,0)," ") ->  | I44: =IFERROR(VLOOKUP($G$5&$G$6&C44&D44,'Pbr''s'!A:X,10,0)," ") ->  | J44: =IFERROR(VLOOKUP($G$5&$G$6&C44&D44,'Pbr''s'!A:X,16,0)," ") -> 
C45: 33 | D45: =IFERROR(VLOOKUP($G$5&$G$6&C45,'Pbr''s'!B:X,5,0)," ") ->  | E45: =IFERROR(VLOOKUP($G$5&$G$6&C45&D45,'Pbr''s'!A:X,15,0)," ") ->  | F45: =IFERROR(VLOOKUP($G$5&$G$6&C45&D45,'Pbr''s'!A:X,7,0)," ") ->  | G45: =IFERROR(VLOOKUP($G$5&$G$6&C45&D45,'Pbr''s'!A:X,8,0)," ") ->  | H45: =IFERROR(VLOOKUP($G$5&$G$6&C45&D45,'Pbr''s'!A:X,9,0)," ") ->  | I45: =IFERROR(VLOOKUP($G$5&$G$6&C45&D45,'Pbr''s'!A:X,10,0)," ") ->  | J45: =IFERROR(VLOOKUP($G$5&$G$6&C45&D45,'Pbr''s'!A:X,16,0)," ") -> 
C46: 34 | D46: =IFERROR(VLOOKUP($G$5&$G$6&C46,'Pbr''s'!B:X,5,0)," ") ->  | E46: =IFERROR(VLOOKUP($G$5&$G$6&C46&D46,'Pbr''s'!A:X,15,0)," ") ->  | F46: =IFERROR(VLOOKUP($G$5&$G$6&C46&D46,'Pbr''s'!A:X,7,0)," ") ->  | G46: =IFERROR(VLOOKUP($G$5&$G$6&C46&D46,'Pbr''s'!A:X,8,0)," ") ->  | H46: =IFERROR(VLOOKUP($G$5&$G$6&C46&D46,'Pbr''s'!A:X,9,0)," ") ->  | I46: =IFERROR(VLOOKUP($G$5&$G$6&C46&D46,'Pbr''s'!A:X,10,0)," ") ->  | J46: =IFERROR(VLOOKUP($G$5&$G$6&C46&D46,'Pbr''s'!A:X,16,0)," ") -> 
C47: 35 | D47: =IFERROR(VLOOKUP($G$5&$G$6&C47,'Pbr''s'!B:X,5,0)," ") ->  | E47: =IFERROR(VLOOKUP($G$5&$G$6&C47&D47,'Pbr''s'!A:X,15,0)," ") ->  | F47: =IFERROR(VLOOKUP($G$5&$G$6&C47&D47,'Pbr''s'!A:X,7,0)," ") ->  | G47: =IFERROR(VLOOKUP($G$5&$G$6&C47&D47,'Pbr''s'!A:X,8,0)," ") ->  | H47: =IFERROR(VLOOKUP($G$5&$G$6&C47&D47,'Pbr''s'!A:X,9,0)," ") ->  | I47: =IFERROR(VLOOKUP($G$5&$G$6&C47&D47,'Pbr''s'!A:X,10,0)," ") ->  | J47: =IFERROR(VLOOKUP($G$5&$G$6&C47&D47,'Pbr''s'!A:X,16,0)," ") -> 
C48: 36 | D48: =IFERROR(VLOOKUP($G$5&$G$6&C48,'Pbr''s'!B:X,5,0)," ") ->  | E48: =IFERROR(VLOOKUP($G$5&$G$6&C48&D48,'Pbr''s'!A:X,15,0)," ") ->  | F48: =IFERROR(VLOOKUP($G$5&$G$6&C48&D48,'Pbr''s'!A:X,7,0)," ") ->  | G48: =IFERROR(VLOOKUP($G$5&$G$6&C48&D48,'Pbr''s'!A:X,8,0)," ") ->  | H48: =IFERROR(VLOOKUP($G$5&$G$6&C48&D48,'Pbr''s'!A:X,9,0)," ") ->  | I48: =IFERROR(VLOOKUP($G$5&$G$6&C48&D48,'Pbr''s'!A:X,10,0)," ") ->  | J48: =IFERROR(VLOOKUP($G$5&$G$6&C48&D48,'Pbr''s'!A:X,16,0)," ") -> 
C49: 37 | D49: =IFERROR(VLOOKUP($G$5&$G$6&C49,'Pbr''s'!B:X,5,0)," ") ->  | E49: =IFERROR(VLOOKUP($G$5&$G$6&C49&D49,'Pbr''s'!A:X,15,0)," ") ->  | F49: =IFERROR(VLOOKUP($G$5&$G$6&C49&D49,'Pbr''s'!A:X,7,0)," ") ->  | G49: =IFERROR(VLOOKUP($G$5&$G$6&C49&D49,'Pbr''s'!A:X,8,0)," ") ->  | H49: =IFERROR(VLOOKUP($G$5&$G$6&C49&D49,'Pbr''s'!A:X,9,0)," ") ->  | I49: =IFERROR(VLOOKUP($G$5&$G$6&C49&D49,'Pbr''s'!A:X,10,0)," ") ->  | J49: =IFERROR(VLOOKUP($G$5&$G$6&C49&D49,'Pbr''s'!A:X,16,0)," ") -> 
C50: 38 | D50: =IFERROR(VLOOKUP($G$5&$G$6&C50,'Pbr''s'!B:X,5,0)," ") ->  | E50: =IFERROR(VLOOKUP($G$5&$G$6&C50&D50,'Pbr''s'!A:X,15,0)," ") ->  | F50: =IFERROR(VLOOKUP($G$5&$G$6&C50&D50,'Pbr''s'!A:X,7,0)," ") ->  | G50: =IFERROR(VLOOKUP($G$5&$G$6&C50&D50,'Pbr''s'!A:X,8,0)," ") ->  | H50: =IFERROR(VLOOKUP($G$5&$G$6&C50&D50,'Pbr''s'!A:X,9,0)," ") ->  | I50: =IFERROR(VLOOKUP($G$5&$G$6&C50&D50,'Pbr''s'!A:X,10,0)," ") ->  | J50: =IFERROR(VLOOKUP($G$5&$G$6&C50&D50,'Pbr''s'!A:X,16,0)," ") -> 
C51: 39 | D51: =IFERROR(VLOOKUP($G$5&$G$6&C51,'Pbr''s'!B:X,5,0)," ") ->  | E51: =IFERROR(VLOOKUP($G$5&$G$6&C51&D51,'Pbr''s'!A:X,15,0)," ") ->  | F51: =IFERROR(VLOOKUP($G$5&$G$6&C51&D51,'Pbr''s'!A:X,7,0)," ") ->  | G51: =IFERROR(VLOOKUP($G$5&$G$6&C51&D51,'Pbr''s'!A:X,8,0)," ") ->  | H51: =IFERROR(VLOOKUP($G$5&$G$6&C51&D51,'Pbr''s'!A:X,9,0)," ") ->  | I51: =IFERROR(VLOOKUP($G$5&$G$6&C51&D51,'Pbr''s'!A:X,10,0)," ") ->  | J51: =IFERROR(VLOOKUP($G$5&$G$6&C51&D51,'Pbr''s'!A:X,16,0)," ") -> 
C52: 40 | D52: =IFERROR(VLOOKUP($G$5&$G$6&C52,'Pbr''s'!B:X,5,0)," ") ->  | E52: =IFERROR(VLOOKUP($G$5&$G$6&C52&D52,'Pbr''s'!A:X,15,0)," ") ->  | F52: =IFERROR(VLOOKUP($G$5&$G$6&C52&D52,'Pbr''s'!A:X,7,0)," ") ->  | G52: =IFERROR(VLOOKUP($G$5&$G$6&C52&D52,'Pbr''s'!A:X,8,0)," ") ->  | H52: =IFERROR(VLOOKUP($G$5&$G$6&C52&D52,'Pbr''s'!A:X,9,0)," ") ->  | I52: =IFERROR(VLOOKUP($G$5&$G$6&C52&D52,'Pbr''s'!A:X,10,0)," ") ->  | J52: =IFERROR(VLOOKUP($G$5&$G$6&C52&D52,'Pbr''s'!A:X,16,0)," ") -> 
C53: 41 | D53: =IFERROR(VLOOKUP($G$5&$G$6&C53,'Pbr''s'!B:X,5,0)," ") ->  | E53: =IFERROR(VLOOKUP($G$5&$G$6&C53&D53,'Pbr''s'!A:X,15,0)," ") ->  | F53: =IFERROR(VLOOKUP($G$5&$G$6&C53&D53,'Pbr''s'!A:X,7,0)," ") ->  | G53: =IFERROR(VLOOKUP($G$5&$G$6&C53&D53,'Pbr''s'!A:X,8,0)," ") ->  | H53: =IFERROR(VLOOKUP($G$5&$G$6&C53&D53,'Pbr''s'!A:X,9,0)," ") ->  | I53: =IFERROR(VLOOKUP($G$5&$G$6&C53&D53,'Pbr''s'!A:X,10,0)," ") ->  | J53: =IFERROR(VLOOKUP($G$5&$G$6&C53&D53,'Pbr''s'!A:X,16,0)," ") -> 
C54: 42 | D54: =IFERROR(VLOOKUP($G$5&$G$6&C54,'Pbr''s'!B:X,5,0)," ") ->  | E54: =IFERROR(VLOOKUP($G$5&$G$6&C54&D54,'Pbr''s'!A:X,15,0)," ") ->  | F54: =IFERROR(VLOOKUP($G$5&$G$6&C54&D54,'Pbr''s'!A:X,7,0)," ") ->  | G54: =IFERROR(VLOOKUP($G$5&$G$6&C54&D54,'Pbr''s'!A:X,8,0)," ") ->  | H54: =IFERROR(VLOOKUP($G$5&$G$6&C54&D54,'Pbr''s'!A:X,9,0)," ") ->  | I54: =IFERROR(VLOOKUP($G$5&$G$6&C54&D54,'Pbr''s'!A:X,10,0)," ") ->  | J54: =IFERROR(VLOOKUP($G$5&$G$6&C54&D54,'Pbr''s'!A:X,16,0)," ") -> 

Sheet Anexo Cualitativo
E3: ANEXO 4 EVALUACIÓN DE PROGRAMAS Y/O PROYECTOS (AVANCE CUALITATIVO)
E4: NOMBRE DE LA SECRETARIA: | I4: ='Anexo Cuantitativo'!G5 -> OPD
E5: NOMBRE DE LA ENTIDAD PÚBLICA: | I5: ='Anexo Cuantitativo'!G6 -> IMMUJERES
E6: TRIMESTRE REPORTADO: | I6: ='Anexo Cuantitativo'!G7 -> Del 1 de Abril al 30 de Junio del 2025
G9: DESCRIPCIÓN
E10: NO. | F10: NOMBRE DE LA PROPUESTA | G10: DESCRIPCIÓN DE LAS ACTIVIDADES REALIZADAS (REDACTAR SÓLO LO REALIZADO EN TIEMPO PASADO)
E11: 1 | F11: =IFERROR('Anexo Cuantitativo'!D13," ") -> Enfoque Transversal con Perspectiva de Género | G11: En este trimestre tuvimos un total de 9 acciones. Se realizó un convenio con Casa Calera, que atiende a mujeres con situaciones de vulnerabilidad enfocadas en las adicciones o temas conductuales. Se asistió a una reunión de trabajo en la Comisaría de Seguridad Municipal de Tlaquepaque sobre el Programa Sendero Seguro, que buscaba garantizar la seguridad de las escuelas y sus estudiantes. Se llevó a cabo de manera interinstitucional la colaboración del Instituto en jornadas de salud junto a otras dependencias y OPDs, en las que se buscaba tener mayor cercanía con la ciudadanía. De igual manera, se asistió a la Comisaría de Seguridad de Tlaquepaque referente a la Mesa de Construcción de Paz y Seguridad, en la que se buscó unir esfuerzos de coordinación entre los tres niveles de gobierno para la lucha contra la violencia y la impunidad. Finalmente, se realizó un foro con la temática "Retos y Oportunidades en la Defensa de Derechos Humanos de Mujeres Víctimas de Violencia" con invitadas especialistas en dicho tema y finalmente se brindaron 4 capacitaciones en perspectiva de género.
G12: Narrativa de trimestre Enero-marzo: En el periodo de este trimestre reportamos 10 acciones con perspectiva de género, en este periodo se encuentra el dia internacional de las mujeres tambien conocido y mencionado como 8M. Bajo ese contexto presentamos un alza en la numeralia de nuestros Pbr´s. Durante estos tres meses logramos hacer una vinculación institucional con seis instituciones entre las que se encuentran; LAVARTEX, Preparatoria Toluquilla de la Universidad de Guadalajara, Preparatoria N°16 de la Universidad de Guadalajara, CUTonala de la Universidad de Guadalajara, COMUDE y el Centro Universitario de ciencias exactas e ingenierias (CUCEI). En dichas instituciones se impartieron talleres, capacitaciones y charlas acerca de temas de género como: Derechos de las mujeres, violencias en el noviazgo, sensibilizacion en perspectiva de género, entre otras, dandónos un total de 6 acciones con dichas vinculaciones. Visitamos 3 delagaciones municipales: Las juntas,Santa Anita y Loma bonita, en las que capacitamos a personas de la comunidad. Tuvimos un (1) evento masivo el 7 de marzo en el marco del dia de las mujeres en colaboración con la dirección de bomberos y protección civil con una asistencia de aproximadamente 500 mujeres. Dando un total de 10 acciones con perspectiva de género.
G13: Narrativa de trimestre Abril-junio: Durante el trimestre abril-junio reportamos un total de 22 acciones con perspectiva de género, destacando avances importantes en vinculación institucional, formación comunitaria y participación en espacios intergubernamentales. en cuanto a procesos formativos, se realizaron 21 capacitaciones y talleres en instituciones y espacios comunitarios como: Jardín de Niños Irene Robledo, Secundarias 91, 43 y 60, Preparatoria Toluquilla, Casa Calera, LAVARTEX, Centro Universitario de Tlaquepaque (CUTLAQUE) Centro Comunitario Xamixtli en La Cofradía y la Secretaría de Seguridad y Protección Ciudadana de Tlaquepaque. Al igual que se realizó una (1) caravana de salud en la Cofradía en colaboración con otras Instituciones. En estos espacios se abordaron temas prioritarios como: "Ser madre con igualdad: derechos, dignidad y empoderamiento para una vida libre y plena", derechos humanos de las mujeres, sensibilización en la perspectiva de género, sororidad, entre otros. Estas acciones reflejan el compromiso del Instituto con la promoción de la igualdad sustantiva, la prevención de violencias y la transversalización de la perspectiva de género en diferentes sectores de la sociedad.
G14: Narrativa de trimestre Julio-sept:
E15: =E11+1 -> 2 | F15: =IFERROR('Anexo Cuantitativo'!D14," ") -> Enfoque Transversal con Perspectiva de Género | G15: Hubo una (1) modificación a instrumentos normativos. La modificación se realizó en el Reglamento interno del Instituto Municipal de las mujeres y para la Igualdad Sustantiva en San Pedro Tlaquepaque, ya que, se observó la falta de actualización del mismo, en temas de vida órganica del Instituto, como procesos internos y funciones.
G16: Narrativa de trimestre Enero-marzo: Durante este periodo no hubo modificaciones a instrumentos normativos.
G17: Narrativa de trimestre Abril-junio: Durante este periodo no hubo modificaciones a instrumentos normativos.
G18: Narrativa de trimestre Julio-sept:
E19: =E15+1 -> 3 | F19: =IFERROR('Anexo Cuantitativo'!D15," ") -> Enfoque Transversal con Perspectiva de Género | G19: Este trimestre tuvimos un impacto de 128 mujeres, beneficiadas a través de diversos eventos, capacitación y atenciones que versan o tienen una transversalidad con perspectiva de género, así como sobre la eliminación de la violencia hacia las mujeres, en los que se obtuvo una buena respuesta por parte de las mujeres asistentes.
G20: Narrativa de trimestre Enero-marzo: tuvo un impacto significativo al alcanzar a un número importante de mujeres 1337 en total beneficiadas a través de diversas acciones estratégicas en el marco de la conmemoración del Día Internacional de las Mujeres (8M). Las intervenciones se llevaron a cabo en seis espacios clave, incluyendo instituciones educativas, dependencias públicas y organizaciones privadas.En las 10 acciones de este trimestre tuvimos un impacto a 1239 personas y en el área de primer contacto se atendío y se dio seguimiento a un total de 98 mujeres. Estas acciones buscaron no solo sensibilizar a la población, sino también fortalecer el conocimiento y ejercicio de los derechos humanos de las mujeres, promover el desarrollo personal y colectivo, así como desmitificar creencias en torno al amor romántico y visibilizar los distintos tipos de violencia de género. Los talleres y actividades, diseñados con enfoque pedagógico y participativo, permitieron generar espacios de diálogo y reflexión que favorecieron la apropiación de herramientas teóricas y prácticas para la prevención de la violencia y la promoción de la igualdad. Esto contribuyó no solo al empoderamiento individual de las participantes, sino también a reforzar una cultura institucional más consciente de la transversalización de la perspectiva de género.
G21: Narrativa de trimestre Abril-junio: En el transcurso de este trimestre, el Instituto logró impactar a 713 personas, de las cuales 605 fueron mujeres, a través de diversas acciones orientadas a la promoción de la igualdad de género y la prevención de la violencia. Las actividades se desarrollaron en planteles educativos, centros comunitarios y en la Secretaría de Seguridad y Protección Ciudadana de Tlaquepaque, donde se ofrecieron espacios formativos diseñados para fomentar la reflexión, el diálogo y el aprendizaje colectivo. Los contenidos abordaron temas esenciales como los derechos humanos de las mujeres, las distintas formas de violencia, los mitos del amor romántico y el fortalecimiento de la autonomía femenina. Por su parte, el área de Primer Contacto ofreció atención integral a 108 mujeres, brindándoles orientación jurídica, apoyo psicológico y acompañamiento desde trabajo social, con un enfoque sensible y adaptado a sus necesidades particulares. Estas actividades permitieron no solo fortalecer el desarrollo personal de las participantes, sino también favorecer una transformación cultural dentro de las instituciones, promoviendo entornos más justos, igualitarios y comprometidos con la perspectiva de género.
G22: Narrativa de trimestre Julio-sept:
E23: =E19+1 -> 4 | F23: =IFERROR('Anexo Cuantitativo'!D16," ") -> Libres por la igualdad | G23: Este trimestre se logro impactar a 200 mujeres a tráves de las diversas actividades y servicios que tenemos en el Instituto como la cartera de capacitaciones que tenemos y que estamos llevando a instituciones públicas y privadas, las atenciones en primer contacto y las acciones afirmativas que se llevaron a cabo en pro de los derechos de las mujeres.
G24: El instituto logro consolidar su impacto a 1097 personas mediante la implementación de talleres formativos dirigidos a estudiantes y personas usuarias de delegaciones municipales. Las capacitaciones dirigidas a estudiantes tuvieron un total de 147 personas beneficiadas y los talleres impartidos en las delegaciones y espacios municipales tuvieron un total de 950 personas impactadas con las actividades de promoción. Estas acciones se enmarcaron dentro de una propuesta educativa con enfoque de género y derechos humanos, orientada a la promoción de la equidad y el cuestionamiento de patrones culturales normalizados que perpetúan diversas formas de violencia. Los contenidos abordados tales como el amor romántico, la violencia en el noviazgo y el desarrollo humano fueron trabajados desde una perspectiva reflexiva, inclusiva y participativa, lo que permitió a las personas asistentes reconocerse como agentes de cambio en sus propias comunidades. A través del diálogo abierto y la reflexión colectiva, se generaron espacios seguros que facilitaron la identificación de conductas y creencias arraigadas que reproducen desigualdades, especialmente en las primeras etapas de las relaciones afectivas. La amplia convocatoria y respuesta favorable de la comunidad se reflejaron en una alta participación
G25: Narrativa de trimestre Abril-junio: El Instituto logró consolidar su impacto al alcanzar a un total de 1,041 personas mediante la implementación de talleres formativos con perspectiva de género y enfoque de derechos humanos. En el ámbito educativo, se capacitó a 740 estudiantes de diferentes niveles escolares, mientras que en espacios comunitarios, colonias e instituciones del municipio de Tlaquepaque, se impactó a 301 personas a través de actividades de promoción y sensibilización. Estas acciones se desarrollaron como parte de una propuesta educativa orientada a la promoción de la equidad y al cuestionamiento de patrones culturales normalizados que reproducen diversas formas de violencia. Los contenidos abordados (como el amor romántico, la violencia en el noviazgo y el desarrollo humano) fueron trabajados desde una metodología reflexiva, inclusiva y participativa, permitiendo que las personas asistentes se reconocieran como agentes de cambio en sus entornos. A través del diálogo abierto y la reflexión colectiva, se generaron espacios seguros donde se facilitaron procesos de identificación de conductas y creencias arraigadas que perpetúan desigualdades, especialmente en las etapas tempranas de las relaciones afectivas. La alta participación y la respuesta favorable de la comunidad reflejan el compromiso social hacia la construcción de una cultura de paz y reducción de la violencia de género.
G26: Narrativa de trimestre Julio-sept:
E27: =E23+1 -> 5 | F27: =IFERROR('Anexo Cuantitativo'!D17," ") -> Libres por la igualdad | G27: No hubo evento conmemorativo para promover y reconocimiento a los derechos de las mujeres en sus diversidades.
G28: Narrativa de trimestre Enero-marzo: Tuvimos un (1) evento masivo en colaboración con la Dirección de bomberos y protección civil en conmemoración al dia internacional de las mujeres tambien conocido como 8M, en cual se busco promover la perspectiva de género como forma de prevención de las violencias de género además de concientizar a las personas que asistieron (500 mujeres) sobre los retos que vivimos como mujeres en el contexto actual.
G29: Narrativa de trimestre Abril-junio: No hubo evento conmemorativo para promover y reconocimiento a los derechos de las mujeres en sus diversidades.
G30: Narrativa de trimestre Julio-sept:
E31: =E27+1 -> 6 | F31: =IFERROR('Anexo Cuantitativo'!D18," ") -> Vivir sin violencia | G31: Narrativa de trimestre octubre-diciembre: Tuvimos un total de 159 mujeres atendidas en el área de primer contacto. Esta área de primer contacto es la encargada de dar acompañamiento jurídico, psicológico y de trabajo social a las mujeres que recibimos en el instituto para levantar sus expedientes de canalización y dar seguimiento a sus casos concretos.En el transcurso de este trimestre brindamos la atención a estas noventa y ocho mujeres a través de este equipo especializado de primer contacto. Algunas mujeres son canalizadas a otras instituciones dependiendo el caso concreto y las necesidades de las usuarias.
G32: Narrativa de trimestre Enero-marzo: Tuvimos un total de 98 mujeres atendidas en el área de primer contacto. Según se requiera las mujeres son canalizadas a otras instituciones dependiendo el caso concreto y las necesidades de las usuarias.
G33: Narrativa de trimestre Abril-junio: Durante este trimestre, el área de Primer Contacto del Instituto brindó atención a un total de 108 mujeres. Esta área especializada tiene como función ofrecer un primer acompañamiento integral (jurídico, psicológico y de trabajo social) a las mujeres que acuden al instituto, con el objetivo de levantar sus expedientes de canalización y dar seguimiento a cada caso de manera individualizada.
G34: Narrativa de trimestre Julio-sept:
E35: =E31+1 -> 7 | F35: =IFERROR('Anexo Cuantitativo'!D19," ") -> Vivir sin violencia | G35: Se realizaron 10 acciones en este trimestre entre las que se encuentran; caravanas de salud en las distintas delegaciones del municipio, en donde se brindó asesoramiento y orientación a mujeres sobre los lugares a los que debían acudir para recibir atención y seguimiento de su caso. En eventos como un cineforo, se proyectó una película llamada "Desde mi Cielo" que abordaba la violencia y la concientización de cómo la experimentan las mujeres. Se llevó a cabo un cambaceo en dichos eventos y caravanas, en donde se proporcionó publicidad sobre cómo prevenir la violencia y se ofrecieron números de contacto para que las mujeres puedan acudir en caso de estar viviendo algún tipo de violencia. También se realizaron talleres de prevención y concientización sobre la violencia de género. Además, se establecieron juntas de trabajo con la directora de UVI para fortalecer lazos colaborativos en beneficio de las mujeres, así como con la comisaria de seguridad de Tlaquepaque en conjunto con los tres niveles de gobierno. En estas juntas, se previó la prevención de delitos que atenten contra la integridad de las estudiantes, y se promovió la concientización sobre la eliminación de la violencia de género a través de la jornada del 25 de noviembre, en la que se desarrollaron temas para la prevención de violencias hacia las mujeres.
G36: Narrativa de trimestre Enero-marzo: Entre nuestras 6 acciones reportadas para la prevencion de las violencias de género se encuentran 2 capacitaciones al funcionariado público y a 3 instituciones privadas con el objetivo de brindar los conocimientos necesarios para la prevención y erradición de la violencia. Ademas de formar una vinculación con organizaciones de la sociedad civil organizada para poder replicar las acciones en toda la comunidad tlaquepaquense tal como: A.C Psicobarrio .
G37: Narrativa de trimestre Abril-junio: Entre las 12 acciones reportadas para la prevención de las violencias de género durante este trimestre, se destaca la participación en mesas de trabajo para la construcción de paz y seguridad, donde se promovió la coordinación entre los tres niveles de gobierno con el objetivo de prevenir la violencia y combatir la impunidad de manera efectiva. Se realizaron 11 capacitaciones, charlas y talleres en distintos puntos del municipio, abordando temas como los tipos de violencia de género, el debido proceso, la violencia en el noviazgo, y los derechos de las mujeres. Estas intervenciones se llevaron a cabo en instituciones educativas (secundarias, preparatorias y universidades), empresas privadas y colonias, con el fin de acercar los contenidos a la comunidad de manera directa y participativa. Destacando la impartición de capacitaciones en la Secretaría de Seguridad y Protección Ciudadana de Tlaquepaque, dirigida a las y los próximos elementos de la policía de proximidad, con el objetivo de fortalecer sus conocimientos en materia de prevención de la violencia de género y dotarlos de herramientas que les permitan brindar una atención más sensible, efectiva y con perspectiva de derechos humanos en su labor cotidiana.
G38: Narrativa de trimestre Julio-sept:
E39: =E35+1 -> 8 | F39: =IFERROR('Anexo Cuantitativo'!D20," ") -> Vivir sin violencia | G39: Con todas las acciones realizadas por el Instituto se beneficiaron un total de 457 mujeres, divididas en otros campos relativos a los diversos programas y proyectos con los que se cuenta en el instituto, se han obtenido estos resultados gracias a que la mayoria de programas contribuyen a la prevención de la violencia y a la sensibilización en perspectiva de género desde distintos temas, como la transversalidad, la igualdad y la violencia de género.
G40: Narrativa de trimestre Enero-marzo: Las acciones para atender, prevenir y erradicar la violencia son de suma relevancia para el Instituto, tuvimos en el área de primer contacto 98 atenciones a mujeres víctimas de violencia atendidas y canalizadas, y en el área de capacitación que promueven la sensiblización hacia los casos de violencia y buscan prevenir situaciones de riesgo tuvimos la participación de 260 personas. Dándonos un total de 358 personas beneficiadas por las acciones del instituto antes mencionadas.
G41: Narrativa de trimestre Abril-junio: Las acciones enfocadas en la atención, prevención y erradicación de la violencia representan una prioridad para el Instituto. Durante este trimestre, el área de Primer Contacto brindó atención y canalización a 108 mujeres víctimas de violencia, ofreciéndoles acompañamiento integral desde un enfoque jurídico, psicológico y de trabajo social. Paralelamente, en el ámbito de capacitación y sensibilización, se logró la participación de 185 personas en talleres y charlas orientadas a concientizar sobre las distintas manifestaciones de la violencia y fortalecer herramientas para su prevención. En conjunto, estas estrategias permitieron beneficiar a un total de 293 personas, reafirmando el compromiso institucional con la construcción de entornos más seguros, igualitarios y libres de violencia.
G42: Narrativa de trimestre Julio-sept:
E43: =E39+1 -> 9 | F43: =IFERROR('Anexo Cuantitativo'!D21," ") -> Vivir sin violencia | G43: Se realizo un evento conmemorativo del "Día de la Eliminación de la Violencia de Género" que tiene fecha el 25 de noviembre de cada año y es llamado por sus siglas 25N, el evento recibio el nombre de " Huellas con Historia" y contamos con participación de activistas sociales, mujeres de la comunidad de San Pedro Tlaquepaque, regidores y regidoras, directivos y personal de distintas dependencias y OPDs del municipio, logrando tener un impacto en una población de 300 mujeres.
G44: Narrativa de trimestre Enero-marzo: Este trimestre no se realizo evento enfocado en las violencias sino en la generalidad de la vidad de las mujeres.
G45: Narrativa de trimestre Abril-junio: Este trimestre no se realizo evento enfocado en las violencias sino en la generalidad de la vidad de las mujeres.
G46: Narrativa de trimestre Julio-sept:
E47: =E43+1 -> 10 | F47: =IFERROR('Anexo Cuantitativo'!D22," ") ->  | G47: =IFERROR(VLOOKUP($I$4&$I$5&E47&F47,'Pbr''s'!A:X,21,0)," ") -> 
G48: Narrativa de trimestre Enero-marzo:
G49: Narrativa de trimestre Abril-junio:
G50: Narrativa de trimestre Julio-sept:
E51: =E47+1 -> 11 | F51: =IFERROR('Anexo Cuantitativo'!D23," ") ->  | G51: =IFERROR(VLOOKUP($I$4&$I$5&E51&F51,'Pbr''s'!A:X,21,0)," ") -> 
G52: Narrativa de trimestre Enero-marzo:
G53: Narrativa de trimestre Abril-junio:
G54: Narrativa de trimestre Julio-sept:
E55: =E51+1 -> 12 | F55: =IFERROR('Anexo Cuantitativo'!D24," ") ->  | G55: =IFERROR(VLOOKUP($I$4&$I$5&E55&F55,'Pbr''s'!A:X,21,0)," ") -> 
G56: Narrativa de trimestre Enero-marzo:
G57: Narrativa de trimestre Abril-junio:
G58: Narrativa de trimestre Julio-sept:
E59: =E55+1 -> 13 | F59: =IFERROR('Anexo Cuantitativo'!D25," ") ->  | G59: =IFERROR(VLOOKUP($I$4&$I$5&E59&F59,'Pbr''s'!A:X,21,0)," ") -> 
G60: Narrativa de trimestre Enero-marzo:
G61: Narrativa de trimestre Abril-junio:
G62: Narrativa de trimestre Julio-sept:
E63: =E59+1 -> 14 | F63: =IFERROR('Anexo Cuantitativo'!D26," ") ->  | G63: =IFERROR(VLOOKUP($I$4&$I$5&E63&F63,'Pbr''s'!A:X,21,0)," ") -> 
G64: Narrativa de trimestre Enero-marzo:
G65: Narrativa de trimestre Abril-junio:
G66: Narrativa de trimestre Julio-sept:
E67: =E63+1 -> 15 | F67: =IFERROR('Anexo Cuantitativo'!D27," ") ->  | G67: =IFERROR(VLOOKUP($I$4&$I$5&E67&F67,'Pbr''s'!A:X,21,0)," ") -> 
G68: Narrativa de trimestre Enero-marzo:
G69: Narrativa de trimestre Abril-junio:
G70: Narrativa de trimestre Julio-sept:
E71: =E67+1 -> 16 | F71: =IFERROR('Anexo Cuantitativo'!D28," ") ->  | G71: =IFERROR(VLOOKUP($I$4&$I$5&E71&F71,'Pbr''s'!A:X,21,0)," ") -> 
G72: Narrativa de trimestre Enero-marzo:
G73: Narrativa de trimestre Abril-junio:
G74: Narrativa de trimestre Julio-sept:
E75: =E71+1 -> 17 | F75: =IFERROR('Anexo Cuantitativo'!D29," ") ->  | G75: =IFERROR(VLOOKUP($I$4&$I$5&E75&F75,'Pbr''s'!A:X,21,0)," ") -> 
G76: Narrativa de trimestre Enero-marzo:
G77: Narrativa de trimestre Abril-junio:
G78: Narrativa de trimestre Julio-sept:
E79: =E75+1 -> 18 | F79: =IFERROR('Anexo Cuantitativo'!D30," ") ->  | G79: =IFERROR(VLOOKUP($I$4&$I$5&E79&F79,'Pbr''s'!A:X,21,0)," ") -> 
G80: Narrativa de trimestre Enero-marzo:
G81: Narrativa de trimestre Abril-junio:
G82: Narrativa de trimestre Julio-sept:
E83: =E79+1 -> 19 | F83: =IFERROR('Anexo Cuantitativo'!D31," ") ->  | G83: =IFERROR(VLOOKUP($I$4&$I$5&E83&F83,'Pbr''s'!A:X,21,0)," ") -> 
G84: Narrativa de trimestre Enero-marzo:
G85: Narrativa de trimestre Abril-junio:
G86: Narrativa de trimestre Julio-sept:
E87: =E83+1 -> 20 | F87: =IFERROR('Anexo Cuantitativo'!D32," ") ->  | G87: =IFERROR(VLOOKUP($I$4&$I$5&E87&F87,'Pbr''s'!A:X,21,0)," ") -> 
G88: Narrativa de trimestre Enero-marzo:
G89: Narrativa de trimestre Abril-junio:
G90: Narrativa de trimestre Julio-sept:
E91: =E87+1 -> 21 | F91: =IFERROR('Anexo Cuantitativo'!D33," ") ->  | G91: =IFERROR(VLOOKUP($I$4&$I$5&E91&F91,'Pbr''s'!A:X,21,0)," ") -> 
G92: Narrativa de trimestre Enero-marzo:
G93: Narrativa de trimestre Abril-junio:
G94: Narrativa de trimestre Julio-sept:
E95: =E91+1 -> 22 | F95: =IFERROR('Anexo Cuantitativo'!D34," ") ->  | G95: =IFERROR(VLOOKUP($I$4&$I$5&E95&F95,'Pbr''s'!A:X,21,0)," ") -> 
G96: Narrativa de trimestre Enero-marzo:
G97: Narrativa de trimestre Abril-junio:
G98: Narrativa de trimestre Julio-sept:
E99: =E95+1 -> 23 | F99: =IFERROR('Anexo Cuantitativo'!D35," ") ->  | G99: =IFERROR(VLOOKUP($I$4&$I$5&E99&F99,'Pbr''s'!A:X,21,0)," ") -> 
G100: Narrativa de trimestre Enero-marzo:
G101: Narrativa de trimestre Abril-junio:
G102: Narrativa de trimestre Julio-sept:
E103: =E99+1 -> 24 | F103: =IFERROR('Anexo Cuantitativo'!D36," ") ->  | G103: =IFERROR(VLOOKUP($I$4&$I$5&E103&F103,'Pbr''s'!A:X,21,0)," ") -> 
G104: Narrativa de trimestre Enero-marzo:
G105: Narrativa de trimestre Abril-junio:
G106: Narrativa de trimestre Julio-sept:
E107: =E103+1 -> 25 | F107: =IFERROR('Anexo Cuantitativo'!D37," ") ->  | G107: =IFERROR(VLOOKUP($I$4&$I$5&E107&F107,'Pbr''s'!A:X,21,0)," ") -> 
G108: Narrativa de trimestre Enero-marzo:
G109: Narrativa de trimestre Abril-junio:
G110: Narrativa de trimestre Julio-sept:
E111: =E107+1 -> 26 | F111: =IFERROR('Anexo Cuantitativo'!D38," ") ->  | G111: =IFERROR(VLOOKUP($I$4&$I$5&E111&F111,'Pbr''s'!A:X,21,0)," ") -> 
G112: Narrativa de trimestre Enero-marzo:
G113: Narrativa de trimestre Abril-junio:
G114: Narrativa de trimestre Julio-sept:
E115: =E111+1 -> 27 | F115: =IFERROR('Anexo Cuantitativo'!D39," ") ->  | G115: =IFERROR(VLOOKUP($I$4&$I$5&E115&F115,'Pbr''s'!A:X,21,0)," ") -> 
G116: Narrativa de trimestre Enero-marzo:
G117: Narrativa de trimestre Abril-junio:
G118: Narrativa de trimestre Julio-sept:
E119: =E115+1 -> 28 | F119: =IFERROR('Anexo Cuantitativo'!D40," ") ->  | G119: =IFERROR(VLOOKUP($I$4&$I$5&E119&F119,'Pbr''s'!A:X,21,0)," ") -> 
G120: Narrativa de trimestre Enero-marzo:
G121: Narrativa de trimestre Abril-junio:
G122: Narrativa de trimestre Julio-sept:
E123: =E119+1 -> 29 | F123: =IFERROR('Anexo Cuantitativo'!D41," ") ->  | G123: =IFERROR(VLOOKUP($I$4&$I$5&E123&F123,'Pbr''s'!A:X,21,0)," ") -> 
G124: Narrativa de trimestre Enero-marzo:
G125: Narrativa de trimestre Abril-junio:
G126: Narrativa de trimestre Julio-sept:
E127: =E123+1 -> 30 | F127: =IFERROR('Anexo Cuantitativo'!D42," ") ->  | G127: =IFERROR(VLOOKUP($I$4&$I$5&E127&F127,'Pbr''s'!A:X,21,0)," ") -> 
G128: Narrativa de trimestre Enero-marzo:
G129: Narrativa de trimestre Abril-junio:
G130: Narrativa de trimestre Julio-sept:
E131: =E127+1 -> 31 | F131: =IFERROR('Anexo Cuantitativo'!D43," ") ->  | G131: =IFERROR(VLOOKUP($I$4&$I$5&E131&F131,'Pbr''s'!A:X,21,0)," ") -> 
G132: Narrativa de trimestre Enero-marzo:
G133: Narrativa de trimestre Abril-junio:
G134: Narrativa de trimestre Julio-sept:
E135: =E131+1 -> 32 | F135: =IFERROR('Anexo Cuantitativo'!D44," ") ->  | G135: =IFERROR(VLOOKUP($I$4&$I$5&E135&F135,'Pbr''s'!A:X,21,0)," ") -> 
G136: Narrativa de trimestre Enero-marzo:
G137: Narrativa de trimestre Abril-junio:
G138: Narrativa de trimestre Julio-sept:
E139: =E135+1 -> 33 | F139: =IFERROR('Anexo Cuantitativo'!D45," ") ->  | G139: =IFERROR(VLOOKUP($I$4&$I$5&E139&F139,'Pbr''s'!A:X,21,0)," ") -> 
G140: Narrativa de trimestre Enero-marzo:
G141: Narrativa de trimestre Abril-junio:
G142: Narrativa de trimestre Julio-sept:
E143: =E139+1 -> 34 | F143: =IFERROR('Anexo Cuantitativo'!D46," ") ->  | G143: =IFERROR(VLOOKUP($I$4&$I$5&E143&F143,'Pbr''s'!A:X,21,0)," ") -> 
G144: Narrativa de trimestre Enero-marzo:
G145: Narrativa de trimestre Abril-junio:
G146: Narrativa de trimestre Julio-sept:
E147: =E143+1 -> 35 | F147: =IFERROR('Anexo Cuantitativo'!D47," ") ->  | G147: =IFERROR(VLOOKUP($I$4&$I$5&E147&F147,'Pbr''s'!A:X,21,0)," ") -> 
G148: Narrativa de trimestre Enero-marzo:
G149: Narrativa de trimestre Abril-junio:
G150: Narrativa de trimestre Julio-sept:
E151: =E147+1 -> 36 | F151: =IFERROR('Anexo Cuantitativo'!D48," ") ->  | G151: =IFERROR(VLOOKUP($I$4&$I$5&E151&F151,'Pbr''s'!A:X,21,0)," ") -> 
G152: Narrativa de trimestre Enero-marzo:
G153: Narrativa de trimestre Abril-junio:
G154: Narrativa de trimestre Julio-sept:
E155: =E151+1 -> 37 | F155: =IFERROR('Anexo Cuantitativo'!D49," ") ->  | G155: =IFERROR(VLOOKUP($I$4&$I$5&E155&F155,'Pbr''s'!A:X,21,0)," ") -> 
G156: Narrativa de trimestre Enero-marzo:
G157: Narrativa de trimestre Abril-junio:
G158: Narrativa de trimestre Julio-sept:
E159: =E155+1 -> 38 | F159: =IFERROR('Anexo Cuantitativo'!D50," ") ->  | G159: =IFERROR(VLOOKUP($I$4&$I$5&E159&F159,'Pbr''s'!A:X,21,0)," ") -> 
G160: Narrativa de trimestre Enero-marzo:
G161: Narrativa de trimestre Abril-junio:
G162: Narrativa de trimestre Julio-sept:
E163: =E159+1 -> 39 | F163: =IFERROR('Anexo Cuantitativo'!D51," ") ->  | G163: =IFERROR(VLOOKUP($I$4&$I$5&E163&F163,'Pbr''s'!A:X,21,0)," ") -> 
G164: Narrativa de trimestre Enero-marzo:
G165: Narrativa de trimestre Abril-junio:
G166: Narrativa de trimestre Julio-sept:
E167: =E163+1 -> 40 | F167: =IFERROR('Anexo Cuantitativo'!D52," ") ->  | G167: =IFERROR(VLOOKUP($I$4&$I$5&E167&F167,'Pbr''s'!A:X,21,0)," ") -> 
G168: Narrativa de trimestre Enero-marzo:
G169: Narrativa de trimestre Abril-junio:
G170: Narrativa de trimestre Julio-sept:
E171: =E167+1 -> 41 | F171: =IFERROR('Anexo Cuantitativo'!D53," ") ->  | G171: =IFERROR(VLOOKUP($I$4&$I$5&E171&F171,'Pbr''s'!A:X,21,0)," ") -> 
G172: Narrativa de trimestre Enero-marzo:
G173: Narrativa de trimestre Abril-junio:
G174: Narrativa de trimestre Julio-sept:
E175: =E171+1 -> 42 | F175: =IFERROR('Anexo Cuantitativo'!D54," ") ->  | G175: =IFERROR(VLOOKUP($I$4&$I$5&E175&F175,'Pbr''s'!A:X,21,0)," ") -> 
G176: Narrativa de trimestre Enero-marzo:
G177: Narrativa de trimestre Abril-junio:
G178: Narrativa de trimestre Julio-sept:

Sheet Hoja2 (hidden)
B6: ESTRATÉGICO
B7: GESTIÓN

Sheet SECRETARIASYPROYECTOS (hidden)
A1: SECRETARIAS / DIRECCIONES /SUBDIRECCIONES | R1: SECRETARIAS / PROYECTOS
A2: OFICINA_DE_PRESIDENCIA | B2: SECRETARIA_GENERAL_DEL_AYUNTAMIENTO | C2: SINDICATURA | D2: SECRETARIA_DE_LA_CONSEJERIA_JURIDICA | E2: SECRETARIA_DE_GOBERNANZA_Y_TERRITORIO | F2: SECRETARIA_DE_ADMINISTRACION_Y_FINANZAS | G2: SECRETARIA_DE_CONTRALORIA_MUNICIPAL_Y_COMBATE_A_LA_CORRUPCION | H2: OFICIALIA_MAYOR | I2: SECRETARIA_DE_PLANIFICACION_ANALISIS_Y_GESTION_URBANA | J2: SECRETARIA_DE_BIENESTAR | K2: SECRETARIA_DE_FOMENTO_ECONOMICO_Y_CULTURAL | L2: SECRETARIA_DE_SERVICIOS_PUBLICOS_Y_MEDIO_AMBIENTE | M2: SECRETARIA_DE_SALUD | N2: SECRETARIA_DE_OBRAS_PUBLICAS | O2: SECRETARIA_DE_SEGURIDAD_Y_PROTECCION_CIUDADANA | P2: OPD | R2: PRESIDENCIA | S2: SINDICATURA_PROYECTO | T2: CONSEJERIA_JURIDICA | U2: GOBERNANZA_Y_TERRITORIO | V2: ADMINISTRACION_Y_FINANZAS | W2: CONTRALORIA_MUNICIPAL_Y_COMBATE_A_LA_CORRUPCION | X2: OFICIALIA | Y2: PLANIFICACION_ANALISIS_Y_GESTION_URBANA | Z2: BIENESTAR | AA2: FOMENTO_ECONOMICO_Y_CULTURAL | AB2: SERVICIOS_PUBLICOS_Y_MEDIO_AMBIENTE | AC2: SALUD | AD2: OBRAS_PUBLICAS | AE2: SEGURIDAD_Y_PROTECCION_CIUDADANA | AF2: OPD_PROYECTO
A3: DIRECCION DE ATENCION Y VINCULACION CIUDADANA | B3: SECRETARIA DEL AYUNTAMIENTO | C3: DEPARTAMENTO DE CONTRATOS Y CONVENIOS | D3: DEPARTAMENTO DE RECLUTAMIENTO MILITAR | E3: DELEGACION SAN SEBASTIANITO | F3: DEPARTAMENTO DE BIENES MUEBLES | G3: DIRECCION DE AUDITORIA A OBRA PUBLICA Y SERVICIOS | H3: DEPARTAMENTO DE CAPACITACION Y SERVICIO SOCIAL | I3: DEPARTAMENTO DE EVALUACION DE PROYECTOS Y PROGRAMAS | J3: DIRECCION DE EDUCACION | K3: DIRECCION DE CULTURA | L3: DEPARTAMENTO DE REGULACION AMBIENTAL | M3: DEPARTAMENTO DE TRABAJO SOCIAL | N3: DIRECCION DE CONSTRUCCION Y MANTENIMIENTO | O3: DEPARTAMENTO DE AREA DE PREVENCION | P3: COMUCAT | R3: Atención a Reportesde Servicios Públicos, Información sobre Ayudas Sociales y Reportes en General | S3: Servicios de asesoramiento legal y jurídico a la población que presenta vulnerabilidad legal e indefención de su patrimonio | T3: Opiniones jurídicas | U3: Actividades Administrativas | V3: Programa de Apoyo a Adultos Mayores | W3: Análisis documental de expedientes de obras | X3: Elaboración de Manuales Administrativos | Y3: Coordinación de actividades de los departamentos de la Dirección de Desempeño, Resultados y Tablero de Control | Z3: Alas de Esperanza | AA3: Formacion Continua | AB3: Trabajos emergentes de redes hidrosanitarias | AC3: Soporte Ventilatorio | AD3: Programa de Urbanización | AE3: Gestión Adquisición de Uniformes | AF3: Capacitaciones Preventivas en Adicciones
A4: DIRECCION DE COMUNICACION ESTRATEGICA | C4: DEPARTAMENTO DE MEJORA REGULATORIA | D4: DIRECCION DE APOYO A CABILDO | E4: DEPARTAMENTO DE ASUNTOS RELIGIOSOS | F4: DEPARTAMENTO DE REDES Y TELECOMUNICACIONES | G4: DIRECCION DE AUDITORIA GUBERNAMENTAL Y COMBATE A LA CORRUPCION | H4: DEPARTAMENTO DE INCIDENCIAS Y CALCULO DE NOMINA | I4: DEPARTAMENTO DE GESTION TERRITORIAL SUELO Y VIVIENDA | J4: DIRECCION DE PROGRAMAS SOCIALES PARA EL BIENESTAR | K4: DIRECCION DE DESARROLLO ARTESANAL Y TURISTICO (ARTESANAL) | L4: DIRECCION DE AGUA POTABLE, DRENAJE Y ALCANTARILLADO | M4: DIRECCION DE SALUD PUBLICA | N4: DIRECCION DE PRESUPUESTOS Y CONTRATACION DE OBRA PUBLICA | O4: DIRECCION ADMINISTRATIVA | P4: COMUDE | R4: Atencion y capacitacion a organizaciones vecinales en materia de participacion ciudadana | S4: Catálogo Municipal de Trámites y Servicios | T4: Consultas y asesoría jurídica | U4: Atención a Solicitudes Ciudadanas | V4: Programa de Convenios | W4: Control documental de expedientes de obras | X4: Armonización Organizativa | Y4: Servicio de Acompañamiento para la gestión del sistema de Planeación Municipal | Z4: Aprendiendo bien | AA4: Ferias, Festivales y Exposiciones | AB4: Servicio Medido | AC4: Atención Urgente en Sala de Choque | AD4: Señalización Horizontal y Vertical | AE4: Programa permanente de seguimiento para la administración eficiente de los recursos humanos y materiales de la Secretaría | AF4: Atención Terapeútica
A5: SUBDIRECCION DE GESTION DE PARTICIPACION TERRITORIAL | C5: DIRECCION JURIDICA | D5: DIRECCION DE DERECHOS HUMANOS | E5: DEPARTAMENTO DE OFICINA DE PASAPORTES | F5: DEPARTAMENTO DE SERVICIOS GENERALES | G5: DIRECCION DE RESPONSABILIDADES Y EVOLUCION PATRIMONIAL | H5: DIRECCION DE DESARROLLO ORGANIZACIONAL | I5: DEPARTAMENTO DE INDICADORES Y METAS PARA RESULTADOS | J5: SUBDIRECCION DE DESARROLLO Y ATENCION AL SECTOR AGROPECUARIO | K5: DIRECCION DE GESTION EMPRESARIAL E INDUSTRIAL | L5: DIRECCION DE ALUMBRADO PUBLICO | M5: DIRECCION DE URGENCIAS MEDICAS | N5: SUBDIRECCION DE INSPECCION DE CONTROL DE LA EDIFICACION Y ORDENAMIENTO TERRITORIAL | O5: DIRECCION DE ATENCION A LA VIOLENCIA DE GENERO | P5: IMJUVET | R5: Conformacion de Organizaciones Vecinales | S5: Servicio de Revisión Contratos | T5: Cartillas Militares | U5: Brigadas de Mantenimiento y Recuperación de Espacios Públicos | V5: Programa Integral de Recaudación | W5: Auditorías | X5: Certificación en el ECO385 | Y5: Seguimiento y Evaluación a la Administración Pública Municipal | Z5: Unidos en Corazón | AA5: Cultura por la Paz | AB5: Recepción, Distribución, Dosificación, Monitoreo de cloro residual de Agua Potable | AC5: Enseñanza Continua | AD5: Intervenciones al Entorno Urbano | AE5: Material para el desempeño de las actividades de la Unidad de Proximidad Social | AF5: Espacios COMUCAT
A6: UNIDAD DE TRANSPARENCIA | C6: SINDICATURA | D6: DIRECCION DE MEDIACION Y JUZGADOS CIVICOS MUNICIPALES | E6: DIRECCION DE ARCHIVO MUNICIPAL | F6: DEPARTAMENTO DE SOPORTE Y MANTENIMIENTO | G6: SUBDIRECCION DE AUDITORIA FINANCIERA Y DE DESEMPEÑO | I6: DEPARTAMENTO DE PLANEACION URBANA | K6: DIRECCION DEL CENTRO HISTORICO | L6: DIRECCION DE ASEO PUBLICO | M6: SUBDIRECCION DE ENSEÑANZA | N6: SUBDIRECCION DE MANTENIMIENTO | O6: DIRECCION DE BOMBEROS Y PROTECCION CIVIL | P6: IMMUJERES | R6: Socializando y perifoneando para la cuidadania | S6: Actualización de los instrumentos de control de Archivo de Tramite de la Sindicatura | T6: Campaña de Integración Familiar 2025 | U6: Festividades Tradicionales Cívicas | V6: Administración y control de los Recursos Materiales | W6: Visitas de Inspección | X6: Capacitación en materia de Derechos Humanos | Y6: Seguimiento y Evaluación a los Programas Sociales | Z6: Cuidando tu Esperanza | AA6: Cultura en tu colonia | AB6: Padrón Único de Usuarios | AC6: Monitores al Área de Urgencias (Choque) | AD6: Mtto. a Edificios y Espacios Públicos | AE6: Certificación de personal y oficiales caninos K-9 | AF6: Red de Apoyo para Establecimientos especializado en Adicciones
D7: DIRECCION DE REGISTRO CIVIL | E7: DIRECCION DE DELEGACIONES Y AGENCIAS | F7: DEPARTAMENTO DE TALLER MUNICIPAL | I7: DEPARTAMENTO DEL SISTEMA DE EVALUACION DEL DESEMPEÑO | K7: SUBDIRECCION DE BIBLIOTECAS | L7: DIRECCION DE RASTRO | M7: SUBDIRECCION DE SALUD ANIMAL | O7: DIRECCION OPERATIVA | P7: PREMIO NACIONAL DE LA CERÁMICA | R7: Campañas en Redes Sociales | S7: Presentación de Iniciativas de modificación de normatividad | T7: Celebracion de Matrimonios en Lugares emblemáticos | U7: Visitas a Colonias | V7: Administracion de Bienes Inmuebles | W7: Auditorías | X7: Desarrollo Académico Básico de las y los servidores públicos de la Secretaría de Servicios Públicos y Medio Ambiente | Y7: Banco integrado de proyectos y programas | Z7: Esperanza Joven | AA7: Amigos de Refugio | AB7: Gestión y puesta en marcha del laboratorio de análisis de Agua Potable | AC7: Camillas al Área de Urgencias (Choque) | AD7: Programa Permanente de Mantenimiento de Vialidades | AE7: Equipamiento para el desarrollo del centro de unidades policiales especializadas de Tlaquepaque (C.U.P.E.T.) | AF7: Área Alimentaria
D8: DIRECCION LEGAL-CONSULTIVA | E8: DIRECCION DE INSPECCION Y VIGILANCIA | F8: DIRECCION DE CATASTRO | I8: DIRECCION DE GESTION DEL DESEMPEÑO, EVALUACION DE RESULTADOS Y TABLERO DE CONTROL | K8: SUBDIRECCION DE MUSEOS | L8: DIRECCION DE SALUD AMBIENTAL Y CAMBIO CLIMATICO | O8: SUBDIRECCION DE GESTION GENERAL DEL RIESGO | P8: Sistema de Desarrollo Integral de la Familia (DIF) de Tlaquepaque | R8: Atención a Reportesde Servicios Públicos, Información sobre Ayudas Sociales y Reportes en General | T8: Calificacion de Actas de Infraccion | U8: Servicio eficaz de trámite de licencias municipal precensial y en línea | V8: Actualización y control de los inventarios de los bienes muebles. | W8: Procedimientos de aclaración derivados de entrega recepción | X8: Difusión de Protocolos | Y8: Seguimiento de Mesas de gestión Metropolitana ante el IMEPLAN | Z8: Inclusión con Esperanza | AA8: Equipamiento de talleres y Administrativo de Artes, Artesanías y Oficios | AB8: Estudio de Factibiloidades de Redes Hidrosanitarias | AC8: Terapia de Infusión Intravenosa | AD8: Mantenimiento a Escuelas | AE8: Proyecto de adapatación de espacio para entrenamiento de oficiales caninos | AF8: Psicología
D9: OFICINA DEL REGISTRO CIVIL NO. 1 | E9: DIRECCION DE PADRON Y LICENCIAS | F9: DIRECCION DE CONTABILIDAD Y GLOSA | I9: DIRECCION DE GESTION TERRITORIAL Y PLANEACION URBANA | K9: DIRECCION DE DESARROLLO ARTESANAL Y TURISTICO (TURISMO) | L9: SUBDIRECCION DE PARQUES, JARDINES Y GESTIÓN DEL CAMBIO CLIMÁTICO DE SERVICIOS ECOSISTEMICOS Y GESTION DEL CAMBIO CLIMATICO | O9: SUBDIRECCION DE PLANEACION ESTRATEGICA | R9: Atencion y capacitacion a organizaciones vecinales en materia de participacion ciudadana | T9: Restablecer el servicio de trabajo social y psicología a Juzgados Cívicos Municipales | U9: Regularizacion de licencias en base a la ley de hacienda | V9: Implementar Sistema de Inventarios | W9: Visitas de Inspección | X9: Fortalecimiento y Desarrollo de Habilidades Blandas y Desarrollo Humano | Y9: Gestión de recursos para la adquisición de vehículos para el seguimiento de programas de los tres niveles de gobierno | Z9: Legados de Esperanza | AA9: Equipamiento para las Bibliotecas | AB9: Equipamiento de Parque Vehicular para el Suministro de Agua Potable | AC9: Prevención de riesgo de caidas | AD9: Programa para la gestión sustentable de la infraestructura y movilidad segura. | AE9: Unidad de Proximidad Policial | AF9: Talleres de Esperanza
D10: SECRETARIA DE LA CONSEJERIA JURIDICA | E10: DIRECCION DE PADRON Y LICENCIAS 1 | F10: DIRECCION DE EGRESOS | I10: DIRECCION DEL BANCO INTEGRADO DE PROYECTOS Y PROGRAMAS | L10: SUBDIRECCION DE SERVICIOS ECOSISTEMICOS Y GESTION DEL CAMBIO CLIMATICO DE PARQUES, JARDINES Y GESTIÓN DEL CAMBIO CLIMÁTICO | O10: SUBDIRECCION DE PREVENCION AL DELITO | R10: Conformacion de Organizaciones Vecinales | T10: Construcción y habilitación del espacio digno y seguro para la atención a mujeres víctimas de violencia | U10: Verificación de giros comerciales rezagados en el municipio de San Pedro Tlaquepaque | V10: Recursos Humanos eficiente | W10: Educación e Innovación Técnológica | X10: Fortalecimiento y Desarrollo de Habilidades Técnicas | Y10: Dictamen de evaluación de solicitud de obras | Z10: Líderes de Esperanza | AA10: Mantenimiento de la infraestructura de las Bibliotecas | AB10: Entrega del Vital Líquido | AC10: Ferías de la Salud Tlaquepaque | AD10: Programa para la gestión sustentable de la infraestructura básica. | AE10: Atención a las violencias en el ámbito familiar y seguimiento a Medidas/Ordenes de Protercción emitidas en razón de Género. | AF10: Programa de Atención a la Discapacidad
E11: SUBDIRECCION DE ATENCION E INSPECCION A TIANGUIS Y ESPACIOS ABIERTOS | F11: DIRECCION DE INGRESOS | I11: SECRETARIA DE PLANIFICACION, ANALISIS Y GESTION URBANA | L11: DIRECCIÓN DE CEMENTERIOS | O11: SUBDIRECCION DE PROFESIONALIZACION Y ACREDITACION POLICIAL | R11: Socializando y perifoneando para la cuidadania | T11: Difusión de la Cultura de Paz en conflictos comunitarios | U11: Verificación y regularización de residuos peligrosos y emisiones en talleres de laminado y pintura | V11: Mantenimiento preventivo y correctivo del parque vehicular | X11: Promoción de estilos de vida y entornos laboral, alimentaria y físicamente saludable para el personal | Y11: Coordinación de actividades de las direcciones que integran la Secretaría de Planificación, Análisis y Gestión Urbana | Z11: Mujeres Colibrí | AA11: Talleres de Fomento a Cultura | AB11: Actualización de Datos de Redes Hidrosanitarias | AC11: Reinstauracion de Unidad Medica La Guadalupana | AD11: Programa para la recuperación del espacio público y regeneración del tejido social | AE11: Prevención Comunitaria de las Violencias en el ámbito familiar y por razón de género. | AF11: Inclusión y Derechos Humanos de las Personas con Discapacidad
E12: SUBDIRECCION DE ATENCION E INSPECCION DE MERCADOS | F12: DIRECCION DE RECURSOS MATERIALES | O12: SUBDIRECCION DE VIALIDAD | R12: Campañas en Redes Sociales | T12: Atención primaria a problemas de adicción | U12: Regularizar comercio en espacio abierto en la colonia San Martín de las Flores | V12: Licitaciones Ejecutadas | X12: Tlaquepaque Universitario | Z12: Nutriendo Esperanza | AA12: XVLVII Premio Nacional de la Cerámica | AB12: Servicio de dictaminación ambiental | AC12: Vinculación de Asistencia Social | AD12: Programa Fortalecimiento institucional financiero y operativo, para la provisión de los servicios públicos municipales bajo criterios de calidad, eficiencia y oportunidad. | AE12: Programa Volanta | AF12: Protección y Atención ante casos de Violencia Familia
E13: SUBDIRECCION DE INSPECCION AMBIENTAL | F13: SUBDIRECCION DE COMPRAS Y ADQUISICIONES | O13: SUBDIRECCION DE VINCULACION CIUDADANA | T13: Orientación y Asesoría Jurídica | U13: Actualizar los padrones de los comerciantes de tianguis | V13: Capacitación para Adquisiciones | X13: Pago de Nóminas | Z13: Ojos mirando al Futuro | AA13: Museos a la Calle | AB13: Retiro de bienes en estado de abandono en la vía pública | AC13: Campañas de esterilización y vacunación antirrábica gratuitas | AD13: Programa de Inspección y Vigilancia de Tramites y Licencias de Construcción. | AE13: Gestión y adquisición de vehículo, equipos de computo y material, para una mejor atención eficiente y efizaz a los ciudadanos de San Pedro Tlaquepaque | AF13: Procuraduría de Protección de NNA
F14: SUBDIRECCION DE CONTROL DE PAGOS | O14: SUBDIRECCION JURIDICA Y DE DERECHOS HUMANOS | T14: Diplomado en MASC | U14: Recuperación de locales abandonados en merados municipales | V14: Porcentaje de presupuesto ejercido de acuerdo con criterios de eficiencia, austeridad y ahorro | Z14: Peques, Estancias de Esperanza | AA14: Museo Itinerante | AB14: Registro de ladrilleros | AC14: Atención Médica a Paciente Encamado a Domicilio | AD14: Trámites y Servicios | AE14: Gestión, adquisición y entrega de uniformes | AF14: Albergue Vista Hermosa
F15: SUBDIRECCION DE PATRIMONIO | O15: SUBDIRECCION OPERATIVA | T15: La Mediación con rumbo a tu Colonia | U15: Creación de un libro sobre la historia del Archivo Municipal | V15: Optimizar el proceso de pagos | Z15: Raíces Jóvenes | AA15: Exposiciones Temporales | AB15: Registro de fuentes fijas municipales | AE15: Gestión, adquisición y entrega de vehículos | AF15: Protección y Restitución de Derechos de Niñas. Niños y Adolescentes
T16: Atención y desahogo de los MASC | U16: Programa de Apoyo a la Infraestructura Cultural de los Estados PAICE | V16: Programa de elaboración y presentación de Cuentas Públicas | Z16: Semilleros de la Esperanza | AA16: Acondicionamiento y Equipamiento del Centro Cultural El Refugio | AB16: Denuncia ambiental ciudadana | AE16: Evaluaciones de Control de Confianza | AF16: Área Médica
T17: Apoyo Asuntos derivados por Secretaría | U17: Programa de capacitación para la clasificación, organización, transferencia, resguardo y consulta de información oficial | V17: Normalización e identificación de la TI | Z17: Tlaquepasos | AA17: Equipamiento del Departamento Promoción y Difusión Cultural | AB17: Adopta un árbol y dale vida al planeta | AE17: Credencialización de Personal Operativo | AF17: Laboratorio Clínico
T18: Consolidar el Sistema de Información de Acuerdos del Pleno | U18: Proyecto de digitalización para el Archivo Municipal | V18: Sistema de control de servicios | Z18: Tu Esperanza Vale | AA18: Rescatando nuestras Tradiciones | AB18: Operativo de Reforestación | AE18: Mantenimiento Preventivo de Armas | AF18: Por una Gestión Responsable
T19: Integración, Dictaminación de Iniciativas | U19: Campaña de divulgación cultural histórica del Archivo Muicipal a escuelas de educación básica en Tlaquepaque | V19: Instalación de Cámaras de Seguridad | Z19: Actividades Extraescolares | AA19: Permanencia Pueblo Mágico | AB19: Trituración de material organico para la elaboración de composta | AE19: Compra de armamento | AF19: Rehabilitación
T20: Participación en Sesiones del Ayuntamiento | U20: Coadyuvar en la creación de un convenio tripartita entre la A.C. Vifac, el Gobierno Municipal y Asociaciones religiosas de San Pedro Tlaquepaque | V20: Reingeniería Ciudadanía Digital | Z20: Re-conociendo a la labor docente y entrega de medalla al merito | AA20: Padrón Artesanal y Credencialización | AB20: Operativo Mantenimiento de áreas verdes | AE20: Compra de municiones | AF20: Atención a la Población en Condiciones de Emergencia
T21: Sitio Web de Actas y Acuerdos | U21: Servicio de atención a las necesidades de las distintas asociaciones religiosas del municipio | V21: Tramites y Servicios | Z21: Re-conociendo con bienestar | AA21: Festivales, Eventos, Ferías y Exposiciones | AB21: Operativo de podas preventivas | AE21: Compra de chalecos balísticos | AF21: Fortalecimiento Sociofamiliar
C22: Del 1 de Octubre al 31 de Diciembre del 2024 | T22: Reconstruccion del tejido social. Atencion a los grupos vulnerables. | U22: Trámite de Pasaporte Mexicano en Oficinas de Enlace de Tlaquepaque | Z22: Profesionalización Docente | AA22: Ferías y Exposiciones | AB22: Operativos de derribos secos | AE22: Elaboración de documentos y/o diagnósticos basados en evidencias | AF22: Atención Integral a personas a Adultos Mayores
C23: Del 1 de Enero al 31 de Marzo del 2025 | S23: Revisión documentos para firma Presidenta | Y23: Alerta con la diversidad funcional | Z23: Capacitación | AA23: Parque Vehicular | AD23: Coordinación de la Politica Transversal de Recontsrucción del Tejido Social | AE23: CDC
C24: Del 1 de Abril al 30 de Junio del 2025 | S24: Atención y orientación jurídica a la ciudadanía | Y24: Feria de la oferta educativa media superior y superior | Z24: Mujeres Empresarias en Tlaquepaque | AA24: Sembrando Esperanza | AD24: Sendero Seguro | AE24: Clinica Deportiva Prevención de Adicciones
C25: Del 1 de Julio al 31 de Septiembre del 2025 | S25: Capacitación Jurídica al Gobierno Municipal | Y25: Educación y capacitación para el medio ambiente | Z25: Expo Emprende y Transforma 2025 | AA25: Creadores de Esperanza para el Medio Ambiente | AD25: Programa de Participación Ciudadana (Línea Segura) | AE25: Prevención de Embarazo Adolescente
T26: Participación comisiones, comités y grupos de trabajo | Z26: Cabildo infantil y juvenil | AA26: Empleo a Tu Alcance | AB26: Gobierno con Buen Papel | AE26: Actualización de Requisitos de Permanencia | AF26: Crecer sin Violencia
Z27: Aulas tecnológicas e interáctivas | AA27: Capacitación Permanente Empresarial, Cooperativas bienes y/o Servicios y Talleres Autoempleo | AB27: Trueque | AE27: Becas para Cadetes en Formación Inicial Policía de Proximidad | AF27: Situación de Calle
Z28: Abrigando tu bienestar | AA28: Vinculación directa con empresas | AB28: El Mercadito | AE28: Formación de docentes e instructores certificados | AF28: Mejoramiento Educativo
Z29: Escuelas para el bienestar | AA29: Mantenimiento y Conservación del Centro Histórico | AB29: Hacía un futuro más limpio | AE29: Convocatoria para Selección de Personal Operativo | AF29: Prevención y Detención de abuso Sexual
Z30: Graduaciones del bienestar | AA30: Exposiciones Casa Morelos | AB30: Servicio de recolección de residuos urbanos | AE30: Formación Inicial Policía de Proximidad | AF30: Beca Joven
Z31: Adecuaciones de acceso | AA31: Agenda del Espacio Público | AB31: Fortalecimiento y adiestramiento al personal operativo | AE31: Profesionalización Continua | AF31: Cabildo Juvenil
Z32: Expanción de delagaciónes del bienestar | AB32: Plataforma de Atención Ciudadana (Reportes) | AE32: Selección y Reclutamiento para plazas operativas | AF32: Cine en tu Barrio
Z33: Bienestar Tla-li | AB33: Programa de operativos de limpieza | AE33: Centro de Atención a Niños, Niñas y Adolescentes de Tlaquepaque | AF33: Coloquios Juveniles
Z34: Bienestar sin fronteras | AB34: Acciones para el ahorro del parque vehícular | AE34: Programas Preventivos | AF34: Ciltiva-T
Z35: Bienestar con Orgullo | AB35: Rehabilitación de las instalaciones de atención de aseo público | AE35: Gabinete Psicológico | AF35: Cultura en tu escuela
Z36: Rehabilitación Permanente de Caminos Rurales | AB36: Compra de unidades | AE36: ASIPT | AF36: Enchula tu barrio
Z37: Procesadora de composta orgánica. | AB37: Servicio de fumigación para prevención del dengue y otras plagas | AE37: Cascareando por la prevención | AF37: Festival Juventudes Tlaquepaque
Z38: Pozos de absorción Tecnificados. | AB38: Sustitucion de luminarias a la red de alumbrado publico. | AE38: Trotando ando por la vida y la familia | AF38: Jóvenes con arte
Z39: Conservación y mejoramiento de suelos agrícolas | AB39: Mantenimiento y reparación de luminarias a la red de alumbrado publico. | AE39: Programa del consejo municipal de Proteccion Civil de San Pedro Tlaquepaque | AF39: Jóvenes Con-Ciencia
Z40: Compra de Balastre o Gravilla | AB40: Obtención de contenedores de basura | AE40: Programa permanente de operativos de prevencion de accidentes | AF40: Juventudes Emprendedoras
Z41: Mantenimiento Dron Agricola Agras T 30 Mark DJI mod. 2023 | AB41: Digitalizacion administrativa | AE41: Programa permanente de auxilio a la poblacion para casos de emergencia y/o desastres en San Pedro Tlaquepaque | AF41: Juventudes con historia
Z42: Detección y Vacunación de Ganado Rumiante contra la Tuberculosis y Brucela. | AB42: Compra venta de espacios | AE42: Programa de evaluacion y dictaminacion de riesgos hidrometeorologicos | AF42: Juventudes a la cancha
Z43: Hidroponía | AB43: Ampliacion y adecuacion del area de archivo de catastro de cementerios | AE43: Programa de Gestion Inetrgal del Riesgo mediante visitas de inspeccion a inmuebles | AF43: Oportunidad joven
AB44: Mejora en las instalaciones | AE44: Programa de Dictaminacion de Programas Internos de Protección Civil, Estudios Generales de Riesgos y Dictaminación y Evaluación de Riesgos | AF44: Conoce tus derechos
AB45: Capacitación Continua | AE45: Programa permanente de prevencion de riesgos mediante la capacitacion a la poblacion en general | AF45: Premio de las juventudes
AB46: Inspección Carnica | AE46: Ampliación y remodelación de Bases operativas, Base Central, Base 2 (El Sauz) y Base 4 (Parques de la Victoria) | AF46: Servicio Social Integral
AB47: Participación en campañas | AE47: Equipamiento de la Base de Bomberos | AF47: Suetertón & Jugetón
AE48: Programa de Actualización del Atlas Municipal de Riesgos de San Pedro Tlaquepaque | AF48: Tlaque-Can
AE49: Programa de profecionalización, actualización, especializada y salud integral para el personal de la Dirección de Bomberos y Protección Civil | AF49: Enfoque Transversal con Perspectiva de Género
AF50: Libres por la igualdad
AF51: Vivir sin violencia
AF52: Administración y Gestión Institucional
AF53: Macro Eventos
AF54: Via recreactiva metropolitana san pedro tlaquepaque
AF55: Infraestructura
AF56: Tlaquepaque Acude

Sheet Pbr's (hidden)
C1: 352724141 | O1: Evaluacion Anexo Cuantitativo | U1: Evaluacion Anexo Cualitativo
C2: 352724141 | F2: 336 | G2: Indicador Operativo | O2: DIMENSIÓN A MEDIR (Eficiencia/Eficacia/ Economía/Calidad) | P2: AVANCE 1 | Q2: AVANCE 2 | R2: AVANCE 3 | S2: AVANCE 4 | T2: AVANCE ACUMULADO EN PORCENTAJE | U2: AVANCE 1 | V2: AVANCE 2 | W2: AVANCE 3 | X2: AVANCE 4
C3: Secretaria | D3: Dependencia | E3: NO. | F3: Proyecto | G3: Nombre de indicador | H3: Unidad de medida | I3: Línea Base | J3: Meta | N3: Revisado | P3: Primer Trimestre (octubre-diciembre 2024) | Q3: Segundo Trimestre (enero-marzo 2025) | R3: Tercer Trimestre (abril-junio 2025) | S3: Cuarto Trimestre (julio-septiembre 2025) | U3: Primer Trimestre (octubre-diciembre 2024) | V3: Segundo Trimestre (enero-marzo 2025) | W3: Tercer Trimestre (abril-junio 2025) | X3: Cuarto Trimestre (julio-septiembre 2025) | Z3: Secretarias | AA3: Secretarias/Direcciones/Subdireciones/Departamentos | AB3: No. Total de Indicadores | AC3: Total Recibidos | AD3: % Avance
A4: =B4&F4 -> OFICINA_DE_PRESIDENCIADIRECCION DE COMUNICACION ESTRATEGICA1Campañas en Redes Sociales | B4: =C4&D4&E4 -> OFICINA_DE_PRESIDENCIADIRECCION DE COMUNICACION ESTRATEGICA1 | C4: OFICINA_DE_PRESIDENCIA | D4: DIRECCION DE COMUNICACION ESTRATEGICA | E4: =COUNTIF($D$4:D4,D4:D4) -> 1 | F4: Campañas en Redes Sociales | G4: Porcentaje de avance en la realización de campañas en Redes Sociales | H4: Número de campañas en redes sociales realizadas | I4: 0 | J4: 35 | K4: GRISELDA MEDRANO CRUZ | L4: 33 10 57 60 08 | M4: mgriselda672@gmail.com Y daniela.neri@tlaquepaque.gob.mx | O4: Eficiencia/Calidad | P4: 1 | T4: =SUM(P4:S4/J4) -> 0.02857142857 | U4: Narrativa de trimestre Octubre-diciembre: el pasado 30 de noviembre se concluyo la campaña Festival de Muertos. | Z4: =COUNTA(SECRETARIAS_DIRECCIONES) -> 16 | AA4: =COUNTA(SECRETARIASYPROYECTOS!A3:P19) -> 217 | AB4: =COUNTA(G4:G346) -> 343 | AC4: =COUNTA(P4:P346) -> 88 | AD4: =AC4/AB4 -> 0.2565597668
A5: =B5&F5 -> OFICINA_DE_PRESIDENCIADIRECCION DE ATENCION Y VINCULACION CIUDADANA1Atención a Reportes de Servicios Públicos, Información sobre Ayudas Sociales y Reportes en General | B5: OFICINA_DE_PRESIDENCIADIRECCION DE ATENCION Y VINCULACION CIUDADANA1 | C5: OFICINA_DE_PRESIDENCIA | D5: DIRECCION DE ATENCION Y VINCULACION CIUDADANA | E5: =COUNTIF($D$4:D5,D5:D5) -> 1 | F5: Atención a Reportes de Servicios Públicos, Información sobre Ayudas Sociales y Reportes en General | G5: Porcentaje de reportes atendidos mediante la plataforma de ciudadanía digital, así como de manera presencial y vía telefónica. | H5: número de reportes atendidos | I5: 7500 | J5: 9500 | K5: Lourdes Hernández Rojas | L5: 33.28.10.66.00 | M5: luhrojas.shadday@gmail.com | O5: Eficiencia | P5: 3539 | T5: =SUM(P5:S5/J5) -> 0.3725263158 | U5: En este trimeste se atendieron un total de 3539 solicitudes de la siguiente manera: 384 gestiones personalizadas, 255 gestiones de comités vecinales y se recibieron un total de 2900 llamadas tanto en conmutador así como en los teléfonos directo de esta dependencia. Las gestione se vincularon a: Alumbrado Público, Aseo Público, Agua Potable, Drenaje y Alcantarillado, Cementerios, Centro Histórico, Asuntos Religiosos, Consejería Jurídica, COMUDE, Comisaría, DIF, Drechos Humanos Municipales, Insopección de Obra, Reglamentos, Mantenimiento de Vialidades y Pavimentos, Maquinaría Pesada, Subdirección de Vialidad, Tianguis, Mecardos y Espacios Abiertos, Turismo, Unidad de Violencia de Género, Procuraduría Social, SIAPA.
A6: OFICINA_DE_PRESIDENCIASUBDIRECCION DE GESTION DE PARTICIPACION TERRITORIAL1Atención y capacitación a organizaciones vecinales en materia de participación ciudadana | B6: OFICINA_DE_PRESIDENCIASUBDIRECCION DE GESTION DE PARTICIPACION TERRITORIAL1 | C6: OFICINA_DE_PRESIDENCIA | D6: SUBDIRECCION DE GESTION DE PARTICIPACION TERRITORIAL | E6: =COUNTIF($D$4:D6,D6:D6) -> 1 | F6: Atención y capacitación a organizaciones vecinales en materia de participación ciudadana | G6: Porcentaje de avance en las atenciones a organizaciones vecinales | H6: Numero atenciones realizadas | I6: 0 | J6: 80 | K6: Octavio Cesar Huerta Diaz | L6: 3313085238 | M6: hudo77@hotmail.com | T6: =SUM(P6:S6/J6) -> 0
A7: OFICINA_DE_PRESIDENCIASUBDIRECCION DE GESTION DE PARTICIPACION TERRITORIAL2Atención y capacitación a organizaciones vecinales en materia de participación ciudadana | B7: OFICINA_DE_PRESIDENCIASUBDIRECCION DE GESTION DE PARTICIPACION TERRITORIAL2 | C7: OFICINA_DE_PRESIDENCIA | D7: SUBDIRECCION DE GESTION DE PARTICIPACION TERRITORIAL | E7: =COUNTIF($D$4:D7,D7:D7) -> 2 | F7: Atención y capacitación a organizaciones vecinales en materia de participación ciudadana | G7: Porcentaje de avance en las capacitaciones en materia de participación ciudadana | H7: número de capacitaciones realizadas | I7: 0 | J7: 60 | L7: 3313085238 | M7: hudo77@hotmail.com | T7: =SUM(P7:S7/J7) -> 0
A8: OFICINA_DE_PRESIDENCIASUBDIRECCION DE GESTION DE PARTICIPACION TERRITORIAL3Actualización de Organizaciones Vecinales | B8: OFICINA_DE_PRESIDENCIASUBDIRECCION DE GESTION DE PARTICIPACION TERRITORIAL3 | C8: OFICINA_DE_PRESIDENCIA | D8: SUBDIRECCION DE GESTION DE PARTICIPACION TERRITORIAL | E8: =COUNTIF($D$4:D8,D8:D8) -> 3 | F8: Actualización de Organizaciones Vecinales | G8: Porcentaje de avance en la conformación de organizaciones vecinales de participación ciudadana | H8: Numero de conformaciones de organizaciones vecinales, realizadas | I8: 60 | J8: 150 | K8: Octavio Cesar Huerta Diaz | L8: 3313085238 | M8: hudo77@hotmail.com | T8: =SUM(P8:S8/J8) -> 0
A9: OFICINA_DE_PRESIDENCIASUBDIRECCION DE GESTION DE PARTICIPACION TERRITORIAL4Socializando y perifoneando para la ciudadanía | B9: OFICINA_DE_PRESIDENCIASUBDIRECCION DE GESTION DE PARTICIPACION TERRITORIAL4 | C9: OFICINA_DE_PRESIDENCIA | D9: SUBDIRECCION DE GESTION DE PARTICIPACION TERRITORIAL | E9: =COUNTIF($D$4:D9,D9:D9) -> 4 | F9: Socializando y perifoneando para la ciudadanía | G9: Porcentaje de avance en el proceso de perifoneos de las acciones de gobierno, realizados | H9: Numero de perifoneos realizados | I9: 0 | J9: 350 | K9: Octavio Cesar Huerta Diaz | L9: 3313085238 | M9: hudo77@hotmail.com | T9: =SUM(P9:S9/J9) -> 0
A10: OFICINA_DE_PRESIDENCIASUBDIRECCION DE GESTION DE PARTICIPACION TERRITORIAL5Socializando y perifoneando para la ciudadanía | B10: OFICINA_DE_PRESIDENCIASUBDIRECCION DE GESTION DE PARTICIPACION TERRITORIAL5 | C10: OFICINA_DE_PRESIDENCIA | D10: SUBDIRECCION DE GESTION DE PARTICIPACION TERRITORIAL | E10: =COUNTIF($D$4:D10,D10:D10) -> 5 | F10: Socializando y perifoneando para la ciudadanía | G10: Porcentaje de avance en el proceso de difundir acciones de gobierno, mediante la socialización, realizadas | H10: Numero de socializaciones realizadas | I10: 0 | J10: 250 | K10: Octavio Cesar Huerta Diaz | L10: 3313085238 | M10: hudo77@hotmail.com | T10: =SUM(P10:S10/J10) -> 0
A11: =B11&F11 -> OFICINA_DE_PRESIDENCIASECRETARÍA GENERAL DEL AYUNTAMIENTO1Atención de asuntos designados por Presidencia | B11: =C11&D11&E11 -> OFICINA_DE_PRESIDENCIASECRETARÍA GENERAL DEL AYUNTAMIENTO1 | C11: OFICINA_DE_PRESIDENCIA | D11: SECRETARÍA GENERAL DEL AYUNTAMIENTO | E11: =COUNTIF($D$4:D11,D11:D11) -> 1 | F11: Atención de asuntos designados por Presidencia | G11: Porcentaje de gestiones realizadas | H11: Número de gestiones realizadas | I11: 0 | J11: 40 | K11: Marisol Martínez Quiroz | L11: 3310576035 | M11: cinthia.flores@tlaquepaque.gob.mx | N11: INCLUIDO | T11: =SUM(P11:S11/J11) -> 0
A12: =B12&F12 -> OFICINA_DE_PRESIDENCIASECRETARÍA GENERAL DEL AYUNTAMIENTO2Cartas de Residencia | B12: =C12&D12&E12 -> OFICINA_DE_PRESIDENCIASECRETARÍA GENERAL DEL AYUNTAMIENTO2 | C12: OFICINA_DE_PRESIDENCIA | D12: SECRETARÍA GENERAL DEL AYUNTAMIENTO | E12: =COUNTIF($D$4:D12,D12:D12) -> 2 | F12: Cartas de Residencia | G12: Porcentaje de expedición de cartas de residencia. | H12: Número de Cartas de Residencia expedidas. | I12: 0 | J12: 2440 | K12: Marisol Martínez Quiroz | L12: 3310576035 | M12: cinthia.flores@tlaquepaque.gob.mx | N12: INCLUIDO | T12: =SUM(P12:S12/J12) -> 0
A13: OFICINA_DE_PRESIDENCIASECRETARÍA GENERAL DEL AYUNTAMIENTO3Certificaciones | B13: OFICINA_DE_PRESIDENCIASECRETARÍA GENERAL DEL AYUNTAMIENTO3 | C13: OFICINA_DE_PRESIDENCIA | D13: SECRETARÍA GENERAL DEL AYUNTAMIENTO | E13: =COUNTIF($D$4:D13,D13:D13) -> 3 | F13: Certificaciones | G13: Porcentaje de certificaciones realizadas | H13: Número de Documentos Certificados | I13: 0 | J13: 6956 | K13: Marisol Martínez Quiroz | L13: 3310576035 | M13: cinthia.flores@tlaquepaque.gob.mx | N13: INCLUIDO | T13: =SUM(P13:S13/J13) -> 0
A14: OFICINA_DE_PRESIDENCIASECRETARÍA GENERAL DEL AYUNTAMIENTO4Diseño, impresión, publicación y distribución de gacetas (Gaceta Municipa | B14: OFICINA_DE_PRESIDENCIASECRETARÍA GENERAL DEL AYUNTAMIENTO4 | C14: OFICINA_DE_PRESIDENCIA | D14: SECRETARÍA GENERAL DEL AYUNTAMIENTO | E14: =COUNTIF($D$4:D14,D14:D14) -> 4 | F14: Diseño, impresión, publicación y distribución de gacetas (Gaceta Municipa | G14: Porcentaje de gacetas publicadas | H14: Número de Gacetas Publicadas | I14: 0 | J14: 12 | K14: Marisol Martínez Quiroz | L14: 3310576035 | M14: cinthia.flores@tlaquepaque.gob.mx | N14: INCLUIDO | T14: =SUM(P14:S14/J14) -> 0
A15: =B15&F15 -> OFICINA_DE_PRESIDENCIAUNIDAD DE TRANSPARENCIA1Programa de Transparencia y Atención de solicitudes de acceso a la información y protección de datos personales | B15: =C15&D15&E15 -> OFICINA_DE_PRESIDENCIAUNIDAD DE TRANSPARENCIA1 | C15: OFICINA_DE_PRESIDENCIA | D15: UNIDAD DE TRANSPARENCIA | E15: =COUNTIF($D$4:D15,D15:D15) -> 1 | F15: Programa de Transparencia y Atención de solicitudes de acceso a la información y protección de datos personales | G15: 1. Porcentaje de atención de solicitudes de acceso a la información y protección de datos personales | H15: total de solicitudes atendidas. | I15: 1800 | J15: 200 | K15: Cesar Ignacio Bocanegra Alvarado | L15: 3310576030 | M15: tlaquepaque.transparencia@gmail.com | N15: INCLUIDO | T15: =SUM(P15:S15/J15) -> 0
A16: OFICINA_DE_PRESIDENCIAUNIDAD DE TRANSPARENCIA2Programa de Transparencia y Atención de solicitudes de acceso a la información y protección de datos personales | B16: OFICINA_DE_PRESIDENCIAUNIDAD DE TRANSPARENCIA2 | C16: OFICINA_DE_PRESIDENCIA | D16: UNIDAD DE TRANSPARENCIA | E16: =COUNTIF($D$4:D16,D16:D16) -> 2 | F16: Programa de Transparencia y Atención de solicitudes de acceso a la información y protección de datos personales | G16: 2. Porcentaje de etapas de gestión realizadas para el fortalecimiento del equipamiento de la Unidad de Transparencia. | H16: Número de etapas de gestión. | I16: 0 | J16: 5 | N16: INCLUIDO | T16: =SUM(P16:S16/J16) -> 0
A17: SINDICATURASINDICATURA1Actualización de los instrumentos de control de Archivo de Tramite de la Sindicatura | B17: SINDICATURASINDICATURA1 | C17: SINDICATURA | D17: SINDICATURA | E17: =COUNTIF($D$4:D17,D17:D17) -> 1 | F17: Actualización de los instrumentos de control de Archivo de Tramite de la Sindicatura | G17: Porcentaje de etapas para la actualización de instrumentos para un archivo de tramite de la Sindicatura, realizadas | H17: Porcentaje de etapas realizadas | I17: 0 | J17: 8 | K17: Juan Manuel Rodríguez Patiño | L17: 3338386294 | M17: juan.rodriguez@tlaquepaque.gob.mx | T17: =SUM(P17:S17/J17) -> 0
A18: SINDICATURASINDICATURA2Presentación de Iniciativas de modificación de normatividad | B18: SINDICATURASINDICATURA2 | C18: SINDICATURA | D18: SINDICATURA | E18: =COUNTIF($D$4:D18,D18:D18) -> 2 | F18: Presentación de Iniciativas de modificación de normatividad | G18: Porcentaje de Iniciativas de modificación de normatividad realizadas | H18: número de iniciativas realizadas | I18: 0 | J18: 3 | K18: Juan Manuel Rodríguez Patiño | L18: 3338386294 | M18: juan.rodriguez@tlaquepaque.gob.mx | T18: =SUM(P18:S18/J18) -> 0
A19: SINDICATURADIRECCION JURIDICA1Servicios de asesoramiento legal y jurídico a la población que presenta vulnerabilidad legal e indefensión de su patrimonio | B19: SINDICATURADIRECCION JURIDICA1 | C19: SINDICATURA | D19: DIRECCION JURIDICA | E19: =COUNTIF($D$4:D19,D19:D19) -> 1 | F19: Servicios de asesoramiento legal y jurídico a la población que presenta vulnerabilidad legal e indefensión de su patrimonio | G19: Porcentaje de asesorías gratuitas en materia legal otorgadas a la población que lo requiera y solicite | H19: número de asesorias otorgadas | I19: 45 | J19: 130 | K19: Lic. José Luis de la Mora Gálvez | L19: 3310576022 | M19: maria.gomez@tlaquepaque.gob.mx | O19: Eficiencia/Calidad | P19: 9 | T19: =SUM(P19:S19/J19) -> 0.06923076923 | U19: Brindamos orientación y atención a la ciudadanía con 9 asesorias gratuitas, en materia legal a los habitantes del municipio de San Pedro Tlaquepaque, apoyando a la economía de la población y facilitandoles a los ciiudadanos, el conocimiento del marco jurídico, con el fin de que resguarden su patrimonio, además de que conozcan la materia que lo requiera, mercantil, civil, penal, administrativo, amparo, quejas, laboral, deudas, divorcios, despidos, pension alimenticia, hipotecas, custodia, comunidad de vecinos y herencia.
A20: SINDICATURADEPARTAMENTO DE MEJORA REGULATORIA1Catálogo Municipal de Trámites y Servicios | B20: =C20&D20&E20 -> SINDICATURADEPARTAMENTO DE MEJORA REGULATORIA1 | C20: SINDICATURA | D20: DEPARTAMENTO DE MEJORA REGULATORIA | E20: =COUNTIF($D$4:D20,D20:D20) -> 1 | F20: Catálogo Municipal de Trámites y Servicios | G20: Porcentaje de requerimientos para la actualización del catálogo municipal de trámites y servicios, realizados | H20: Número de requerimientos realizados | I20: 0 | J20: 57 | K20: Leticia Cuellar Mena | M20: mejoraregulatoriatlaquepaque@gmail.com | T20: =SUM(P20:S20/J20) -> 0
A21: SINDICATURADEPARTAMENTO DE CONTRATOS Y CONVENIOS1Servicio de Revisión Contratos | B21: SINDICATURADEPARTAMENTO DE CONTRATOS Y CONVENIOS1 | C21: SINDICATURA | D21: DEPARTAMENTO DE CONTRATOS Y CONVENIOS | E21: =COUNTIF($D$4:D21,D21:D21) -> 1 | F21: Servicio de Revisión Contratos | G21: Porcentaje de solicitudes de revisión de contratos para firma de la Sindicatura requerido por las áreas para la continuación y eficacia de la actividad municipal, realizadas | H21: Número de solicitudes de revisión de contratos realizadas | I21: 300 | J21: 350 | K21: IRMA ROCIO VALDEZ GONZÁLEZ | T21: =SUM(P21:S21/J21) -> 0
A22: SECRETARIA_DE_LA_CONSEJERIA_JURIDICASECRETARIA DE LA CONSEJERIA JURIDICA1Revisión Documentos Para Firma Presidenta | B22: SECRETARIA_DE_LA_CONSEJERIA_JURIDICASECRETARIA DE LA CONSEJERIA JURIDICA1 | C22: SECRETARIA_DE_LA_CONSEJERIA_JURIDICA | D22: SECRETARIA DE LA CONSEJERIA JURIDICA | E22: =COUNTIF($D$4:D22,D22:D22) -> 1 | F22: Revisión Documentos Para Firma Presidenta | G22: Porcentaje de documentos revisados para firma Presidenta | H22: Número de documentos revisados | I22: 550 | J22: 600 | K22: Lic. Mario Arturo corona Guillén | M22: mario.corona@tlaquepaque,gob.mx | T22: =SUM(P22:S22/J22) -> 0
A23: SECRETARIA_DE_LA_CONSEJERIA_JURIDICASECRETARIA DE LA CONSEJERIA JURIDICA2Atención Y Orientación Jurídica A La Ciudadanía | B23: SECRETARIA_DE_LA_CONSEJERIA_JURIDICASECRETARIA DE LA CONSEJERIA JURIDICA2 | C23: SECRETARIA_DE_LA_CONSEJERIA_JURIDICA | D23: SECRETARIA DE LA CONSEJERIA JURIDICA | E23: =COUNTIF($D$4:D23,D23:D23) -> 2 | F23: Atención Y Orientación Jurídica A La Ciudadanía | G23: Porcentaje de solicitudes de atención y orientación a la ciudadanía, realizadas | H23: Número de atenciones y orientaciones realizadas | I23: 0 | J23: 18 | K23: Lic. Mario Arturo corona Guillén | M23: mario.corona@tlaquepaque,gob.mx | T23: =SUM(P23:S23/J23) -> 0
A24: SECRETARIA_DE_LA_CONSEJERIA_JURIDICASECRETARIA DE LA CONSEJERIA JURIDICA3Capacitación Jurídica Al Gobierno Municipal | B24: SECRETARIA_DE_LA_CONSEJERIA_JURIDICASECRETARIA DE LA CONSEJERIA JURIDICA3 | C24: SECRETARIA_DE_LA_CONSEJERIA_JURIDICA | D24: SECRETARIA DE LA CONSEJERIA JURIDICA | E24: =COUNTIF($D$4:D24,D24:D24) -> 3 | F24: Capacitación Jurídica Al Gobierno Municipal | G24: Porcentaje de capacitaciones juridicas realizadas | H24: Número de capacitaciones realizadas | I24: 0 | J24: 6 | K24: Lic. Mario Arturo corona Guillén | M24: mario.corona@tlaquepaque,gob.mx | T24: =SUM(P24:S24/J24) -> 0
A25: SECRETARIA_DE_LA_CONSEJERIA_JURIDICASECRETARIA DE LA CONSEJERIA JURIDICA4Participación Comisiones, Comités Y Grupos De Trabajo | B25: SECRETARIA_DE_LA_CONSEJERIA_JURIDICASECRETARIA DE LA CONSEJERIA JURIDICA4 | C25: SECRETARIA_DE_LA_CONSEJERIA_JURIDICA | D25: SECRETARIA DE LA CONSEJERIA JURIDICA | E25: =COUNTIF($D$4:D25,D25:D25) -> 4 | F25: Participación Comisiones, Comités Y Grupos De Trabajo | G25: Porcentaje de atención a comisiones, comités, grupos de trabajo y reuniones | H25: Número de asistencia a comisiones, comités, grupos de trabajo y reuniones | I25: 0 | J25: 10 | K25: Lic. Mario Arturo Corona Guillén | M25: gerardo.hernandez@tlaquepaque.gob.mx | T25: =SUM(P25:S25/J25) -> 0
A26: SECRETARIA_DE_LA_CONSEJERIA_JURIDICADIRECCION LEGAL-CONSULTIVA1Opiniones Jurídicas | B26: SECRETARIA_DE_LA_CONSEJERIA_JURIDICADIRECCION LEGAL-CONSULTIVA1 | C26: SECRETARIA_DE_LA_CONSEJERIA_JURIDICA | D26: DIRECCION LEGAL-CONSULTIVA | E26: =COUNTIF($D$4:D26,D26:D26) -> 1 | F26: Opiniones Jurídicas | G26: Porcentaje de opiniones jurídicas emitidas | H26: Número de opiniones jurídicas emitidas | I26: 0 | J26: 10 | K26: Mtro. Gerardo Natanael Hernández Ortiz | L26: 6018 | M26: gerardo.hernandez@tlaquepaque.gob.mx | T26: =SUM(P26:S26/J26) -> 0
A27: SECRETARIA_DE_LA_CONSEJERIA_JURIDICADIRECCION LEGAL-CONSULTIVA2Consultas Y Asesoría Jurídica | B27: SECRETARIA_DE_LA_CONSEJERIA_JURIDICADIRECCION LEGAL-CONSULTIVA2 | C27: SECRETARIA_DE_LA_CONSEJERIA_JURIDICA | D27: DIRECCION LEGAL-CONSULTIVA | E27: =COUNTIF($D$4:D27,D27:D27) -> 2 | F27: Consultas Y Asesoría Jurídica | G27: Porcentaje de atención a consultas y asesoría jurídica | H27: Número de atenciones a consultas y asesorías jurídicas | I27: 0 | J27: 10 | K27: Mtro. Gerardo Natanael Hernández Ortiz | M27: gerardo.hernandez@tlaquepaque.gob.mx | T27: =SUM(P27:S27/J27) -> 0
A28: SECRETARIA_DE_LA_CONSEJERIA_JURIDICADEPARTAMENTO DE RECLUTAMIENTO MILITAR1Cartillas Militares | B28: SECRETARIA_DE_LA_CONSEJERIA_JURIDICADEPARTAMENTO DE RECLUTAMIENTO MILITAR1 | C28: SECRETARIA_DE_LA_CONSEJERIA_JURIDICA | D28: DEPARTAMENTO DE RECLUTAMIENTO MILITAR | E28: =COUNTIF($D$4:D28,D28:D28) -> 1 | F28: Cartillas Militares | G28: Porcentaje de cartillas militares expedidas en el municipio de San Pedro Tlaquepaque | H28: Cartillas Militares expedidas | I28: 857 | J28: 1000 | K28: Arnulfo Piceno Rodríguez | L28: 3310571912 y 3338371379 | M28: juntamunicipaltlq@gmail.com | O28: Eficiencia, Eficacia y Calidad | P28: 93 | T28: =SUM(P28:S28/J28) -> 0.093 | U28: Elaboramos 93 cartillas militares en el mes de octubre de 2024. Hicimos el cierre del trámite el día 15 de octubre de 2024. Realizamos el Sorteo Militar Nacional en coordinación con la XV Zona Militar y la Consejeria Jurídica el día 10 de noviembre de 2024 teniendo un total del 85 % de asistencia de los jovenes que tramitaron su cartilla en la clase 2006 y remisos. Asistimos al evento que se llevó a cabo el dia 28 de noviembre del 2024 en las instalaciones de la XV Zona Militar por la entrega de cartillas liberadas, de los jovenes que cumplieron con su servicio militar de la clase 2005 y remisos. Llevamos a cabo el sellado de las cartillas militares de los jovenes que tramitaron en la clase 2006 y remisos, del 21 noviembre al 31 de diciembre del 2024, segun el resultado del sorteo militar, obteniendo un 80 % de asistencia de los jovenes.
A29: SECRETARIA_DE_LA_CONSEJERIA_JURIDICADIRECCION DE REGISTRO CIVIL1Celebración de Matrimonios en Lugares emblemáticos | B29: SECRETARIA_DE_LA_CONSEJERIA_JURIDICADIRECCION DE REGISTRO CIVIL1 | C29: SECRETARIA_DE_LA_CONSEJERIA_JURIDICA | D29: DIRECCION DE REGISTRO CIVIL | E29: =COUNTIF($D$4:D29,D29:D29) -> 1 | F29: Celebración de Matrimonios en Lugares emblemáticos | G29: Porcentaje de actas de matrimonio levantadas, mediate celebración de matrimonios en lugares emblemáticos | H29: Número de actas levantadas | I29: 0 | J29: 100 | K29: Lic. Jorge Mendoza Ruíz/ Diana Belén Gutiérrez Muñoz | L29: 3338371378 | M29: registro.direccion98@gmail.com | O29: Eficiencia/Eficacia | P29: 0 | T29: =SUM(P29:S29/J29) -> 0 | U29: durante este periodo de tiempo, en fechas y momentos diversos, dada las limitaciones de tiempo que la responsabilidad de la Dirección del Registro Civil me impone, me apersoné y caminé, a efecto de mejor conocerlos, los siguientes lugares emblemáticos de nuestro Municipio: Capilla-Claustro Pantaleón Panduro y su explanada; la terraza que se localiza en la azotea del Centro Cultural El Refugio; los diversos pabellones y salas o recintos del mencionado Centro Cultural; el Kiosko del Parián; el Kiosko de la Delegación de Las Juntas; el Kiosko de la Delegación de Santa Anita; Templo del Sagrado Corazón de Jesús en la Delegación de San Sebastianito, entre otros lugares que no he determinado si reúnen las características y condiciones para ser parte de este programa. El proyecto ya se encuentra elaborado.
A30: SECRETARIA_DE_LA_CONSEJERIA_JURIDICADIRECCION DE REGISTRO CIVIL2Celebración de Matrimonios en Lugares emblemáticos | B30: SECRETARIA_DE_LA_CONSEJERIA_JURIDICADIRECCION DE REGISTRO CIVIL2 | C30: SECRETARIA_DE_LA_CONSEJERIA_JURIDICA | D30: DIRECCION DE REGISTRO CIVIL | E30: =COUNTIF($D$4:D30,D30:D30) -> 2 | F30: Celebración de Matrimonios en Lugares emblemáticos | G30: Porcentaje de recursos recaudados mediante la ejecucion del proyecto | H30: Recaucación por concepto de derechos | I30: 0 | J30: 500000 | O30: Economía | P30: 0 | T30: =SUM(P30:S30/J30) -> 0 | U30: durante este periodo de tiempo, en fechas y momentos diversos, dada las limitaciones de tiempo que la responsabilidad de la Dirección del Registro Civil me impone, me apersoné y caminé, a efecto de mejor conocerlos, los siguientes lugares emblemáticos de nuestro Municipio: Capilla-Claustro Pantaleón Panduro y su explanada; la terraza que se localiza en la azotea del Centro Cultural El Refugio; los diversos pabellones y salas o recintos del mencionado Centro Cultural; el Kiosko del Parián; el Kiosko de la Delegación de Las Juntas; el Kiosko de la Delegación de Santa Anita; Templo del Sagrado Corazón de Jesús en la Delegación de San Sebastianito, entre otros lugares que no he determinado si reúnen las características y condiciones para ser parte de este programa. El proyecto ya se encuentra elaborado.
A31: SECRETARIA_DE_LA_CONSEJERIA_JURIDICADIRECCION DE REGISTRO CIVIL3Celebración de Matrimonios en Lugares emblemáticos | B31: SECRETARIA_DE_LA_CONSEJERIA_JURIDICADIRECCION DE REGISTRO CIVIL3 | C31: SECRETARIA_DE_LA_CONSEJERIA_JURIDICA | D31: DIRECCION DE REGISTRO CIVIL | E31: =COUNTIF($D$4:D31,D31:D31) -> 3 | F31: Celebración de Matrimonios en Lugares emblemáticos | G31: Porcentaje de actas de matrimonio levantadas mediante la Campaña Extraordinaria de Matrimonios Colectivos | H31: Número de actas levantadas | I31: 0 | J31: 300 | K31: Lic. Jorge Mendoza Ruíz/ Diana Belén Gutiérrez Muñoz | L31: 3338371378 | M31: registro.direccion98@gmail.com | O31: Eficiencia/Eficacia | P31: 0 | T31: =SUM(P31:S31/J31) -> 0 | U31: No se tenía contemplada durante este primer trimestre
A32: SECRETARIA_DE_LA_CONSEJERIA_JURIDICAOFICINA DEL REGISTRO CIVIL NO. 11Campaña de Integración Familiar 2025 | B32: SECRETARIA_DE_LA_CONSEJERIA_JURIDICAOFICINA DEL REGISTRO CIVIL NO. 11 | C32: SECRETARIA_DE_LA_CONSEJERIA_JURIDICA | D32: OFICINA DEL REGISTRO CIVIL NO. 1 | E32: =COUNTIF($D$4:D32,D32:D32) -> 1 | F32: Campaña de Integración Familiar 2025 | G32: Porcentaje de actas de matrimonio realizadas en la Campaña de Integración Familiar 2025 | H32: Número de actas realizadas | I32: 785 | J32: 900 | K32: Licenciado Jorge Mendoza Ruiz / Diana Belén Gutiérrez Muñoz | L32: 3837 1378 | M32: registro.direccion98@gmail.com | O32: Eficiencia/Eficacia | P32: 0 | T32: =SUM(P32:S32/J32) -> 0 | U32: En el mes de octubre, en reunión de Dirección del Registro Civil para la realización de los Pbr 2024-2025 de nuestra dependencia, se estableció como fecha de inicio para la Campaña de Integración Familiar 2025 los meses de mayo y junio (2 de mayo al 30 de junio) toda vez que varios años atrás se ejecutaba en esa temporada y la población tiene por costumbre esperar a esas fechas para aprovechar las facilidades para los trámites que se ofrecen, como los son: Matrimonios colectivos (parejas con hijos), registros extemporáneos (personas que no han sido registradas) y reconocimiento de hijos (niños, niñas y/o adolescentes que fueron registrados como hijos de madre soltera y el progenitor declara ser el Padre del menor); ya que los servicios son a título de Gratuito y con un mínimo de requisitos (siempre apegados a la ley). Una vez establecida la fecha, hemos emitido en el mes de diciembre, el oficio correspondiente a la Dirección General del Registro Civil del Estado para solicitar su autorización, mismo que ya ha sido enviado a su destinatario para su revisión y aprobación.
A33: SECRETARIA_DE_LA_CONSEJERIA_JURIDICAOFICINA DEL REGISTRO CIVIL NO. 12Campaña de Integración Familiar 2025 | B33: SECRETARIA_DE_LA_CONSEJERIA_JURIDICAOFICINA DEL REGISTRO CIVIL NO. 12 | C33: SECRETARIA_DE_LA_CONSEJERIA_JURIDICA | D33: OFICINA DEL REGISTRO CIVIL NO. 1 | E33: =COUNTIF($D$4:D33,D33:D33) -> 2 | F33: Campaña de Integración Familiar 2025 | G33: Porcentaje de actas extemporaneas levantadas en 2025 con respecto a las actas extemporaneas levantadas en 2024, mediante la Campaña de Integración Familiar | H33: Número de actas levantadas en 2025 | I33: 222 | J33: 200 | K33: Licenciado Jorge Mendoza Ruiz / Diana Belén Gutiérrez Muñoz | L33: 3837 1378 | M33: registro.direccion98@gmail.com | O33: Eficiencia/Eficacia | P33: 0 | T33: =SUM(P33:S33/J33) -> 0 | U33: En el mes de octubre, en reunión de Dirección del Registro Civil para la realización de los Pbr 2024-2025 de nuestra dependencia, se estableció como fecha de inicio para la Campaña de Integración Familiar 2025 los meses de mayo y junio (2 de mayo al 30 de junio) toda vez que varios años atrás se ejecutaba en esa temporada y la población tiene por costumbre esperar a esas fechas para aprovechar las facilidades para los trámites que se ofrecen, como los son: Matrimonios colectivos (parejas con hijos), registros extemporáneos (personas que no han sido registradas) y reconocimiento de hijos (niños, niñas y/o adolescentes que fueron registrados como hijos de madre soltera y el progenitor declara ser el Padre del menor); ya que los servicios son a título de Gratuito y con un mínimo de requisitos (siempre apegados a la ley). Una vez establecida la fecha, hemos emitido en el mes de diciembre, el oficio correspondiente a la Dirección General del Registro Civil del Estado para solicitar su autorización, mismo que ya ha sido enviado a su destinatario para su revisión y aprobación.
A34: SECRETARIA_DE_LA_CONSEJERIA_JURIDICAOFICINA DEL REGISTRO CIVIL NO. 13Campaña de Integración Familiar 2025 | B34: SECRETARIA_DE_LA_CONSEJERIA_JURIDICAOFICINA DEL REGISTRO CIVIL NO. 13 | C34: SECRETARIA_DE_LA_CONSEJERIA_JURIDICA | D34: OFICINA DEL REGISTRO CIVIL NO. 1 | E34: =COUNTIF($D$4:D34,D34:D34) -> 3 | F34: Campaña de Integración Familiar 2025 | G34: Porcentaje de actas de reconocimiento de hijos en la Campaña de Integración Familiar 2025 | H34: Número de actas realizadas | I34: 65 | J34: 70 | K34: Licenciado Jorge Mendoza Ruiz / Diana Belén Gutiérrez Muñoz | L34: 3837 1378 | M34: registro.direccion98@gmail.com | O34: Eficiencia/Eficacia | P34: 0 | T34: =SUM(P34:S34/J34) -> 0 | U34: En el mes de octubre, en reunión de Dirección del Registro Civil para la realización de los Pbr 2024-2025 de nuestra dependencia, se estableció como fecha de inicio para la Campaña de Integración Familiar 2025 los meses de mayo y junio (2 de mayo al 30 de junio) toda vez que varios años atrás se ejecutaba en esa temporada y la población tiene por costumbre esperar a esas fechas para aprovechar las facilidades para los trámites que se ofrecen, como los son: Matrimonios colectivos (parejas con hijos), registros extemporáneos (personas que no han sido registradas) y reconocimiento de hijos (niños, niñas y/o adolescentes que fueron registrados como hijos de madre soltera y el progenitor declara ser el Padre del menor); ya que los servicios son a título de Gratuito y con un mínimo de requisitos (siempre apegados a la ley). Una vez establecida la fecha, hemos emitido en el mes de diciembre, el oficio correspondiente a la Dirección General del Registro Civil del Estado para solicitar su autorización, mismo que ya ha sido enviado a su destinatario para su revisión y aprobación.
A35: SECRETARIA_DE_LA_CONSEJERIA_JURIDICADIRECCION DE MEDIACION Y JUZGADOS CIVICOS MUNICIPALES1Calificación de Actas de Infracción | B35: SECRETARIA_DE_LA_CONSEJERIA_JURIDICADIRECCION DE MEDIACION Y JUZGADOS CIVICOS MUNICIPALES1 | C35: SECRETARIA_DE_LA_CONSEJERIA_JURIDICA | D35: DIRECCION DE MEDIACION Y JUZGADOS CIVICOS MUNICIPALES | E35: =COUNTIF($D$4:D35,D35:D35) -> 1 | F35: Calificación de Actas de Infracción | G35: Porcentaje de actas de infracción, calificadas | H35: Número de actas calificadas | I35: 0 | J35: 4000 | K35: Lic. Juan Manuel Martínez Orozco | L35: 33-35-98-21-11 | M35: jmabogadosjuris@gmail.com | O35: Eficiencia | P35: 1331 | T35: =SUM(P35:S35/J35) -> 0.33275 | U35: Se han realizado un total de 1,331 folios de calificacion de los cuales 1,261 son de escritorio (son infracciones que nos envian las diversas dependencias de inspeccion para su calificacion que no son atendidas por el ciudadano) y se mandaron a la tesoreria municipal para requerir el cobro a traves de un credito fiscal. Se a dado el derecho de audiencia a 70 ciudadanos a los cuales se realizo la calificacion de la infraccion para el pago correspondiente a la tesoreria municipal.
A36: SECRETARIA_DE_LA_CONSEJERIA_JURIDICADIRECCION DE MEDIACION Y JUZGADOS CIVICOS MUNICIPALES2Difusión de la Cultura de Paz en conflictos comunitarios | B36: SECRETARIA_DE_LA_CONSEJERIA_JURIDICADIRECCION DE MEDIACION Y JUZGADOS CIVICOS MUNICIPALES2 | C36: SECRETARIA_DE_LA_CONSEJERIA_JURIDICA | D36: DIRECCION DE MEDIACION Y JUZGADOS CIVICOS MUNICIPALES | E36: =COUNTIF($D$4:D36,D36:D36) -> 2 | F36: Difusión de la Cultura de Paz en conflictos comunitarios | G36: Porcentaje de colonias atendidas mediante platicas de difusión de cultura de paz en confictos comunitarios | H36: Número de colonias atendidas | I36: 0 | J36: 20 | K36: CLAUDIA LARA GARZA | L36: 3310576279 | M36: municipaljuez@gmail.com | O36: Eficiencia/Eficacia | P36: 0 | T36: =SUM(P36:S36/J36) -> 0 | U36: Con el apoyo de la georeferencia que se hace internamente de incidencias de faltas administratvias por colonias del municipio; en noviembre iniciamos con la logistica para las primeras visitas a colonias con la colaboración de las delegaciones que correspondan.-
A37: SECRETARIA_DE_LA_CONSEJERIA_JURIDICADIRECCION DE MEDIACION Y JUZGADOS CIVICOS MUNICIPALES3Orientación y Asesoría Jurídica | B37: SECRETARIA_DE_LA_CONSEJERIA_JURIDICADIRECCION DE MEDIACION Y JUZGADOS CIVICOS MUNICIPALES3 | C37: SECRETARIA_DE_LA_CONSEJERIA_JURIDICA | D37: DIRECCION DE MEDIACION Y JUZGADOS CIVICOS MUNICIPALES | E37: =COUNTIF($D$4:D37,D37:D37) -> 3 | F37: Orientación y Asesoría Jurídica | G37: Porcentaje de asesorías jurídicas para la Resolución de Conflictos, brindadas | H37: Número de asesorías Jurídicas brindadas | I37: 1000 | J37: 1000 | K37: Lic. Luis Eduardo López Ramírez | L37: 3338423000 | M37: lic_eduardo19@hotmail.com | O37: Eficiencia/Calidad | P37: 225 | T37: =SUM(P37:S37/J37) -> 0.225 | U37: En éste primer trimestre se brindaroon a los ciudadanos de nuestro municipio y ciudadanos de municipios de la zona metrpolitana apoyo para orientación y asesoría jurídica, motivo por el cual se otorgaron 225 asesorías en diversos asuntos legales y administrativos, tanto en materia comunitaria, civil, familiar y mercantil, logrando que algunos conforme a nuestra competencia fueran desahogados por los Métodos Alternos y los de caracter administrativo derivados a dependencias de nuestro municipio para su mejor atención y los de carácter legal a la Procuraduría Social en el Estado de Jalisco para la asignación de un abogado gratuito que les llevé su asunto ante las instancias judiciales que correspondan.
A38: SECRETARIA_DE_LA_CONSEJERIA_JURIDICADIRECCION DE MEDIACION Y JUZGADOS CIVICOS MUNICIPALES4La Mediación Con Rumbo A Tu Colonia | B38: SECRETARIA_DE_LA_CONSEJERIA_JURIDICADIRECCION DE MEDIACION Y JUZGADOS CIVICOS MUNICIPALES4 | C38: SECRETARIA_DE_LA_CONSEJERIA_JURIDICA | D38: DIRECCION DE MEDIACION Y JUZGADOS CIVICOS MUNICIPALES | E38: =COUNTIF($D$4:D38,D38:D38) -> 4 | F38: La Mediación Con Rumbo A Tu Colonia | G38: Porcentaje de capacitaciones de "Mediación y Conciliación con rumbo a tu Colonia", realizadas | H38: Número de capacitaciones realizadas | I38: 0 | J38: 12 | K38: Lic. Luis Eduardo López Ramírez | L38: 3338423000 | M38: lic_eduardo19@hotmail.com | O38: Eficiencia/Calidad | P38: 0 | T38: =SUM(P38:S38/J38) -> 0 | U38: Se ha trabajado en concretar la aprobación por parte de nuestro superior jerárquico del material y proyecto, para con ello realizar en primer lugar la reunión con regidores y delegados de nuestro municipio para exponer el mismo y de ahí proceder a otoprgar capacitaciones a la ciudadanía con el apoyo de los líderes de las colonias de nuestro muncipio, trabajando en realizar la calendarización de las reuniones para concientizar a la ciudadanía de la relevancia del procedimiento y los convenios que se logran en el Centro Público de Mediación conforme los lineamientos de la Ley de Justicia Alternativa; de la misma manera se ha buscado coadyuvar con la estructura de organización que se maneja en la Dirección de Participación Ciudadna y la Dirección de delegaciones y Agencias municipales con el fin de lograr un enlace directo que sea el contacto para direccionar al ciudadano para una atención integral de acuerdo a los MASC.- Nota: El trabajo de escritorio esta realizado para comenzar a proyectarlo, solo se esta en espera de la autorización para dar el siguiente paso a las reuniones informativas.-
A39: SECRETARIA_DE_LA_CONSEJERIA_JURIDICADIRECCION DE MEDIACION Y JUZGADOS CIVICOS MUNICIPALES5Atención y desahogo de los MASC | B39: SECRETARIA_DE_LA_CONSEJERIA_JURIDICADIRECCION DE MEDIACION Y JUZGADOS CIVICOS MUNICIPALES5 | C39: SECRETARIA_DE_LA_CONSEJERIA_JURIDICA | D39: DIRECCION DE MEDIACION Y JUZGADOS CIVICOS MUNICIPALES | E39: =COUNTIF($D$4:D39,D39:D39) -> 5 | F39: Atención y desahogo de los MASC | G39: Porcentaje de expedientes de mediación integrados | H39: Número de expedientes integrados | I39: 700 | J39: 700 | K39: Lic. Luis Eduardo López Ramírez | L39: 3338423000 | M39: lic_eduardo19@hotmail.com | O39: Eficiencia | P39: 157 | T39: =SUM(P39:S39/J39) -> 0.2242857143 | U39: En el primer trimestre se otorgaron a la ciudadanía el desahogo de los Procedimientos de Métodos Alternos de Solución de Conflictos, realizando solicitudes de atención, enviando las invitaciones a las partes en el proceso de mediación, desahogando las audiencias de mediación y llevando a cabo los convenios de carácter administrativo y legal que dan por terminado los conflictos entre los ciudadanos; por lo cual en el trimestre hemos atendido 157 nuevas solicitudes de mediación, llevando a cabo el desahogo de 225 audiencias, teniendo éxito y conclusión en 71 convenios finales, beneficiando a un amplio sector de nuestra ciudadanía contribuyendo para la igualdad y seguridad de los derechos entre los ciudadanos, apoyando para respetar y contribuir en beneficio de los derechos de los adultos mayores, niños, niñas y adolescentes, conforme a las leyes que rigen y de acuerdo a priorizar una Cultura de la Paz.-
A40: SECRETARIA_DE_LA_CONSEJERIA_JURIDICADIRECCION DE MEDIACION Y JUZGADOS CIVICOS MUNICIPALES6Atención y desahogo de los MASC | B40: SECRETARIA_DE_LA_CONSEJERIA_JURIDICADIRECCION DE MEDIACION Y JUZGADOS CIVICOS MUNICIPALES6 | C40: SECRETARIA_DE_LA_CONSEJERIA_JURIDICA | D40: DIRECCION DE MEDIACION Y JUZGADOS CIVICOS MUNICIPALES | E40: =COUNTIF($D$4:D40,D40:D40) -> 6 | F40: Atención y desahogo de los MASC | G40: Porcentaje de procedimientos concluidos y con convenio final realizados | H40: Número de convenios realizados | I40: 350 | J40: 350 | K40: Lic. Luis Eduardo López Ramírez | L40: 3338423000 | M40: lic_eduardo19@hotmail.com | O40: Eficiencia | P40: 71 | T40: =SUM(P40:S40/J40) -> 0.2028571429 | U40: En el primer trimestre de acuerdo al desahogo de los Procedimientos de Métodos Alternos de Solución de Conflictos, se llevaron a cabo el desahogo de 225 audiencias, teniendo éxito y conclusión en 71 convenios finales, de los cuales 26 fueron enviados al Instituto de Justicia Alternativa para su debida legalización, beneficiando a un amplio sector de nuestra ciudadanía contribuyendo para la igualdad y seguridad de los derechos entre los ciudadanos, apoyando para respetar y contribuir en beneficio de los derechos de los adultos mayores, niños, niñas y adolescentes, conforme a las leyes que rigen y de acuerdo a priorizar una Cultura de la Paz.-
A41: SECRETARIA_DE_LA_CONSEJERIA_JURIDICADIRECCION DE MEDIACION Y JUZGADOS CIVICOS MUNICIPALES7Servicio de trabajo social y psicología a Juzgados Cívicos Municipales | B41: SECRETARIA_DE_LA_CONSEJERIA_JURIDICADIRECCION DE MEDIACION Y JUZGADOS CIVICOS MUNICIPALES7 | C41: SECRETARIA_DE_LA_CONSEJERIA_JURIDICA | D41: DIRECCION DE MEDIACION Y JUZGADOS CIVICOS MUNICIPALES | E41: =COUNTIF($D$4:D41,D41:D41) -> 7 | F41: Servicio de trabajo social y psicología a Juzgados Cívicos Municipales | G41: Porcentaje de etapas de gestión para la incorporación de personal de trabajo social y/o psicología a los Juzgados Civicos, realizadas | H41: número de etapas de gestión | I41: 0 | J41: 3 | K41: Lic. Claudia Lara Garza | M41: municipaljuez@gmail.com | O41: Eficiencia/Calidad | P41: 0 | T41: =SUM(P41:S41/J41) -> 0 | U41: Mediante la asignación del Departamento de Capacitación y Servkicio Social de estudiantes prestadores de servicios y practicantes profesionales de la carrera de Trabajo Social y Psicología; continuamos con los trabajos y programas pilotos de tamizajes y entrevistas, tanto a personas que son detenidas o ciudadanía
A42: SECRETARIA_DE_LA_CONSEJERIA_JURIDICADIRECCION DE APOYO A CABILDO1Sitio Web de Actas y Acuerdos | B42: SECRETARIA_DE_LA_CONSEJERIA_JURIDICADIRECCION DE APOYO A CABILDO1 | C42: SECRETARIA_DE_LA_CONSEJERIA_JURIDICA | D42: DIRECCION DE APOYO A CABILDO | E42: =COUNTIF($D$4:D42,D42:D42) -> 1 | F42: Sitio Web de Actas y Acuerdos | G42: Porcentaje de avance en las etapas de actualización del Sitio Web de Actas y Acuerdos | H42: Número de etapas realizadas | I42: 4 | J42: 5 | K42: Marisol Martínez Quiroz | L42: 3310576035 | M42: apoyoacomisiones@gmail.com | O42: Eficiencia/Economía | P42: 1 | T42: =SUM(P42:S42/J42) -> 0.2 | U42: Actualizamos en el periodo octubre-diciembre el sitio web de “Actas y Acuerdos” con toda la información que se generó en cada una de las 6 Sesiones ordinarias, 1 sesión solemne y 1 sesión extraordinaria del periodo. En la sección de Sesiones del Pleno la actualización consistió en: Convocatoria y orden del día, Puntos de Acuerdo, Actas en Versión Estenográfica (se subieron las actas del del 27 de agosto, 09 de septiembre (solemne, 26 de septiembre, 30 de septiembre, 01 de octubre (solemne), 01 de octubre (extraordinaria) 18 de octubre, 29 de octubre, 15 de noviembre, 29 de noviembre y 02 de diciembre), Base de datos (documento que contiene cada uno de los acuerdos que se generan en las sesiones de cabildo). Asimismo, también se realizaron actualizaciones en el apartado de “Comisiones Edilicias”: el Calendario de Sesiones de Comisiones Edilicias, según llegaba la información proporcionada por los regidores se actualizaba la página; las convocatorias a las sesiones de comisión, mismo que fue se encuentra en la página. En lo que refiere a “Gacetas” se subieron los tomos Gaceta Municipal 1 Fecha de Publicación 01 de octubre 2024, Tomo II Fecha de publicación 11 de octubre 2024, Tomo III fecha de publicación 11 de octubre, Tomo IV fecha de publicación 26 de octubre 2024, Tomo V fecha de publicación 12 de noviembre 2024, Tomo VI fecha de publicación 25 de noviembre 2024 y Tomo VII fecha de publicación 30 de diciembre 2024; asimismo actualizamos los reglamentos que fueron modificados por las comisiones y aprobados por el pleno. Subimos la información al “Sistema de Información de Acuerdos del Pleno” que se localiza en el apartado de “Sesiones del Pleno” pero se despliega una plataforma en la cual subimos los acuerdos aprobados en cada Sesión de Cabildo junto con la iniciativa que lo motiva. En total fueron 9 acuerdos en la Sesión Solemne del 01 de octubre , 4 acuerdos de la Sesión Extraordinaria del 01 octubre, 3 acuerdos de la Sesión del 18 de octubre, 2 acuerdos de la Sesión 29 de octubre, 13 acuerdos de la Sesión del 15 de noviembre 01 acuerdo de la Sesión del 02 de diciembre y 01 acuerdo de la Sesión del 16 de diciembre; Asimismo, enviamos a cada una de las dependencias según corresponda, la información relativa a realizarse. Para poder llevar a cabo las actividades del Sitio Web nos apoyamos en la Dirección de Procesos e Informática. La política transversal que rige a esta área es Derechos Humanos y la cumplimentamos con el acceso a la información.
A43: SECRETARIA_DE_LA_CONSEJERIA_JURIDICADIRECCION DE APOYO A CABILDO2Participación En Sesiones Del Ayuntamiento | B43: SECRETARIA_DE_LA_CONSEJERIA_JURIDICADIRECCION DE APOYO A CABILDO2 | C43: SECRETARIA_DE_LA_CONSEJERIA_JURIDICA | D43: DIRECCION DE APOYO A CABILDO | E43: =COUNTIF($D$4:D43,D43:D43) -> 2 | F43: Participación En Sesiones Del Ayuntamiento | G43: Porcentaje de Sesiones del Pleno realizadas | H43: Sesiones realizadas | I43: 0 | J43: 12 | K43: Marisol Martínez Quiroz | L43: 3310576035 | M43: apoyoacomisiones@gmail.com | O43: Eficiecia/Eficacia | P43: 8 | T43: =SUM(P43:S43/J43) -> 0.6666666667 | U43: Realizamos una serie de actividades para el buen desarrollo de las 6 Sesiones ordinarias, 1sesión solemne con motivo de la Integración de la Administración Municipal 2024-2027 y 1 sesión extraordinaria; se elaboró la Convocatoria para cada uno de los integrantes de cabildo; así como la guía para la sesión, la cual contempla el desarrollo de la misma; el seguimiento y desarrollo de acuerdos tomados durante la sesión de los cuales se generaron 9 acuerdos en la Sesión Solemne del 01 de octubre , 4 acuerdos de la Sesión Extraordinaria del 01 octubre, 3 acuerdos de la Sesión del 18 de octubre, 2 acuerdos de la Sesión 29 de octubre, 13 acuerdos de la Sesión del 15 de noviembre 01 acuerdo de la Sesión del 02 de diciembre y 01 acuerdo de la Sesión del 16 de diciembre; 96 notificaciones de las Sesiones del 01 de octubre, 32 notificaciones de la Sesión del 18 de octubre, 7 notificaciones del sesión del 29 de octubre, 38 notificaciones de la Sesión del 15 de noviembre, 10 notificaciones del 02 de diciembre y 9 notificaciones del 16 de diciembre; al término de cada Sesión se inicia la transcripción del acta de cabildo y concluimos las de las sesiones del del 27 de agosto, 09 de septiembre (solemne, 26 de septiembre, 30 de septiembre, 01 de octubre (solemne), 01 de octubre (extraordinaria) 18 de octubre, 29 de octubre, 15 de noviembre, 29 de noviembre y 02 de diciembre; publicamos en la página de Actas y Acuerdos y en la Plataforma del Sistema de Información de Acuerdos todo lo inherente a las Sesiones para que la ciudadanía tenga un fácil y oportuno acceso a la información; además realizamos la gestión de exhortos y solicitudes que fueron emitidas durante cada una de las sesiones. Para poder llevar a cabo algunas de las actividades de la Sesión contamos con la ayuda de otras áreas, como la Unidad de Transparencia que se encarga de transmitir en vivo cada sesión para que la ciudadanía se informe al momento de las decisiones que toman los ediles, así mismo nos apoya la Coordinación de Comunicación y Análisis Estratégicos en el mismo tenor. Asimismo, toda la información de las iniciativas que se presentan para votación en el pleno fue circulada de manera electrónica, siguiendo los protocolos de sanidad y austeridad.
A44: SECRETARIA_DE_LA_CONSEJERIA_JURIDICADIRECCION DE APOYO A CABILDO3Integración, Dictaminación de Iniciativas | B44: SECRETARIA_DE_LA_CONSEJERIA_JURIDICADIRECCION DE APOYO A CABILDO3 | C44: SECRETARIA_DE_LA_CONSEJERIA_JURIDICA | D44: DIRECCION DE APOYO A CABILDO | E44: =COUNTIF($D$4:D44,D44:D44) -> 3 | F44: Integración, Dictaminación de Iniciativas | G44: Porcentaje de Iniciativas elaboradas | H44: Número de iniciativas elaboradas | I44: 0 | J44: 40 | K44: Marisol Martínez Quiroz | L44: 3310576035 | M44: apoyoacomisiones@gmail.com | O44: Calidad | P44: 28 | T44: =SUM(P44:S44/J44) -> 0.7 | U44: Apoyamos en el periodo de octubre-diciembre con la redacción y asesoría de dictámenes e iniciativas a la Presidenta y las regidoras y regidores que nos solicitaron en el periodo. Se apoyó en total con 28 iniciativas desglosándose de la siguiente manera: en octubre se apoyó con 21, en noviembre con 5 y diciembre con 2. Nos vinculamos con otras dependencias del gobierno para solicitar información para poder realizar adecuadamente lo que se nos requirió.
A45: SECRETARIA_DE_LA_CONSEJERIA_JURIDICADIRECCION DE APOYO A CABILDO4Consolidar El Sistema De Información De Acuerdos Del Pleno | B45: SECRETARIA_DE_LA_CONSEJERIA_JURIDICADIRECCION DE APOYO A CABILDO4 | C45: SECRETARIA_DE_LA_CONSEJERIA_JURIDICA | D45: DIRECCION DE APOYO A CABILDO | E45: =COUNTIF($D$4:D45,D45:D45) -> 4 | F45: Consolidar El Sistema De Información De Acuerdos Del Pleno | G45: Porcentaje de avance en la identificación del estatus que guardan los puntos de acuerdo aprobados por el pleno del ayuntamiento | H45: Número de puntos de acuerdo identificados en estatus de seguimiento | I45: 0 | J45: 40 | K45: Marisol Martínez Quiroz | L45: 3310576035 | M45: apoyoacomisiones@gmail.com | O45: Eficiencia | P45: 10 | T45: =SUM(P45:S45/J45) -> 0.25 | U45: En el periodo octubre-diciembre, se realizaron 10 cambios en los estatus de los acuerdos en el sistema, por la información obtenida en las sesiones del pleno. estamos en coordinación con la Dirección de Informática debido a los cambios que hubo en el reglamento de gobierno y el de administración las dependencias del gobierno cambiaron de nombre y la estructura de la administración se vio modificada, por tal se están realizando los ajustes al sistema para adecuarlo a las nuevas disposiciones.
A46: SECRETARIA_DE_LA_CONSEJERIA_JURIDICADIRECCION DE APOYO A CABILDO5Apoyo Asuntos derivados por Secretaría | B46: SECRETARIA_DE_LA_CONSEJERIA_JURIDICADIRECCION DE APOYO A CABILDO5 | C46: SECRETARIA_DE_LA_CONSEJERIA_JURIDICA | D46: DIRECCION DE APOYO A CABILDO | E46: =COUNTIF($D$4:D46,D46:D46) -> 5 | F46: Apoyo Asuntos derivados por Secretaría | G46: Porcentaje de actividades derivadas atendidas. | H46: Número de actividades atendidas. | I46: 0 | J46: 40 | K46: Marisol Martínez Quiroz | L46: 3310576035 | M46: apoyoacomisiones@gmail.com | O46: Eficiencia | P46: 10 | T46: =SUM(P46:S46/J46) -> 0.25 | U46: Apoyamos a la Secretaría General con las siguientes actividades durante el periodo octubre diciembre: regularización de predios rústicos, certificación de firmas e identidades de Cooperativas de S. C. R. L de C. V., certificaciones, edictos, oficios para informar de los Acuerdos Legislativos, las gestiones de las instrucciones que le asigna la Presidenta al Secretario en las Sesiones del Pleno, agendar las sesiones de las comisiones edilicias, solicitudes de transparencia, apoyo a cartas de residencia y contestación de amparos. Sumando 10 actividades diferentes.
A47: SECRETARIA_DE_LA_CONSEJERIA_JURIDICADIRECCION DE DERECHOS HUMANOS1Atención a los grupos vulnerables. | B47: SECRETARIA_DE_LA_CONSEJERIA_JURIDICADIRECCION DE DERECHOS HUMANOS1 | C47: SECRETARIA_DE_LA_CONSEJERIA_JURIDICA | D47: DIRECCION DE DERECHOS HUMANOS | E47: =COUNTIF($D$4:D47,D47:D47) -> 1 | F47: Atención a los grupos vulnerables. | G47: Porcentaje de colonias intervenidas en atencion a servicios generales, proteccion de sus derechos y administracion eficiente de los recursos. | H47: No. de colonias intervenidas | I47: 40 | J47: 60 | K47: Bertha Castellanos | M47: bertha.castellanos@tlaquepaque.gob.mx | T47: =SUM(P47:S47/J47) -> 0
A48: SECRETARIA_DE_LA_CONSEJERIA_JURIDICASUBDIRECCIÓN DE APOYO A COMISIONES1Adecuación de Sala de Juntas (Pleno) | B48: SECRETARIA_DE_LA_CONSEJERIA_JURIDICASUBDIRECCIÓN DE APOYO A COMISIONES1 | C48: SECRETARIA_DE_LA_CONSEJERIA_JURIDICA | D48: SUBDIRECCIÓN DE APOYO A COMISIONES | E48: =COUNTIF($D$4:D48,D48:D48) -> 1 | F48: Adecuación de Sala de Juntas (Pleno) | G48: Porcentaje de adecuaciones a la Sala de Juntas (Pleno) realizadas | H48: Número de adecuaciones realizadas | I48: 0 | J48: 2 | K48: Marisol Martínez Quiroz | L48: 3310576035 | M48: cinthia.flores@tlaquepaque.gob.mx | T48: =SUM(P48:S48/J48) -> 0
A49: SECRETARIA_DE_LA_CONSEJERIA_JURIDICASUBDIRECCIÓN DE APOYO A COMISIONES2Adecuación de Sala de Juntas (Pleno) | B49: SECRETARIA_DE_LA_CONSEJERIA_JURIDICASUBDIRECCIÓN DE APOYO A COMISIONES2 | C49: SECRETARIA_DE_LA_CONSEJERIA_JURIDICA | D49: SUBDIRECCIÓN DE APOYO A COMISIONES | E49: =COUNTIF($D$4:D49,D49:D49) -> 2 | F49: Adecuación de Sala de Juntas (Pleno) | G49: Porcentaje de Reuniones de reuniones celebradas en la Sala de Juntas | H49: Número de reuniones celebradas | I49: 0 | J49: 400 | T49: =SUM(P49:S49/J49) -> 0
A50: SECRETARIA_DE_GOBERNANZA_Y_TERRITORIODIRECCION DE DELEGACIONES Y AGENCIAS1Atención a Solicitudes Ciudadanas | B50: SECRETARIA_DE_GOBERNANZA_Y_TERRITORIODIRECCION DE DELEGACIONES Y AGENCIAS1 | C50: SECRETARIA_DE_GOBERNANZA_Y_TERRITORIO | D50: DIRECCION DE DELEGACIONES Y AGENCIAS | E50: =COUNTIF($D$4:D50,D50:D50) -> 1 | F50: Atención a Solicitudes Ciudadanas | G50: porcentaje de solicitudes canalizadas para su atencion | H50: Número de solicitudes canalizadas | I50: 1740 | J50: 2000 | K50: JOSE ALFREDO ZAPATA SILVA | L50: 3336572403 | M50: direccion.delegaciones@tlaquepaque.gob.mx | T50: =SUM(P50:S50/J50) -> 0
A51: SECRETARIA_DE_GOBERNANZA_Y_TERRITORIODIRECCION DE DELEGACIONES Y AGENCIAS2Brigadas de Mantenimiento y Recuperación de Espacios Públicos | B51: SECRETARIA_DE_GOBERNANZA_Y_TERRITORIODIRECCION DE DELEGACIONES Y AGENCIAS2 | C51: SECRETARIA_DE_GOBERNANZA_Y_TERRITORIO | D51: DIRECCION DE DELEGACIONES Y AGENCIAS | E51: =COUNTIF($D$4:D51,D51:D51) -> 2 | F51: Brigadas de Mantenimiento y Recuperación de Espacios Públicos | G51: porcentaje de brigadas y recuperacion de espacios | H51: numero de brigadas y recueracion de espacios | I51: 77 | J51: 85 | K51: JOSE ALFREDO ZAPATA SILVA | L51: 3336572403 | M51: direccion.delegaciones@tlaquepaque.gob.mx | T51: =SUM(P51:S51/J51) -> 0
A52: SECRETARIA_DE_GOBERNANZA_Y_TERRITORIODIRECCION DE DELEGACIONES Y AGENCIAS3Festividades Tradicionales Cívicas | B52: SECRETARIA_DE_GOBERNANZA_Y_TERRITORIODIRECCION DE DELEGACIONES Y AGENCIAS3 | C52: SECRETARIA_DE_GOBERNANZA_Y_TERRITORIO | D52: DIRECCION DE DELEGACIONES Y AGENCIAS | E52: =COUNTIF($D$4:D52,D52:D52) -> 3 | F52: Festividades Tradicionales Cívicas | G52: Porcentaje de asistentes a las festividades realizadas | H52: Número de asistentes | I52: 3550 | J52: 4200 | K52: JOSE ALFREDO ZAPATA SILVA | L52: 3336572403 | M52: direccion.delegaciones@tlaquepaque.gob.mx | T52: =SUM(P52:S52/J52) -> 0
A53: SECRETARIA_DE_GOBERNANZA_Y_TERRITORIODIRECCION DE DELEGACIONES Y AGENCIAS4Actividades Administrativas | B53: SECRETARIA_DE_GOBERNANZA_Y_TERRITORIODIRECCION DE DELEGACIONES Y AGENCIAS4 | C53: SECRETARIA_DE_GOBERNANZA_Y_TERRITORIO | D53: DIRECCION DE DELEGACIONES Y AGENCIAS | E53: =COUNTIF($D$4:D53,D53:D53) -> 4 | F53: Actividades Administrativas | G53: Porcentaje de solicitudes de comprobantes de domicilio expedidas | H53: Número de comprobantes de domicilio expedidos | I53: 4300 | J53: 4650 | K53: JOSE ALFREDO ZAPATA SILVA | L53: 3336572403 | M53: direccion.delegaciones@tlaquepaque.gob.mx | T53: =SUM(P53:S53/J53) -> 0
A54: SECRETARIA_DE_GOBERNANZA_Y_TERRITORIODIRECCION DE DELEGACIONES Y AGENCIAS5Actividades Administrativas | B54: SECRETARIA_DE_GOBERNANZA_Y_TERRITORIODIRECCION DE DELEGACIONES Y AGENCIAS5 | C54: SECRETARIA_DE_GOBERNANZA_Y_TERRITORIO | D54: DIRECCION DE DELEGACIONES Y AGENCIAS | E54: =COUNTIF($D$4:D54,D54:D54) -> 5 | F54: Actividades Administrativas | G54: Porcentaje de cartas de anuencia expedidas | H54: Número de cartas de anuencia expedidas | I54: 137 | J54: 175 | K54: JOSE ALFREDO ZAPATA SILVA | L54: 3336572403 | M54: direccion.delegaciones@tlaquepaque.gob.mx | T54: =SUM(P54:S54/J54) -> 0
A55: SECRETARIA_DE_GOBERNANZA_Y_TERRITORIODELEGACION SAN SEBASTIANITO1VISITAS A COLONIAS | B55: SECRETARIA_DE_GOBERNANZA_Y_TERRITORIODELEGACION SAN SEBASTIANITO1 | C55: SECRETARIA_DE_GOBERNANZA_Y_TERRITORIO | D55: DELEGACION SAN SEBASTIANITO | E55: =COUNTIF($D$4:D55,D55:D55) -> 1 | F55: VISITAS A COLONIAS | G55: Porcentaje de recorridos para la detección de la problemática | H55: número de recorridos | I55: 955 | J55: 1200 | K55: JOSE ALFREDO ZAPATA SILVA | L55: 3336572403 | M55: direccion.delegaciones@tlaquepaque.gob.mx | T55: =SUM(P55:S55/J55) -> 0
A56: SECRETARIA_DE_GOBERNANZA_Y_TERRITORIODIRECCION DE PADRON Y LICENCIAS1Servicio eficaz de trámite de licencias municipal presencial y en línea | B56: SECRETARIA_DE_GOBERNANZA_Y_TERRITORIODIRECCION DE PADRON Y LICENCIAS1 | C56: SECRETARIA_DE_GOBERNANZA_Y_TERRITORIO | D56: DIRECCION DE PADRON Y LICENCIAS | E56: =COUNTIF($D$4:D56,D56:D56) -> 1 | F56: Servicio eficaz de trámite de licencias municipal presencial y en línea | G56: Porcentaje de licencias municipales de giro y/o anuncio entregadas de forma presencial. | H56: Numero de licencias entregadas | I56: 2200 | J56: 2300 | K56: Kevin Daniel Vázquez Rodríguez | L56: 3317443315 | M56: vkevindaniel@gmail.com | T56: =SUM(P56:S56/J56) -> 0
A57: SECRETARIA_DE_GOBERNANZA_Y_TERRITORIODIRECCION DE PADRON Y LICENCIAS 11Regularización de licencias en base a la ley de hacienda | B57: SECRETARIA_DE_GOBERNANZA_Y_TERRITORIODIRECCION DE PADRON Y LICENCIAS 11 | C57: SECRETARIA_DE_GOBERNANZA_Y_TERRITORIO | D57: DIRECCION DE PADRON Y LICENCIAS 1 | E57: =COUNTIF($D$4:D57,D57:D57) -> 1 | F57: Regularización de licencias en base a la ley de hacienda | G57: porcentaje de licencias emitidas como giro anexo a la licencia principal | H57: Numero de licencias de giro anexo emitidas | I57: 0 | J57: 500 | K57: Kevin Daniel Vázquez Rodríguez | L57: 3317443315 | M57: vkevindaniel@gmail.com | T57: =SUM(P57:S57/J57) -> 0
A58: SECRETARIA_DE_GOBERNANZA_Y_TERRITORIODIRECCION DE INSPECCION Y VIGILANCIA1Verificación De Giros Comerciales Rezagados En El Municipio De San Pedro Tlaquepaque | B58: SECRETARIA_DE_GOBERNANZA_Y_TERRITORIODIRECCION DE INSPECCION Y VIGILANCIA1 | C58: SECRETARIA_DE_GOBERNANZA_Y_TERRITORIO | D58: DIRECCION DE INSPECCION Y VIGILANCIA | E58: =COUNTIF($D$4:D58,D58:D58) -> 1 | F58: Verificación De Giros Comerciales Rezagados En El Municipio De San Pedro Tlaquepaque | G58: Porcentaje de visitas a giros comerciales para conocer su estatus, realizadas | H58: número de visitas realizadas | I58: 0 | J58: 8983 | K58: MARIA GUADALUPE GOMEZ GODINEZ | L58: 3337270092 | M58: lupitagomez7777@gmail.com | T58: =SUM(P58:S58/J58) -> 0
A59: SECRETARIA_DE_GOBERNANZA_Y_TERRITORIOSUBDIRECCION DE INSPECCION AMBIENTAL1Verificación y regularización de residuos peligrosos y emisiones en talleres de laminado y pintura | B59: SECRETARIA_DE_GOBERNANZA_Y_TERRITORIOSUBDIRECCION DE INSPECCION AMBIENTAL1 | C59: SECRETARIA_DE_GOBERNANZA_Y_TERRITORIO | D59: SUBDIRECCION DE INSPECCION AMBIENTAL | E59: =COUNTIF($D$4:D59,D59:D59) -> 1 | F59: Verificación y regularización de residuos peligrosos y emisiones en talleres de laminado y pintura | G59: Porcentaje de avance en la regularización de talleres de laminado y pintura que se encuentren fuera de Norma. | H59: Número de giros regularizados | I59: 136 | J59: 136 | K59: ING. BENITO ROJAS GUERRERO (ELABORA FORMATO GPE. MAGALY VELAZQUEZ FIGUEROA) | L59: 33-38-37-03-42 | M59: magalyvelazquez3008@gmail.com | O59: EFICIENCIA/ EFICACIA | P59: 32 | T59: =SUM(P59:S59/J59) -> 0.2352941176 | U59: SE REALIZO CENSO DE ZONIFICACION DE 136 GIROS DE TALLERES DE LAMINADO PARA INSPECCIONAR Y REGULARIZAR SUS RESIDUOS, VERIFICANDO EN ESTE PERIODO 32 TALLERES A LOS CUALES SE LES LEVANTO ACTA CIRCUNTANCIADA DE VERIFICACION PARA ENTREGAR MANIFIESTOS DE RECOLECCION DE RESIDUOS PELIGROSOS Y DE MANEJO ESPECIAL, CABINA DE PINTADO CON EXTRACTOR Y FILTRO, CONTENDORES ROTULADOS PARA LA SEPARACION DE RESIDUOS, FUMIGACION Y LICENCIA MUNICIPAL
A60: SECRETARIA_DE_GOBERNANZA_Y_TERRITORIOSUBDIRECCION DE ATENCION E INSPECCION A TIANGUIS Y ESPACIOS ABIERTOS1Actualizar los padrones de los comerciantes de tianguis | B60: SECRETARIA_DE_GOBERNANZA_Y_TERRITORIOSUBDIRECCION DE ATENCION E INSPECCION A TIANGUIS Y ESPACIOS ABIERTOS1 | C60: SECRETARIA_DE_GOBERNANZA_Y_TERRITORIO | D60: SUBDIRECCION DE ATENCION E INSPECCION A TIANGUIS Y ESPACIOS ABIERTOS | E60: =COUNTIF($D$4:D60,D60:D60) -> 1 | F60: Actualizar los padrones de los comerciantes de tianguis | G60: porcentaje de comerciantes regularizados en los padrones | H60: numero de comerciantes regularizados en los padrones | I60: 0 | J60: 150 | K60: LORENA PEREZ CARDENAS | L60: 333837-0346 | M60: mercados@tlaquepaque.gob.mx | O60: EFICIENCIA / CALIDAD | P60: 20 | T60: =SUM(P60:S60/J60) -> 0.1333333333 | U60: Visitamos tianguis del municipio, en donde detectamos diversas anomalias, como comerciantes laborando en un espacio por más de cinco años, sin estar relacionados en el censo autorizado de comerciantes, pagando "impuestos", a personas externas al gobierno municipal, por lo que este gobierno, preocupado por los comerciantes, les ofreció regularizar sus espacios, otorgando certeza a tráves de un documento que ampara su lugar de trabajo, en los tianguis denominados (San Pedrito, Parques de la Victoria y Nueva Santa María)
A61: SECRETARIA_DE_GOBERNANZA_Y_TERRITORIOSUBDIRECCION DE ATENCION E INSPECCION A TIANGUIS Y ESPACIOS ABIERTOS2Regularizar comercio en espacio abierto en la colonia San Martín de las Flores | B61: SECRETARIA_DE_GOBERNANZA_Y_TERRITORIOSUBDIRECCION DE ATENCION E INSPECCION A TIANGUIS Y ESPACIOS ABIERTOS2 | C61: SECRETARIA_DE_GOBERNANZA_Y_TERRITORIO | D61: SUBDIRECCION DE ATENCION E INSPECCION A TIANGUIS Y ESPACIOS ABIERTOS | E61: =COUNTIF($D$4:D61,D61:D61) -> 2 | F61: Regularizar comercio en espacio abierto en la colonia San Martín de las Flores | G61: porcentaje de comerciantes regularizados | H61: número de comerciantes regularizados | I61: 0 | J61: 500 | K61: LORENA PEREZ CARDENAS | L61: 333837-0346 | M61: mercados@tlaquepaque.gob.mx | O61: EFICIENCIA / CALIDAD | P61: 303 | T61: =SUM(P61:S61/J61) -> 0.606 | U61: A raíz de las inspecciones realizadas en la Colonia San Martín de las Flores, localizamos a comerciantes laborando sin permiso para uso de suelo o pagaban impuestos a personas extrernas al Gobierno Municipal, por lo que realizamos operativos en la vía pública, en las fiestas patronales, así como en los eventos de temporada (día de muertos y tianguis navideño), en donde invitamos a los comerciantes, a asistir a nuestras instalaciones para trámitar su permiso provisional y brindarles tranquilidad de comercializar en los espacios abiertos.
A62: SECRETARIA_DE_GOBERNANZA_Y_TERRITORIOSUBDIRECCION DE ATENCION E INSPECCION DE MERCADOS1Recuperación de locales abandonados en merados municipales | B62: SECRETARIA_DE_GOBERNANZA_Y_TERRITORIOSUBDIRECCION DE ATENCION E INSPECCION DE MERCADOS1 | C62: SECRETARIA_DE_GOBERNANZA_Y_TERRITORIO | D62: SUBDIRECCION DE ATENCION E INSPECCION DE MERCADOS | E62: =COUNTIF($D$4:D62,D62:D62) -> 1 | F62: Recuperación de locales abandonados en merados municipales | G62: Porcentaje de etapas para la recuperación de locales comerciales en estado de abandono de los mercados de Las Juntas- | H62: numero de acciones realizadas | I62: 0 | J62: 220 | K62: LIC. JORGE ALBERTO DURAN CRUZ | L62: 33 25 37 92 13 | M62: aurora.gonzalez@tlaquepaque.gob.mx | T62: =SUM(P62:S62/J62) -> 0
A63: SECRETARIA_DE_GOBERNANZA_Y_TERRITORIOSUBDIRECCION DE ATENCION E INSPECCION DE MERCADOS2Recuperación de locales abandonados en merados municipales | B63: SECRETARIA_DE_GOBERNANZA_Y_TERRITORIOSUBDIRECCION DE ATENCION E INSPECCION DE MERCADOS2 | C63: SECRETARIA_DE_GOBERNANZA_Y_TERRITORIO | D63: SUBDIRECCION DE ATENCION E INSPECCION DE MERCADOS | E63: 2 | F63: Recuperación de locales abandonados en merados municipales | G63: Porcentaje de etapas para la recuperación de locales comerciales en estado de abandono del mercado de San Martín de las Flores. | H63: numero de acciones realizadas | I63: 0 | J63: 268 | K63: LIC. JORGE ALBERTO DURAN CRUZ | L63: 33 25 37 92 13 | M63: aurora.gonzalez@tlaquepaque.gob.mx | T63: =SUM(P63:S63/J63) -> 0
A64: SECRETARIA_DE_GOBERNANZA_Y_TERRITORIODIRECCION DE ARCHIVO MUNICIPAL1Programa de capacitación para la clasificación, organización, transferencia, resguardo y consulta de información oficial | B64: SECRETARIA_DE_GOBERNANZA_Y_TERRITORIODIRECCION DE ARCHIVO MUNICIPAL1 | C64: SECRETARIA_DE_GOBERNANZA_Y_TERRITORIO | D64: DIRECCION DE ARCHIVO MUNICIPAL | E64: =COUNTIF($D$4:D64,D64:D64) -> 1 | F64: Programa de capacitación para la clasificación, organización, transferencia, resguardo y consulta de información oficial | G64: Porcentaje de capacitaciones para la clasificación, organización, transferencia, resguardo y consulta de información oficial para las y los servidores públicos, realizadas | H64: Número de capacitaciones realizadas | I64: 0 | J64: 9 | K64: Omar Agustín Gutiérrez Arana | L64: 3317662514 | M64: omar.gtza@gmail.com | T64: =SUM(P64:S64/J64) -> 0
A65: SECRETARIA_DE_GOBERNANZA_Y_TERRITORIODIRECCION DE ARCHIVO MUNICIPAL2Proyecto de digitalización para el Archivo Municipal | B65: SECRETARIA_DE_GOBERNANZA_Y_TERRITORIODIRECCION DE ARCHIVO MUNICIPAL2 | C65: SECRETARIA_DE_GOBERNANZA_Y_TERRITORIO | D65: DIRECCION DE ARCHIVO MUNICIPAL | E65: =COUNTIF($D$4:D65,D65:D65) -> 2 | F65: Proyecto de digitalización para el Archivo Municipal | G65: Porcentaje de documentos digitalizados respecto al total de documentos seleccionados para el proyecto | H65: Número de documentos digitalizados | I65: 0 | J65: 500 | K65: Omar Agustín Gutiérrez Arana | L65: 3317662514 | M65: omar.gtza@gmail.com | T65: =SUM(P65:S65/J65) -> 0
A66: SECRETARIA_DE_GOBERNANZA_Y_TERRITORIODIRECCION DE ARCHIVO MUNICIPAL3Campaña de divulgación cultural histórica del Archivo Municipal a escuelas de educación básica en Tlaquepaque | B66: SECRETARIA_DE_GOBERNANZA_Y_TERRITORIODIRECCION DE ARCHIVO MUNICIPAL3 | C66: SECRETARIA_DE_GOBERNANZA_Y_TERRITORIO | D66: DIRECCION DE ARCHIVO MUNICIPAL | E66: =COUNTIF($D$4:D66,D66:D66) -> 3 | F66: Campaña de divulgación cultural histórica del Archivo Municipal a escuelas de educación básica en Tlaquepaque | G66: Porcentaje de escuelas de educación básica en el municipio de San Pedro Tlaquepaque que participan en las actividades de divulgación cultural e histórica del Archivo Municipal | H66: Número de escuelas | I66: 0 | J66: 6 | K66: Omar Agustín Gutiérrez Arana | L66: 3317662514 | M66: omar.gtza@gmail.com | T66: =SUM(P66:S66/J66) -> 0
A67: SECRETARIA_DE_GOBERNANZA_Y_TERRITORIODEPARTAMENTO DE ASUNTOS RELIGIOSOS1Servicio de atención a las necesidades de las distintas asociaciones religiosas del municipio | B67: SECRETARIA_DE_GOBERNANZA_Y_TERRITORIODEPARTAMENTO DE ASUNTOS RELIGIOSOS1 | C67: SECRETARIA_DE_GOBERNANZA_Y_TERRITORIO | D67: DEPARTAMENTO DE ASUNTOS RELIGIOSOS | E67: =COUNTIF($D$4:D67,D67:D67) -> 1 | F67: Servicio de atención a las necesidades de las distintas asociaciones religiosas del municipio | G67: Porcentaje de asociaciones religiosas atendidas | H67: Número de asociaciones religiosas atendidas | I67: 0 | J67: 220 | K67: Omar Agustín Gutiérrez Arana | L67: 3317662514 | M67: omar.gtza@gmail.com | T67: =SUM(P67:S67/J67) -> 0
A68: SECRETARIA_DE_GOBERNANZA_Y_TERRITORIODEPARTAMENTO DE OFICINA DE PASAPORTES1Trámite de Pasaporte Mexicano en Oficinas de Enlace de Tlaquepaque | B68: SECRETARIA_DE_GOBERNANZA_Y_TERRITORIODEPARTAMENTO DE OFICINA DE PASAPORTES1 | C68: SECRETARIA_DE_GOBERNANZA_Y_TERRITORIO | D68: DEPARTAMENTO DE OFICINA DE PASAPORTES | E68: =COUNTIF($D$4:D68,D68:D68) -> 1 | F68: Trámite de Pasaporte Mexicano en Oficinas de Enlace de Tlaquepaque | G68: Porcentaje de trámites de expedición de pasaportes realizados. | H68: Número de tramites | I68: 0 | J68: 20000 | K68: Francisco Isaac Jiménez | L68: 3335627014 ext. 2217 | M68: ometlaquepaque@hotmail.com | P68: 3562 | T68: =SUM(P68:S68/J68) -> 0.1781 | U68: Durante el último trimestre de 2024, se recibieron 3,562 solicitudes para trámite de pasaporte en ambas oficinas de enlace, Pila Seca y Centro Sur, acercando el servicio a la ciudadanía para ejercer su derecho a la obtención de un pasaporte nacional.
A69: SECRETARIA_DE_ADMINISTRACION_Y_FINANZASDIRECCION DE EGRESOS1Porcentaje De Presupuesto Ejercido De Acuerdo Con Criterios De Eficiencia, Austeridad Y Ahorro | B69: SECRETARIA_DE_ADMINISTRACION_Y_FINANZASDIRECCION DE EGRESOS1 | C69: SECRETARIA_DE_ADMINISTRACION_Y_FINANZAS | D69: DIRECCION DE EGRESOS | E69: 1 | F69: Porcentaje De Presupuesto Ejercido De Acuerdo Con Criterios De Eficiencia, Austeridad Y Ahorro | G69: Porcentaje de presupuesto ejercido de acuerdo con criterios de eficiencia, austeridad y ahorro | H69: presupuesto ejercido | I69: 2624511115 | J69: 2624511116 | K69: Dr. Carlos Raúl Magaña Ramírez | L69: 33-14-52-65-88 | M69: carlos.magana@univa.mx y carlosgdl_vd@hotmail.com | O69: Economía | P69: 547178970.6 | T69: =SUM(P69:S69/J69) -> 0.2084879608 | U69: $ 547178970.62 es la cantidad de presupuesto ejercido de los meses antes citados, de aceurdo con criterios de eficiencia, austeridad y ahorro
A70: SECRETARIA_DE_ADMINISTRACION_Y_FINANZASSUBDIRECCION DE CONTROL DE PAGOS1Optimizar el proceso de pagos | B70: SECRETARIA_DE_ADMINISTRACION_Y_FINANZASSUBDIRECCION DE CONTROL DE PAGOS1 | C70: SECRETARIA_DE_ADMINISTRACION_Y_FINANZAS | D70: SUBDIRECCION DE CONTROL DE PAGOS | E70: =COUNTIF($D$4:D70,D70:D70) -> 1 | F70: Optimizar el proceso de pagos | G70: Porcentaje de cheques elaborados | H70: Número de cheques elaborados | I70: 0 | J70: 1200 | K70: JORGE ARMANDO MAGALLÓN LOMELÍ | L70: 3338520471 EXT. 107 | M70: jorge.magallon@tlaquepaque.gob.mx | T70: =SUM(P70:S70/J70) -> 0
A71: SECRETARIA_DE_ADMINISTRACION_Y_FINANZASSUBDIRECCION DE CONTROL DE PAGOS2Optimizar el proceso de pagos | B71: SECRETARIA_DE_ADMINISTRACION_Y_FINANZASSUBDIRECCION DE CONTROL DE PAGOS2 | C71: SECRETARIA_DE_ADMINISTRACION_Y_FINANZAS | D71: SUBDIRECCION DE CONTROL DE PAGOS | E71: =COUNTIF($D$4:D71,D71:D71) -> 2 | F71: Optimizar el proceso de pagos | G71: Porcentaje de transacciones realizadas | H71: Número de transacciones realizads | I71: 0 | J71: 2850 | K71: JORGE ARMANDO MAGALLÓN LOMELÍ | L71: 3338520471 EXT. 107 | M71: jorge.magallon@tlaquepaque.gob.mx | T71: =SUM(P71:S71/J71) -> 0
A72: SECRETARIA_DE_ADMINISTRACION_Y_FINANZASDIRECCION DE INGRESOS1Programa De Apoyo A Adultos Mayores | B72: SECRETARIA_DE_ADMINISTRACION_Y_FINANZASDIRECCION DE INGRESOS1 | C72: SECRETARIA_DE_ADMINISTRACION_Y_FINANZAS | D72: DIRECCION DE INGRESOS | E72: =COUNTIF($D$4:D72,D72:D72) -> 1 | F72: Programa De Apoyo A Adultos Mayores | G72: Porcentaje de trámites autorizados para descuentos y exenciones a adultos mayores | H72: Número de trámites realizados | I72: 20000 | J72: 22000 | K72: Julio Gutiérrez Martínez | L72: 33-31-24-42-22 | M72: julio_gutierrez18@hotmail.com | T72: =SUM(P72:S72/J72) -> 0
A73: SECRETARIA_DE_ADMINISTRACION_Y_FINANZASDIRECCION DE INGRESOS2Programa de Convenios | B73: SECRETARIA_DE_ADMINISTRACION_Y_FINANZASDIRECCION DE INGRESOS2 | C73: SECRETARIA_DE_ADMINISTRACION_Y_FINANZAS | D73: DIRECCION DE INGRESOS | E73: =COUNTIF($D$4:D73,D73:D73) -> 2 | F73: Programa de Convenios | G73: Porcentaje de convenios realizados para cumplir con el pago de impuestos | H73: Número de convenios realizados. | I73: 300 | J73: 320 | K73: Julio Gutiérrez Martínez | L73: 33-31-24-42-22 | M73: julio_gutierrez18@hotmail.com | T73: =SUM(P73:S73/J73) -> 0
A74: SECRETARIA_DE_ADMINISTRACION_Y_FINANZASDIRECCION DE INGRESOS3Programa Integral de Recaudación | B74: SECRETARIA_DE_ADMINISTRACION_Y_FINANZASDIRECCION DE INGRESOS3 | C74: SECRETARIA_DE_ADMINISTRACION_Y_FINANZAS | D74: DIRECCION DE INGRESOS | E74: =COUNTIF($D$4:D74,D74:D74) -> 3 | F74: Programa Integral de Recaudación | G74: Porcentaje de avance en la recaudación municipal | H74: cantidad de recursos recaudados | I74: 324000000 | J74: 336000000 | K74: Julio Gutiérrez Martínez | L74: 33-31-24-42-22 | M74: julio_gutierrez18@hotmail.com | T74: =SUM(P74:S74/J74) -> 0
A75: SECRETARIA_DE_ADMINISTRACION_Y_FINANZASDIRECCION DE RECURSOS MATERIALES1Administración y control de los Recursos Materiales | B75: SECRETARIA_DE_ADMINISTRACION_Y_FINANZASDIRECCION DE RECURSOS MATERIALES1 | C75: SECRETARIA_DE_ADMINISTRACION_Y_FINANZAS | D75: DIRECCION DE RECURSOS MATERIALES | E75: =COUNTIF($D$4:D75,D75:D75) -> 1 | F75: Administración y control de los Recursos Materiales | G75: Porcentaje de solicitudes de Recursos Materiales | H75: Número de solicitudes atendidas | I75: 4000 | J75: 2160 | K75: BLANCA ISELA EVANGELISTA AGUILAR | L75: 3336665995 | M75: di.recursosmateriales@gmail.com se cambio por gerardo.hernandez@tlaquepaque.gob.mx | T75: =SUM(P75:S75/J75) -> 0
A76: SECRETARIA_DE_ADMINISTRACION_Y_FINANZASSUBDIRECCION DE PATRIMONIO1Administración de Bienes Inmuebles | B76: SECRETARIA_DE_ADMINISTRACION_Y_FINANZASSUBDIRECCION DE PATRIMONIO1 | C76: SECRETARIA_DE_ADMINISTRACION_Y_FINANZAS | D76: SUBDIRECCION DE PATRIMONIO | E76: =COUNTIF($D$4:D76,D76:D76) -> 1 | F76: Administración de Bienes Inmuebles | G76: Porcentaje de avance y seguimiento de la dministración y control de bienes inmuebles | H76: Bienes Inmuebles revisados | I76: 0 | J76: 1500 | K76: Martha Olivia Venegas Chavarín | L76: 33 3562 7000 ext. 2307 | M76: martha.venegas@tlaquepaque.gob.mx | T76: =SUM(P76:S76/J76) -> 0
A77: =B77&F77 -> SECRETARIA_DE_ADMINISTRACION_Y_FINANZASSUBDIRECCION DE PATRIMONIO2Administración de Bienes Inmuebles | B77: SECRETARIA_DE_ADMINISTRACION_Y_FINANZASSUBDIRECCION DE PATRIMONIO2 | C77: SECRETARIA_DE_ADMINISTRACION_Y_FINANZAS | D77: SUBDIRECCION DE PATRIMONIO | E77: =COUNTIF($D$4:D77,D77:D77) -> 2 | F77: Administración de Bienes Inmuebles | G77: Porcentaje de predios municipales con delimitacion (enmallado) | H77: Numero de predios delimitados | I77: 15 | J77: 11 | K77: Martha Olivia Venegas Chavarín | L77: 33 3562 7000 ext. 2307 | M77: martha.venegas@tlaquepaque.gob.mx | T77: =SUM(P77:S77/J77) -> 0
A78: SECRETARIA_DE_ADMINISTRACION_Y_FINANZASSUBDIRECCION DE PATRIMONIO3Administración de Bienes Inmuebles | B78: SECRETARIA_DE_ADMINISTRACION_Y_FINANZASSUBDIRECCION DE PATRIMONIO3 | C78: SECRETARIA_DE_ADMINISTRACION_Y_FINANZAS | D78: SUBDIRECCION DE PATRIMONIO | E78: =COUNTIF($D$4:D78,D78:D78) -> 3 | F78: Administración de Bienes Inmuebles | G78: Porcentaje de letreros instalados en predios municipales | H78: Numero de letreros instalados | I78: 65 | J78: 20 | K78: Martha Olivia Venegas Chavarín | L78: 33 3562 7000 ext. 2307 | M78: martha.venegas@tlaquepaque.gob.mx | T78: =SUM(P78:S78/J78) -> 0
A79: SECRETARIA_DE_ADMINISTRACION_Y_FINANZASDEPARTAMENTO DE BIENES MUEBLES1Actualización y control de los inventarios de los bienes muebles. | B79: SECRETARIA_DE_ADMINISTRACION_Y_FINANZASDEPARTAMENTO DE BIENES MUEBLES1 | C79: SECRETARIA_DE_ADMINISTRACION_Y_FINANZAS | D79: DEPARTAMENTO DE BIENES MUEBLES | E79: =COUNTIF($D$4:D79,D79:D79) -> 1 | F79: Actualización y control de los inventarios de los bienes muebles. | G79: Porcentaje de avance en la administración y control de los bienes muebles | H79: Número de bienes revisados | I79: 29800 | J79: 30560 | K79: Fernando Villa Martínez | L79: 3314619220 | M79: fernando.villa@tlaquepaque.gob.mx | T79: =SUM(P79:S79/J79) -> 0
A80: SECRETARIA_DE_ADMINISTRACION_Y_FINANZASDEPARTAMENTO DE SERVICIOS GENERALES1Recursos Humanos eficiente | B80: SECRETARIA_DE_ADMINISTRACION_Y_FINANZASDEPARTAMENTO DE SERVICIOS GENERALES1 | C80: SECRETARIA_DE_ADMINISTRACION_Y_FINANZAS | D80: DEPARTAMENTO DE SERVICIOS GENERALES | E80: =COUNTIF($D$4:D80,D80:D80) -> 1 | F80: Recursos Humanos eficiente | G80: Porcentaje de contratación de personal operativo para fortalecer el Departamento de Servicios Generales | H80: Número de personas contratadas | I80: 0 | J80: 22 | K80: LIC. JOSE CARLOS MORENO ARELLANO | L80: 3338091176 | M80: lcp.charliemoreno@gmail.com y/o gusrbecerra@hotmail.com | T80: =SUM(P80:S80/J80) -> 0
A81: SECRETARIA_DE_ADMINISTRACION_Y_FINANZASDEPARTAMENTO DE TALLER MUNICIPAL1Mantenimiento preventivo y correctivo del parque vehicular | B81: SECRETARIA_DE_ADMINISTRACION_Y_FINANZASDEPARTAMENTO DE TALLER MUNICIPAL1 | C81: SECRETARIA_DE_ADMINISTRACION_Y_FINANZAS | D81: DEPARTAMENTO DE TALLER MUNICIPAL | E81: =COUNTIF($D$4:D81,D81:D81) -> 1 | F81: Mantenimiento preventivo y correctivo del parque vehicular | G81: Porcentaje de unidades atendidas y reparadas | H81: número de unidades atendidas y reparadas | I81: 0 | J81: 800 | K81: JOSE LUIS APARICIO GARCÍA | L81: 3320663142 | M81: jl.aparicio.g73@gmail.com | O81: Economía | P81: 197 | T81: =SUM(P81:S81/J81) -> 0.24625 | U81: Se recibieron 197 unidades vehículares, con situciones más emergentes de funcionalidad, mismas que fueron reparadas, de acuerdo a lo que nos fue solicitado en la hoja multiple de servicio, por cada una de las dependencias solicitantes.
A82: SECRETARIA_DE_ADMINISTRACION_Y_FINANZASSUBDIRECCION DE COMPRAS Y ADQUISICIONES1Licitaciones Ejecutadas | B82: SECRETARIA_DE_ADMINISTRACION_Y_FINANZASSUBDIRECCION DE COMPRAS Y ADQUISICIONES1 | C82: SECRETARIA_DE_ADMINISTRACION_Y_FINANZAS | D82: SUBDIRECCION DE COMPRAS Y ADQUISICIONES | E82: =COUNTIF($D$4:D82,D82:D82) -> 1 | F82: Licitaciones Ejecutadas | G82: Porcentaje de procedimientos de adquisición de bienes y servicios realizados | H82: Número de procedimientos realizados | I82: 0 | J82: 100 | K82: EDGAR JASIEL ESTRADA CASIMIRO | L82: 3336665995 | M82: sub.cya@gmail.com se cambia por gerardo.hernandez@tlaquepaque.gob.mx | T82: =SUM(P82:S82/J82) -> 0
A83: SECRETARIA_DE_ADMINISTRACION_Y_FINANZASSUBDIRECCION DE COMPRAS Y ADQUISICIONES2Capacitación para Adquisiciones | B83: SECRETARIA_DE_ADMINISTRACION_Y_FINANZASSUBDIRECCION DE COMPRAS Y ADQUISICIONES2 | C83: SECRETARIA_DE_ADMINISTRACION_Y_FINANZAS | D83: SUBDIRECCION DE COMPRAS Y ADQUISICIONES | E83: =COUNTIF($D$4:D83,D83:D83) -> 2 | F83: Capacitación para Adquisiciones | G83: Porcentaje de capacitaciones en materia de adquisiciones. | H83: Número de capacitaciones realizadas | I83: 0 | J83: 2 | K83: EDGAR JASIEL ESTRADA CASIMIRO | L83: 3336665995 | M83: sub.cya@gmail.com se cambia por gerardo.hernandez@tlaquepaque.gob.mx | T83: =SUM(P83:S83/J83) -> 0
A84: SECRETARIA_DE_ADMINISTRACION_Y_FINANZASDIRECCION DE CATASTRO1Tramites y Servicios | B84: SECRETARIA_DE_ADMINISTRACION_Y_FINANZASDIRECCION DE CATASTRO1 | C84: SECRETARIA_DE_ADMINISTRACION_Y_FINANZAS | D84: DIRECCION DE CATASTRO | E84: =COUNTIF($D$4:D84,D84:D84) -> 1 | F84: Tramites y Servicios | G84: Porcentaje de trámites y servicios de la dirección de Catastro atendidos | H84: Número de tramites y servicios atendidos | I84: 25199 | J84: 26500 | K84: JOSE GUADALUPE CUZ BRISEÑO | L84: 3338379393 | M84: catastro@tlaquepaque.gob.mx | T84: =SUM(P84:S84/J84) -> 0
A85: SECRETARIA_DE_ADMINISTRACION_Y_FINANZASDEPARTAMENTO DE SOPORTE Y MANTENIMIENTO1Sistema de control de servicios | B85: SECRETARIA_DE_ADMINISTRACION_Y_FINANZASDEPARTAMENTO DE SOPORTE Y MANTENIMIENTO1 | C85: SECRETARIA_DE_ADMINISTRACION_Y_FINANZAS | D85: DEPARTAMENTO DE SOPORTE Y MANTENIMIENTO | E85: =COUNTIF($D$4:D85,D85:D85) -> 1 | F85: Sistema de control de servicios | G85: Porcentaje de etapas realizadas para la elaboración del sistema de control de servicios | H85: numero de etapas realizadas | I85: 0 | J85: 5 | K85: Marcela Escobedo | L85: 3338379008 | M85: marcela.escobedo@tlaquepaque.gob.mx | O85: Eficiencia/Eficacia | P85: 2 | T85: =SUM(P85:S85/J85) -> 0.4 | U85: Realizamos un análisis de requerimientos basados en la información de SASG como dependencia, número patrimonial, solicitud de servicio, técnicos asignados en cual comenzamos a elaborar tablas de técnicos, bienes, dependencias, servicios, dictámenes, mantenimientos creando un diseño para la captura de la información.
A86: SECRETARIA_DE_ADMINISTRACION_Y_FINANZASDEPARTAMENTO DE REDES Y TELECOMUNICACIONES1Instalación de Cámaras de Seguridad | B86: =C86&D86&E86 -> SECRETARIA_DE_ADMINISTRACION_Y_FINANZASDEPARTAMENTO DE REDES Y TELECOMUNICACIONES1 | C86: SECRETARIA_DE_ADMINISTRACION_Y_FINANZAS | D86: DEPARTAMENTO DE REDES Y TELECOMUNICACIONES | E86: =COUNTIF($D$4:D86,D86:D86) -> 1 | F86: Instalación de Cámaras de Seguridad | G86: Porcentaje de etapas realizadas para la instalación de camaras de seguridad | H86: número de etapas realizadas | I86: 0 | J86: 6 | K86: Marcela Escobedo | L86: 3338379008 | M86: marcela.escobedo@tlaquepaque.gob.mx | N86: Revisado | T86: =SUM(P86:S86/J86) -> 0
A87: SECRETARIA_DE_ADMINISTRACION_Y_FINANZASDIRECCION DE CONTABILIDAD Y GLOSA1Programa de elaboración y presentación de Cuentas Públicas | B87: SECRETARIA_DE_ADMINISTRACION_Y_FINANZASDIRECCION DE CONTABILIDAD Y GLOSA1 | C87: SECRETARIA_DE_ADMINISTRACION_Y_FINANZAS | D87: DIRECCION DE CONTABILIDAD Y GLOSA | E87: =COUNTIF($D$4:D87,D87:D87) -> 1 | F87: Programa de elaboración y presentación de Cuentas Públicas | G87: Porcentaje de avance en la elaboración y presentación puntual de las Cuentas Públicas. | H87: Número de Cuentas Públicas Elaboradas y Presentadas | I87: 0 | J87: 14 | N87: Revisado | T87: =SUM(P87:S87/J87) -> 0
A88: SECRETARIA_DE_CONTRALORIA_MUNICIPAL_Y_COMBATE_A_LA_CORRUPCIONDIRECCION DE AUDITORIA A OBRA PUBLICA Y SERVICIOS1Control documental de expedientes de obras | B88: SECRETARIA_DE_CONTRALORIA_MUNICIPAL_Y_COMBATE_A_LA_CORRUPCIONDIRECCION DE AUDITORIA A OBRA PUBLICA Y SERVICIOS1 | C88: SECRETARIA_DE_CONTRALORIA_MUNICIPAL_Y_COMBATE_A_LA_CORRUPCION | D88: DIRECCION DE AUDITORIA A OBRA PUBLICA Y SERVICIOS | E88: =COUNTIF($D$4:D88,D88:D88) -> 1 | F88: Control documental de expedientes de obras | G88: Porcentaje de expedientes revisados y digitalizados | H88: Número de expedientes revisados y digitalizados | I88: 0 | J88: 150 | K88: HÉCTOR NICODEMO TREJO ROMERO | L88: 33.3662.0575 | O88: CALIDAD | P88: 42 | T88: =SUM(P88:S88/J88) -> 0.28 | U88: Se recibieron 42 expedientes conteniendo la documentación acorde con la etapa en proceso de la auditoria a obra, anticipo, estimación de avance o finiquito, llevando un control interno para seguiemiento del avance de obra y registro del auditor encargado. Hay obras de inicio, con avances en estimaciones y finiquitos de términos de obra
A89: SECRETARIA_DE_CONTRALORIA_MUNICIPAL_Y_COMBATE_A_LA_CORRUPCIONDIRECCION DE AUDITORIA A OBRA PUBLICA Y SERVICIOS2Análisis documental de expedientes de obras | B89: SECRETARIA_DE_CONTRALORIA_MUNICIPAL_Y_COMBATE_A_LA_CORRUPCIONDIRECCION DE AUDITORIA A OBRA PUBLICA Y SERVICIOS2 | C89: SECRETARIA_DE_CONTRALORIA_MUNICIPAL_Y_COMBATE_A_LA_CORRUPCION | D89: DIRECCION DE AUDITORIA A OBRA PUBLICA Y SERVICIOS | E89: =COUNTIF($D$4:D89,D89:D89) -> 2 | F89: Análisis documental de expedientes de obras | G89: Porcentaje de expedientes de obra con proceso de análisis documental, realizado | H89: Número de expedientes analizados | I89: 0 | J89: 150 | K89: HÉCTOR NICODEMO TREJO ROMERO | L89: 33.3662.0575 | O89: CALIDAD | P89: 42 | T89: =SUM(P89:S89/J89) -> 0.28 | U89: Se recibieron 42 oficios de Obras Públicas con el expediente de cada etapa en proceso por obra, se revisó que este la documentación vigente y acorde con normativa y se enviaron los oficios para liberación del pago a la Secretaría de Administración y Finanzas de San Pedro Tlaquepaque y con copia a la Secretaía de Obras Públicas. En caso de existir observaciones se solicita al contratista hacer las correcciones pertinentes y se aplican deductivas de ser necesarias
A90: SECRETARIA_DE_CONTRALORIA_MUNICIPAL_Y_COMBATE_A_LA_CORRUPCIONDIRECCION DE AUDITORIA GUBERNAMENTAL Y COMBATE A LA CORRUPCION1Auditorías | B90: SECRETARIA_DE_CONTRALORIA_MUNICIPAL_Y_COMBATE_A_LA_CORRUPCIONDIRECCION DE AUDITORIA GUBERNAMENTAL Y COMBATE A LA CORRUPCION1 | C90: SECRETARIA_DE_CONTRALORIA_MUNICIPAL_Y_COMBATE_A_LA_CORRUPCION | D90: DIRECCION DE AUDITORIA GUBERNAMENTAL Y COMBATE A LA CORRUPCION | E90: =COUNTIF($D$4:D90,D90:D90) -> 1 | F90: Auditorías | G90: Porcentaje de Auditorías realizadas | H90: Número de auditorías, realizadas | I90: 10 | J90: 8 | K90: Ana Rosa Guzmán Peña | L90: 3314176115 | M90: anarosa.guzman@tlaquepaque.gob.mx | T90: =SUM(P90:S90/J90) -> 0
A91: SECRETARIA_DE_CONTRALORIA_MUNICIPAL_Y_COMBATE_A_LA_CORRUPCIONDIRECCION DE AUDITORIA GUBERNAMENTAL Y COMBATE A LA CORRUPCION2Visitas de Inspección | B91: SECRETARIA_DE_CONTRALORIA_MUNICIPAL_Y_COMBATE_A_LA_CORRUPCIONDIRECCION DE AUDITORIA GUBERNAMENTAL Y COMBATE A LA CORRUPCION2 | C91: SECRETARIA_DE_CONTRALORIA_MUNICIPAL_Y_COMBATE_A_LA_CORRUPCION | D91: DIRECCION DE AUDITORIA GUBERNAMENTAL Y COMBATE A LA CORRUPCION | E91: =COUNTIF($D$4:D91,D91:D91) -> 2 | F91: Visitas de Inspección | G91: Porcentaje de visitas de inspección realizadas | H91: Número de visitas de inspección realizadas | I91: 3 | J91: 8 | K91: Ana Rosa Guzmán Peña | L91: 3314176115 | M91: anarosa.guzman@tlaquepaque.gob.mx | T91: =SUM(P91:S91/J91) -> 0
A92: SECRETARIA_DE_CONTRALORIA_MUNICIPAL_Y_COMBATE_A_LA_CORRUPCIONSUBDIRECCION DE AUDITORIA FINANCIERA Y DE DESEMPEÑO1Auditorías | B92: SECRETARIA_DE_CONTRALORIA_MUNICIPAL_Y_COMBATE_A_LA_CORRUPCIONSUBDIRECCION DE AUDITORIA FINANCIERA Y DE DESEMPEÑO1 | C92: SECRETARIA_DE_CONTRALORIA_MUNICIPAL_Y_COMBATE_A_LA_CORRUPCION | D92: SUBDIRECCION DE AUDITORIA FINANCIERA Y DE DESEMPEÑO | E92: =COUNTIF($D$4:D92,D92:D92) -> 1 | F92: Auditorías | G92: Porcentaje de Auditorias financieras y de desempeño, realizadas | H92: Número de auditorias realizadas | I92: 10 | J92: 9 | K92: Itzel Adriana Trejo Corona | L92: 3310723898 | M92: itzel.trejo@tlaquepaque.gob.mx | T92: =SUM(P92:S92/J92) -> 0
A93: SECRETARIA_DE_CONTRALORIA_MUNICIPAL_Y_COMBATE_A_LA_CORRUPCIONSUBDIRECCION DE AUDITORIA FINANCIERA Y DE DESEMPEÑO2Procedimientos de aclaración derivados de entrega recepción | B93: SECRETARIA_DE_CONTRALORIA_MUNICIPAL_Y_COMBATE_A_LA_CORRUPCIONSUBDIRECCION DE AUDITORIA FINANCIERA Y DE DESEMPEÑO2 | C93: SECRETARIA_DE_CONTRALORIA_MUNICIPAL_Y_COMBATE_A_LA_CORRUPCION | D93: SUBDIRECCION DE AUDITORIA FINANCIERA Y DE DESEMPEÑO | E93: =COUNTIF($D$4:D93,D93:D93) -> 2 | F93: Procedimientos de aclaración derivados de entrega recepción | G93: Porcentaje de procedimientos de aclaración derivados de entrega- recepción, realizados | H93: Número de procedimientos de aclaración realizados | I93: 66 | J93: 30 | K93: Itzel Adriana Trejo Corona | L93: 3310723898 | M93: itzel,trejo@tlaquepaque.gob.mx | T93: =SUM(P93:S93/J93) -> 0
A94: SECRETARIA_DE_CONTRALORIA_MUNICIPAL_Y_COMBATE_A_LA_CORRUPCIONSUBDIRECCION DE AUDITORIA FINANCIERA Y DE DESEMPEÑO3Visitas de Inspección | B94: SECRETARIA_DE_CONTRALORIA_MUNICIPAL_Y_COMBATE_A_LA_CORRUPCIONSUBDIRECCION DE AUDITORIA FINANCIERA Y DE DESEMPEÑO3 | C94: SECRETARIA_DE_CONTRALORIA_MUNICIPAL_Y_COMBATE_A_LA_CORRUPCION | D94: SUBDIRECCION DE AUDITORIA FINANCIERA Y DE DESEMPEÑO | E94: =COUNTIF($D$4:D94,D94:D94) -> 3 | F94: Visitas de Inspección | G94: Porcentaje de visitas de inspección realizadas | H94: Número de visitas de inspección realizadas | I94: 3 | J94: 10 | K94: Itzel Adriana Trejo Corona | L94: 3310723898 | M94: itzel,trejo@tlaquepaque.gob.mx | T94: =SUM(P94:S94/J94) -> 0
A95: SECRETARIA_DE_CONTRALORIA_MUNICIPAL_Y_COMBATE_A_LA_CORRUPCIONDIRECCION DE RESPONSABILIDADES Y EVOLUCION PATRIMONIAL1Educación e Innovación Tecnológica | B95: SECRETARIA_DE_CONTRALORIA_MUNICIPAL_Y_COMBATE_A_LA_CORRUPCIONDIRECCION DE RESPONSABILIDADES Y EVOLUCION PATRIMONIAL1 | C95: SECRETARIA_DE_CONTRALORIA_MUNICIPAL_Y_COMBATE_A_LA_CORRUPCION | D95: DIRECCION DE RESPONSABILIDADES Y EVOLUCION PATRIMONIAL | E95: =COUNTIF($D$4:D95,D95:D95) -> 1 | F95: Educación e Innovación Tecnológica | G95: Porcentaje de personas de nuevo ingreso que hayan cumplido con su declaracion patrimonial | H95: Numero de personas de nuevo ingreso con declaración patrimonial realizada | I95: 0 | J95: 180 | K95: Felipe Rivas Rivera | L95: 3314179257 | M95: felipe.rivas@tlaquepaque.gob.mx | T95: =SUM(P95:S95/J95) -> 0
A96: OFICIALIA_MAYORDIRECCION DE DESARROLLO ORGANIZACIONAL1Elaboración de Manuales Administrativos | B96: OFICIALIA_MAYORDIRECCION DE DESARROLLO ORGANIZACIONAL1 | C96: OFICIALIA_MAYOR | D96: DIRECCION DE DESARROLLO ORGANIZACIONAL | E96: =COUNTIF($D$4:D96,D96:D96) -> 1 | F96: Elaboración de Manuales Administrativos | G96: Porcentaje de la elaboracion de manuales administrativos que representen la actualidad de la estructura de las Dependencias | H96: Numero de manuales elaborados | I96: 0 | J96: 30 | K96: Lic. José Luis Barba Reynoso | L96: '3338078864 | M96: Sdelatorrev.Stgo@gmail.com | O96: Eficacia | P96: 17 | T96: =SUM(P96:S96/J96) -> 0.5666666667 | U96: Se logró un significativo avance en la preparación previo a la elaboración de los manuales de Organización. Este progreso se ha materializado en los 17 manuales mencionados a través del analisis del nuevo Reglamento de la Administración Publica Municipal para detectar y reflejar los objetivos y funciones de cada una de las Secretarias y sus respectivas dependencias.
A97: OFICIALIA_MAYORDIRECCION DE DESARROLLO ORGANIZACIONAL2Armonización Organizativa | B97: OFICIALIA_MAYORDIRECCION DE DESARROLLO ORGANIZACIONAL2 | C97: OFICIALIA_MAYOR | D97: DIRECCION DE DESARROLLO ORGANIZACIONAL | E97: =COUNTIF($D$4:D97,D97:D97) -> 2 | F97: Armonización Organizativa | G97: Porcentaje de la elaboracion de manuales que representen la actualidad de la estructura de las Secretarias | H97: Numero de manuales elaborados | I97: 0 | J97: 15 | K97: Lic. José Luis Barba Reynoso | L97: '3338078864 | M97: Sdelatorrev.Stgo@gmail.com | O97: Eficacia | P97: 0 | T97: =SUM(P97:S97/J97) -> 0 | U97: Se efectuó el análisis y diagnóstico tomando como base el nuevo organigrama de la nueva administración y se propusieron adecuaciónes con respecto a la operatividad que pudiera visualizar algun conflicto con las funciones y desempeño de algunas dependencias, con la finalidad de tomar las medidas correctivas y se optimicen para un mejor desempeño y actualizar en los manuales correspondientes.
A98: OFICIALIA_MAYORDEPARTAMENTO DE CAPACITACION Y SERVICIO SOCIAL1Certificación en el ECO385 | B98: OFICIALIA_MAYORDEPARTAMENTO DE CAPACITACION Y SERVICIO SOCIAL1 | C98: OFICIALIA_MAYOR | D98: DEPARTAMENTO DE CAPACITACION Y SERVICIO SOCIAL | E98: =COUNTIF($D$4:D98,D98:D98) -> 1 | F98: Certificación en el ECO385 | G98: Porcentaje de servidoras y servidores públicos certificados | H98: Número de personas certificadas | I98: 0 | J98: 51 | K98: Lic. José Antonio Aceves Reynoso | L98: 33 12 00 39 80 al 83 | M98: capacitaciónyserviciosocial@gmail.com | T98: =SUM(P98:S98/J98) -> 0
A99: OFICIALIA_MAYORDEPARTAMENTO DE CAPACITACION Y SERVICIO SOCIAL2Capacitación en materia de Derechos Humanos | B99: OFICIALIA_MAYORDEPARTAMENTO DE CAPACITACION Y SERVICIO SOCIAL2 | C99: OFICIALIA_MAYOR | D99: DEPARTAMENTO DE CAPACITACION Y SERVICIO SOCIAL | E99: =COUNTIF($D$4:D99,D99:D99) -> 2 | F99: Capacitación en materia de Derechos Humanos | G99: Porcentaje de avance en la capacitación a servidoras y servidores públicos en materia de DDHH | H99: Número de personas capacitadas | I99: 0 | J99: 800 | K99: Lic. José Antonio Aceves Reynoso | L99: 33 12 00 39 80 al 83 | M99: capacitaciónyserviciosocial@gmail.com | T99: =SUM(P99:S99/J99) -> 0
A100: OFICIALIA_MAYORDEPARTAMENTO DE CAPACITACION Y SERVICIO SOCIAL3Desarrollo Académico Básico de las y los servidores públicos de la Secretaría de Servicios Públicos y Medio Ambiente | B100: OFICIALIA_MAYORDEPARTAMENTO DE CAPACITACION Y SERVICIO SOCIAL3 | C100: OFICIALIA_MAYOR | D100: DEPARTAMENTO DE CAPACITACION Y SERVICIO SOCIAL | E100: =COUNTIF($D$4:D100,D100:D100) -> 3 | F100: Desarrollo Académico Básico de las y los servidores públicos de la Secretaría de Servicios Públicos y Medio Ambiente | G100: Porcentaje de servidoras y servidores públicos certificados | H100: Número de personas certificadas | I100: 0 | J100: 80 | K100: Lic. José Antonio Aceves Reynoso | L100: 33 12 00 39 80 al 83 | M100: capacitaciónyserviciosocial@gmail.com | T100: =SUM(P100:S100/J100) -> 0
A101: OFICIALIA_MAYORDEPARTAMENTO DE CAPACITACION Y SERVICIO SOCIAL4Difusión de Protocolos | B101: OFICIALIA_MAYORDEPARTAMENTO DE CAPACITACION Y SERVICIO SOCIAL4 | C101: OFICIALIA_MAYOR | D101: DEPARTAMENTO DE CAPACITACION Y SERVICIO SOCIAL | E101: =COUNTIF($D$4:D101,D101:D101) -> 4 | F101: Difusión de Protocolos | G101: Porcentaje de personas con sesibilización en la difusión de protocolos para Personas Adultas Mayores y Personas con Discapacidad | H101: Número de personas sesibilizadas | I101: 0 | J101: 1200 | K101: Lic. José Antonio Aceves Reynoso | L101: 33 12 00 39 80 al 83 | M101: capacitaciónyserviciosocial@gmail.com | T101: =SUM(P101:S101/J101) -> 0
A102: OFICIALIA_MAYORDEPARTAMENTO DE CAPACITACION Y SERVICIO SOCIAL5Fortalecimiento y Desarrollo de Habilidades Blandas y Desarrollo Humano | B102: OFICIALIA_MAYORDEPARTAMENTO DE CAPACITACION Y SERVICIO SOCIAL5 | C102: OFICIALIA_MAYOR | D102: DEPARTAMENTO DE CAPACITACION Y SERVICIO SOCIAL | E102: =COUNTIF($D$4:D102,D102:D102) -> 5 | F102: Fortalecimiento y Desarrollo de Habilidades Blandas y Desarrollo Humano | G102: Porcentaje de personas capacitadas en el desarrollo de habilidades blandas y desarrollo humano | H102: Número de personas capacitadas | I102: 0 | J102: 1200 | K102: Lic. José Antonio Aceves Reynoso | L102: 33 12 00 39 80 al 83 | M102: capacitaciónyserviciosocial@gmail.com | T102: =SUM(P102:S102/J102) -> 0
A103: OFICIALIA_MAYORDEPARTAMENTO DE CAPACITACION Y SERVICIO SOCIAL6Fortalecimiento y Desarrollo de Habilidades Técnicas | B103: OFICIALIA_MAYORDEPARTAMENTO DE CAPACITACION Y SERVICIO SOCIAL6 | C103: OFICIALIA_MAYOR | D103: DEPARTAMENTO DE CAPACITACION Y SERVICIO SOCIAL | E103: =COUNTIF($D$4:D103,D103:D103) -> 6 | F103: Fortalecimiento y Desarrollo de Habilidades Técnicas | G103: Porcentaje de servidoras y servidores públicos capacitados | H103: Número de personas capacitadas | I103: 0 | J103: 1400 | K103: Lic. José Antonio Aceves Reynoso | L103: 33 12 00 39 80 al 83 | M103: capacitaciónyserviciosocial@gmail.com | T103: =SUM(P103:S103/J103) -> 0
A104: OFICIALIA_MAYORDEPARTAMENTO DE CAPACITACION Y SERVICIO SOCIAL7Promoción de estilos de vida y entornos laboral, alimentaria y físicamente saludable para el personal | B104: OFICIALIA_MAYORDEPARTAMENTO DE CAPACITACION Y SERVICIO SOCIAL7 | C104: OFICIALIA_MAYOR | D104: DEPARTAMENTO DE CAPACITACION Y SERVICIO SOCIAL | E104: =COUNTIF($D$4:D104,D104:D104) -> 7 | F104: Promoción de estilos de vida y entornos laboral, alimentaria y físicamente saludable para el personal | G104: Porcentaje de edificios certificados como entornos saludables | H104: Número de edificios certificados | I104: 0 | J104: 16 | K104: Lic. José Antonio Aceves Reynoso | L104: 33 12 00 39 80 al 83 | M104: capacitaciónyserviciosocial@gmail.com | T104: =SUM(P104:S104/J104) -> 0
A105: OFICIALIA_MAYORDEPARTAMENTO DE CAPACITACION Y SERVICIO SOCIAL8Tlaquepaque Universitario | B105: OFICIALIA_MAYORDEPARTAMENTO DE CAPACITACION Y SERVICIO SOCIAL8 | C105: OFICIALIA_MAYOR | D105: DEPARTAMENTO DE CAPACITACION Y SERVICIO SOCIAL | E105: =COUNTIF($D$4:D105,D105:D105) -> 8 | F105: Tlaquepaque Universitario | G105: Porcentaje de apoyos brindados a prácticantes profesionales y pasantes. | H105: Número de apoyos económicos brindados a los practicantes y pasantes. | I105: 533 | J105: 2000 | K105: Lic. José Antonio Aceves Reynoso | L105: 33 12 00 39 80 al 83 | M105: capacitaciónyserviciosocial@gmail.com | T105: =SUM(P105:S105/J105) -> 0
A106: OFICIALIA_MAYORDEPARTAMENTO DE INCIDENCIAS Y CALCULO DE NOMINA1Pago de Nóminas | B106: OFICIALIA_MAYORDEPARTAMENTO DE INCIDENCIAS Y CALCULO DE NOMINA1 | C106: OFICIALIA_MAYOR | D106: DEPARTAMENTO DE INCIDENCIAS Y CALCULO DE NOMINA | E106: =COUNTIF($D$4:D106,D106:D106) -> 1 | F106: Pago de Nóminas | G106: Porcentaje en la generación y expedición eficiente y puntual de la nómina municipal, apoyada en procesos de actualización y digitalización de sistemas para la gestión de Recursos Humanos. | H106: Número de nóminas generadas | I106: 0 | J106: 24 | K106: Sergio Lara Gutiérrez | M106: sergio.lara@tlaquepaque.gob.mx | T106: =SUM(P106:S106/J106) -> 0
A107: SECRETARIA_DE_PLANIFICACION_ANALISIS_Y_GESTION_URBANASECRETARIA DE PLANIFICACION, ANALISIS Y GESTION URBANA1Coordinación de actividades de las direcciones que integran la Secretaría de Planificación, Análisis y Gestión Urbana | B107: SECRETARIA_DE_PLANIFICACION_ANALISIS_Y_GESTION_URBANASECRETARIA DE PLANIFICACION, ANALISIS Y GESTION URBANA1 | C107: SECRETARIA_DE_PLANIFICACION_ANALISIS_Y_GESTION_URBANA | D107: SECRETARIA DE PLANIFICACION, ANALISIS Y GESTION URBANA | E107: =COUNTIF($D$4:D107,D107:D107) -> 1 | F107: Coordinación de actividades de las direcciones que integran la Secretaría de Planificación, Análisis y Gestión Urbana | G107: Porcentaje de avance enl a supervision y seguimiento las actividades realizadas de la Secretaria de planicacion , analisis y Gestion urbana 2024-2025 | H107: Numero de Actividades supervisadas | I107: 0 | J107: 3 | K107: Dr. Jose Ariel Ruiz Corral | L107: '33 1020 3835 | T107: =SUM(P107:S107/J107) -> 0
A108: SECRETARIA_DE_PLANIFICACION_ANALISIS_Y_GESTION_URBANADIRECCION DE GESTION TERRITORIAL Y PLANEACION URBANA.Regularización de predios efectiva | B108: SECRETARIA_DE_PLANIFICACION_ANALISIS_Y_GESTION_URBANADIRECCION DE GESTION TERRITORIAL Y PLANEACION URBANA. | C108: SECRETARIA_DE_PLANIFICACION_ANALISIS_Y_GESTION_URBANA | D108: DIRECCION DE GESTION TERRITORIAL Y PLANEACION URBANA | E108: . | F108: Regularización de predios efectiva | G108: Porcentaje de titulos entregados a personas que viven en predios irregulares de San Pedro Tlaquepaque | H108: Titulos entregados | I108: 500 | J108: 800 | K108: DALIA RAMIREZ RAMOS | L108: 3335 62 7054 al 60 extensión 2428 y 2413 | M108: DALIA.RAMIREZ@TLAQUEPAQUE.GOB.MX | T108: =SUM(P108:S108/J108) -> 0
A109: SECRETARIA_DE_PLANIFICACION_ANALISIS_Y_GESTION_URBANADEPARTAMENTO DE GESTION TERRITORIAL SUELO Y VIVIENDA1Mejoramiento de la atención al publico así como fiscalización de la Auditoria Superior del Estado | B109: SECRETARIA_DE_PLANIFICACION_ANALISIS_Y_GESTION_URBANADEPARTAMENTO DE GESTION TERRITORIAL SUELO Y VIVIENDA1 | C109: SECRETARIA_DE_PLANIFICACION_ANALISIS_Y_GESTION_URBANA | D109: DEPARTAMENTO DE GESTION TERRITORIAL SUELO Y VIVIENDA | E109: =COUNTIF($D$4:D109,D109:D109) -> 1 | F109: Mejoramiento de la atención al publico así como fiscalización de la Auditoria Superior del Estado | G109: Porcentaje de solicitudes de trámites y servicios atendidas | H109: número de solicitudes atendidas | I109: 9500 | J109: 7500 | K109: DALIA RAMIREZ RAMOS | L109: 3335 62 7054 al 60 extensión 2428 y 2413 | M109: DALIA.RAMIREZ@TLAQUEPAQUE.GOB.MX | T109: =SUM(P109:S109/J109) -> 0
A110: SECRETARIA_DE_PLANIFICACION_ANALISIS_Y_GESTION_URBANADEPARTAMENTO DE PLANEACION URBANA1Planes parciales y reglamentos municipales actualizados | B110: SECRETARIA_DE_PLANIFICACION_ANALISIS_Y_GESTION_URBANADEPARTAMENTO DE PLANEACION URBANA1 | C110: SECRETARIA_DE_PLANIFICACION_ANALISIS_Y_GESTION_URBANA | D110: DEPARTAMENTO DE PLANEACION URBANA | E110: =COUNTIF($D$4:D110,D110:D110) -> 1 | F110: Planes parciales y reglamentos municipales actualizados | G110: Porcentaje en la actualización del Programa de Ordenamiento Ecológico Territorial y de Desarrollo Urbano para el Municipio de San Pedro Tlaquepaque (Poetdum) | H110: programa actualizado | I110: 0 | J110: 1 | K110: DALIA RAMIREZ RAMOS | L110: 3335 62 7054 al 60 extensión 2428 y 2413 | M110: DALIA.RAMIREZ@TLAQUEPAQUE.GOB.MX | T110: =SUM(P110:S110/J110) -> 0
A111: SECRETARIA_DE_PLANIFICACION_ANALISIS_Y_GESTION_URBANADEPARTAMENTO DE PLANEACION URBANA2Planes parciales y reglamentos municipales actualizados | B111: SECRETARIA_DE_PLANIFICACION_ANALISIS_Y_GESTION_URBANADEPARTAMENTO DE PLANEACION URBANA2 | C111: SECRETARIA_DE_PLANIFICACION_ANALISIS_Y_GESTION_URBANA | D111: DEPARTAMENTO DE PLANEACION URBANA | E111: =COUNTIF($D$4:D111,D111:D111) -> 2 | F111: Planes parciales y reglamentos municipales actualizados | G111: porcentaje en la actualización del Plan de Desarrollo Urbano de Centro de Población | H111: Plan actualizado | I111: 0 | J111: 1 | K111: DALIA RAMIREZ RAMOS | L111: 3335 62 7054 al 60 extensión 2428 y 2413 | M111: DALIA.RAMIREZ@TLAQUEPAQUE.GOB.MX | T111: =SUM(P111:S111/J111) -> 0
A112: SECRETARIA_DE_PLANIFICACION_ANALISIS_Y_GESTION_URBANADEPARTAMENTO DE PLANEACION URBANA3Planes parciales y reglamentos municipales actualizados | B112: SECRETARIA_DE_PLANIFICACION_ANALISIS_Y_GESTION_URBANADEPARTAMENTO DE PLANEACION URBANA3 | C112: SECRETARIA_DE_PLANIFICACION_ANALISIS_Y_GESTION_URBANA | D112: DEPARTAMENTO DE PLANEACION URBANA | E112: =COUNTIF($D$4:D112,D112:D112) -> 3 | F112: Planes parciales y reglamentos municipales actualizados | G112: Porentaje de Planes Parciales de Desarrollo Urbano actualizados | H112: número de planes actualizados | I112: 0 | J112: 5 | K112: DALIA RAMIREZ RAMOS | L112: 3335 62 7054 al 60 extensión 2428 y 2413 | M112: DALIA.RAMIREZ@TLAQUEPAQUE.GOB.MX | T112: =SUM(P112:S112/J112) -> 0
A113: SECRETARIA_DE_PLANIFICACION_ANALISIS_Y_GESTION_URBANADEPARTAMENTO DE PLANEACION URBANA4Planes parciales y reglamentos municipales actualizados | B113: SECRETARIA_DE_PLANIFICACION_ANALISIS_Y_GESTION_URBANADEPARTAMENTO DE PLANEACION URBANA4 | C113: SECRETARIA_DE_PLANIFICACION_ANALISIS_Y_GESTION_URBANA | D113: DEPARTAMENTO DE PLANEACION URBANA | E113: =COUNTIF($D$4:D113,D113:D113) -> 4 | F113: Planes parciales y reglamentos municipales actualizados | G113: Porcentaje de actualización del Reglamento de Zonificación Urbana para el Municipio de San Pedro Tlaquepaque. | H113: reglamento actualizado | I113: 0 | J113: 1 | K113: DALIA RAMIREZ RAMOS | L113: 3335 62 7054 al 60 extensión 2428 y 2413 | M113: DALIA.RAMIREZ@TLAQUEPAQUE.GOB.MX | T113: =SUM(P113:S113/J113) -> 0
A114: SECRETARIA_DE_PLANIFICACION_ANALISIS_Y_GESTION_URBANADIRECCION DE GESTION DEL DESEMPEÑO, EVALUACION DE RESULTADOS Y TABLERO DE CONTROL1Coordinación de actividades de los departamentos de la Dirección de Desempeño, Resultados y Tablero de Control | B114: SECRETARIA_DE_PLANIFICACION_ANALISIS_Y_GESTION_URBANADIRECCION DE GESTION DEL DESEMPEÑO, EVALUACION DE RESULTADOS Y TABLERO DE CONTROL1 | C114: SECRETARIA_DE_PLANIFICACION_ANALISIS_Y_GESTION_URBANA | D114: DIRECCION DE GESTION DEL DESEMPEÑO, EVALUACION DE RESULTADOS Y TABLERO DE CONTROL | E114: =COUNTIF($D$4:D114,D114:D114) -> 1 | F114: Coordinación de actividades de los departamentos de la Dirección de Desempeño, Resultados y Tablero de Control | G114: Porcentaje de avance en la supervision y seguimiento de las actividades de la direccion de Desempeño, Resultados y Tablero de control realizadas | H114: Numero de Actividades supervisadas | I114: 0 | J114: 3 | K114: Ing. Raúl Pérez y Pérez | L114: 3316921707 | M114: Raul.perez@tlaquepaque.gob.mx | T114: =SUM(P114:S114/J114) -> 0
A115: SECRETARIA_DE_PLANIFICACION_ANALISIS_Y_GESTION_URBANADIRECCION DE GESTION DEL DESEMPEÑO, EVALUACION DE RESULTADOS Y TABLERO DE CONTROL2Gestión para el sistema integral para la planeación y evaluación de la auditoria publica municipal | B115: SECRETARIA_DE_PLANIFICACION_ANALISIS_Y_GESTION_URBANADIRECCION DE GESTION DEL DESEMPEÑO, EVALUACION DE RESULTADOS Y TABLERO DE CONTROL2 | C115: SECRETARIA_DE_PLANIFICACION_ANALISIS_Y_GESTION_URBANA | D115: DIRECCION DE GESTION DEL DESEMPEÑO, EVALUACION DE RESULTADOS Y TABLERO DE CONTROL | E115: =COUNTIF($D$4:D115,D115:D115) -> 2 | F115: Gestión para el sistema integral para la planeación y evaluación de la auditoria publica municipal | G115: Porcentaje de avance en la gestión para la implementación del sistema que permita monitorear y evaluar la planeación operativa 2024-2025 | H115: Número de etapas realizadas | I115: 0 | J115: 8 | K115: Ing. Raúl Pérez y Pérez | L115: 3316921707 | M115: Raul.perez@tlaquepaque.gob.mx | T115: =SUM(P115:S115/J115) -> 0
A116: SECRETARIA_DE_PLANIFICACION_ANALISIS_Y_GESTION_URBANADIRECCION DE GESTION DEL DESEMPEÑO, EVALUACION DE RESULTADOS Y TABLERO DE CONTROL3Seguimiento y Evaluación a los Fondos de Origen Federal | B116: SECRETARIA_DE_PLANIFICACION_ANALISIS_Y_GESTION_URBANADIRECCION DE GESTION DEL DESEMPEÑO, EVALUACION DE RESULTADOS Y TABLERO DE CONTROL3 | C116: SECRETARIA_DE_PLANIFICACION_ANALISIS_Y_GESTION_URBANA | D116: DIRECCION DE GESTION DEL DESEMPEÑO, EVALUACION DE RESULTADOS Y TABLERO DE CONTROL | E116: =COUNTIF($D$4:D116,D116:D116) -> 3 | F116: Seguimiento y Evaluación a los Fondos de Origen Federal | G116: Porcentaje de avance de las evaluación realizadas | H116: Número de etapas realizadas | I116: 0 | J116: 8 | K116: Ing. Juan Enrique Acevedo Acevedo | L116: 3325745322 | M116: juan.aceves@tlaquepaque.gob.mx | T116: =SUM(P116:S116/J116) -> 0
A117: SECRETARIA_DE_PLANIFICACION_ANALISIS_Y_GESTION_URBANADEPARTAMENTO DEL SISTEMA DE EVALUACION DEL DESEMPEÑO1Seguimiento y Evaluación a la Administración Pública Municipal | B117: SECRETARIA_DE_PLANIFICACION_ANALISIS_Y_GESTION_URBANADEPARTAMENTO DEL SISTEMA DE EVALUACION DEL DESEMPEÑO1 | C117: SECRETARIA_DE_PLANIFICACION_ANALISIS_Y_GESTION_URBANA | D117: DEPARTAMENTO DEL SISTEMA DE EVALUACION DEL DESEMPEÑO | E117: =COUNTIF($D$4:D117,D117:D117) -> 1 | F117: Seguimiento y Evaluación a la Administración Pública Municipal | G117: Porcentaje de PbRs de la Planeación Operativa con seguimiento | H117: PbRs con seguimiento | I117: 398 | J117: 270 | K117: Ing. Juan Enrique Acevedo Acevedo | L117: 3325745322 | M117: juan.aceves@tlaquepaque.gob.mx | T117: =SUM(P117:S117/J117) -> 0
A118: SECRETARIA_DE_PLANIFICACION_ANALISIS_Y_GESTION_URBANADEPARTAMENTO DEL SISTEMA DE EVALUACION DEL DESEMPEÑO2Seguimiento y Evaluación a los Programas Sociales | B118: SECRETARIA_DE_PLANIFICACION_ANALISIS_Y_GESTION_URBANADEPARTAMENTO DEL SISTEMA DE EVALUACION DEL DESEMPEÑO2 | C118: SECRETARIA_DE_PLANIFICACION_ANALISIS_Y_GESTION_URBANA | D118: DEPARTAMENTO DEL SISTEMA DE EVALUACION DEL DESEMPEÑO | E118: =COUNTIF($D$4:D118,D118:D118) -> 2 | F118: Seguimiento y Evaluación a los Programas Sociales | G118: Porcentaje de programas sociales a los que se les aplicará la evaluación de consistencia y resultados | H118: Número de programas sociales evaluados | I118: 0 | J118: 4 | K118: Ing. Juan Enrique Acevedo Acevedo | L118: 3325745322 | M118: juan.aceves@tlaquepaque.gob.mx | T118: =SUM(P118:S118/J118) -> 0
A119: SECRETARIA_DE_PLANIFICACION_ANALISIS_Y_GESTION_URBANADEPARTAMENTO DE INDICADORES Y METAS PARA RESULTADOS1Servicio de Acompañamiento para la gestión del sistema de Planeación Municipal | B119: SECRETARIA_DE_PLANIFICACION_ANALISIS_Y_GESTION_URBANADEPARTAMENTO DE INDICADORES Y METAS PARA RESULTADOS1 | C119: SECRETARIA_DE_PLANIFICACION_ANALISIS_Y_GESTION_URBANA | D119: DEPARTAMENTO DE INDICADORES Y METAS PARA RESULTADOS | E119: =COUNTIF($D$4:D119,D119:D119) -> 1 | F119: Servicio de Acompañamiento para la gestión del sistema de Planeación Municipal | G119: Porcentaje de avance en las etapas de acompañamiento/asesorías para generar la planeación operativa 2024-2025 e integración del Sistema de Indicadores del Desempeño 2024 de las áreas y direcciones municipales | H119: Etapas realizadas | I119: 13 | J119: 13 | K119: Liliana Delfín Jiménez | L119: 9981604015 | M119: liliana.delfin@tlaquepaque.gob.mx | T119: =SUM(P119:S119/J119) -> 0
A120: SECRETARIA_DE_PLANIFICACION_ANALISIS_Y_GESTION_URBANADIRECCION DEL BANCO INTEGRADO DE PROYECTOS Y PROGRAMAS1Seguimiento de Mesas de gestión Metropolitana ante el IMEPLAN | B120: SECRETARIA_DE_PLANIFICACION_ANALISIS_Y_GESTION_URBANADIRECCION DEL BANCO INTEGRADO DE PROYECTOS Y PROGRAMAS1 | C120: SECRETARIA_DE_PLANIFICACION_ANALISIS_Y_GESTION_URBANA | D120: DIRECCION DEL BANCO INTEGRADO DE PROYECTOS Y PROGRAMAS | E120: =COUNTIF($D$4:D120,D120:D120) -> 1 | F120: Seguimiento de Mesas de gestión Metropolitana ante el IMEPLAN | G120: Porcentaje de reportes mensuales generados por las mesas de gestión y coordinación activas | H120: Número de Reportes mensuales generados | I120: 0 | J120: 180 | K120: Jonathan Octavio García Martínez | L120: 3310622577 | M120: jonathan.garcia@tlaquepaque.gob.mx | T120: =SUM(P120:S120/J120) -> 0
A121: SECRETARIA_DE_PLANIFICACION_ANALISIS_Y_GESTION_URBANADIRECCION DEL BANCO INTEGRADO DE PROYECTOS Y PROGRAMAS2Banco integrado de proyectos y programas | B121: SECRETARIA_DE_PLANIFICACION_ANALISIS_Y_GESTION_URBANADIRECCION DEL BANCO INTEGRADO DE PROYECTOS Y PROGRAMAS2 | C121: SECRETARIA_DE_PLANIFICACION_ANALISIS_Y_GESTION_URBANA | D121: DIRECCION DEL BANCO INTEGRADO DE PROYECTOS Y PROGRAMAS | E121: =COUNTIF($D$4:D121,D121:D121) -> 2 | F121: Banco integrado de proyectos y programas | G121: Porcentaje de avance en las etapas de gestión del recurso para la implementación del sistema de información geográfica, realizadas | H121: Número de Etapas de gestión realizadas | I121: 0 | J121: 6 | K121: Jonathan Octavio García Martínez | L121: 3310622577 | M121: jonathan.garcia@tlaquepaque.gob.mx | T121: =SUM(P121:S121/J121) -> 0
A122: SECRETARIA_DE_PLANIFICACION_ANALISIS_Y_GESTION_URBANADEPARTAMENTO DE EVALUACION DE PROYECTOS Y PROGRAMAS1Dictamen de evaluación de solicitud de obras | B122: SECRETARIA_DE_PLANIFICACION_ANALISIS_Y_GESTION_URBANADEPARTAMENTO DE EVALUACION DE PROYECTOS Y PROGRAMAS1 | C122: SECRETARIA_DE_PLANIFICACION_ANALISIS_Y_GESTION_URBANA | D122: DEPARTAMENTO DE EVALUACION DE PROYECTOS Y PROGRAMAS | E122: =COUNTIF($D$4:D122,D122:D122) -> 1 | F122: Dictamen de evaluación de solicitud de obras | G122: Porcentaje de diagnóstico de dictamenes de evaluación de solicitud de obras | H122: Número de dictamenes de evaluación elaborados | I122: 0 | J122: 80 | K122: María Guadalupe Saldaña Duarte | L122: 33-13-49-10-90 | M122: mgsd2909@gmail.com | N122: Revisado | T122: =SUM(P122:S122/J122) -> 0
A123: SECRETARIA_DE_BIENESTARDIRECCION DE PROGRAMAS SOCIALES PARA EL BIENESTAR1Bienestar Incluyente | B123: SECRETARIA_DE_BIENESTARDIRECCION DE PROGRAMAS SOCIALES PARA EL BIENESTAR1 | C123: SECRETARIA_DE_BIENESTAR | D123: DIRECCION DE PROGRAMAS SOCIALES PARA EL BIENESTAR | E123: =COUNTIF($D$4:D123,D123:D123) -> 1 | F123: Bienestar Incluyente | G123: Porcentaje de personas con discapacidad permanente que reciben el apoyo económico | H123: Número de personas que reciben apoyo | I123: 0 | J123: 4200 | K123: Daniel Mercado | L123: 3311979562 | M123: daniel.m.fotografo@outlook.com, marius.doctus@gmail.com | N123: Revisado | T123: =SUM(P123:S123/J123) -> 0
A124: SECRETARIA_DE_BIENESTARDIRECCION DE PROGRAMAS SOCIALES PARA EL BIENESTAR2Aprendiendo con Bienestar | B124: SECRETARIA_DE_BIENESTARDIRECCION DE PROGRAMAS SOCIALES PARA EL BIENESTAR2 | C124: SECRETARIA_DE_BIENESTAR | D124: DIRECCION DE PROGRAMAS SOCIALES PARA EL BIENESTAR | E124: =COUNTIF($D$4:D124,D124:D124) -> 2 | F124: Aprendiendo con Bienestar | G124: Útiles escolares Porcentaje de | H124: Número de alumnos inscirtos en matrícula de educación básica pública | I124: 0 | J124: 98124 | K124: Mario Alberto Aguila Higuera | L124: 33-10-22-23-77 | M124: marius.doctus@gmail.com | N124: Revisado | T124: =SUM(P124:S124/J124) -> 0
A125: SECRETARIA_DE_BIENESTARDIRECCION DE PROGRAMAS SOCIALES PARA EL BIENESTAR3Raíces de Esperanza | B125: SECRETARIA_DE_BIENESTARDIRECCION DE PROGRAMAS SOCIALES PARA EL BIENESTAR3 | C125: SECRETARIA_DE_BIENESTAR | D125: DIRECCION DE PROGRAMAS SOCIALES PARA EL BIENESTAR | E125: =COUNTIF($D$4:D125,D125:D125) -> 3 | F125: Raíces de Esperanza | G125: Porcentaje de Artesanas y Artesanos que reciben un apoyo económico. | H125: Numero de artesanas/os que reciben apoyo | I125: 0 | J125: 428 | K125: Araceli Hernández | L125: 3312954027 | M125: tsaracelihernandez18@gmail.com, marius.doctus@gmail.com | N125: Revisado | T125: =SUM(P125:S125/J125) -> 0
A126: SECRETARIA_DE_BIENESTARDIRECCION DE PROGRAMAS SOCIALES PARA EL BIENESTAR4Líderes de Esperanza | B126: SECRETARIA_DE_BIENESTARDIRECCION DE PROGRAMAS SOCIALES PARA EL BIENESTAR4 | C126: SECRETARIA_DE_BIENESTAR | D126: DIRECCION DE PROGRAMAS SOCIALES PARA EL BIENESTAR | E126: =COUNTIF($D$4:D126,D126:D126) -> 4 | F126: Líderes de Esperanza | G126: Apoyar a mujeres líderes del hogar, padres solteros y tutores de San Pedro Tlaquepaque | H126: 5500 beneficiarias | I126: 0 | J126: 5500 | K126: Yessica Lizeth Castellanos Carrillo | L126: 3318435959 | M126: carrilloyessica791@gmail.com, marius.doctus@gmail.com | N126: Revisado | T126: =SUM(P126:S126/J126) -> 0
A127: SECRETARIA_DE_BIENESTARDIRECCION DE EDUCACION1Feria de la oferta educativa media superior y superior | B127: SECRETARIA_DE_BIENESTARDIRECCION DE EDUCACION1 | C127: SECRETARIA_DE_BIENESTAR | D127: DIRECCION DE EDUCACION | E127: =COUNTIF($D$4:D127,D127:D127) -> 1 | F127: Feria de la oferta educativa media superior y superior | G127: Porcentaje de charlas sobre ofertas educativas a estudiantes de secundaria | H127: número de charlas impartidas | I127: 0 | J127: 5000 | K127: Julio Ornelas Camacho | L127: 3336576890 | M127: julio.ornelas@tlaquepaque.gob.mx | N127: Revisado/Por definir | T127: =SUM(P127:S127/J127) -> 0
A128: SECRETARIA_DE_BIENESTARDIRECCION DE EDUCACION2Educación Y Capacitación Para El Medio Ambiente | B128: SECRETARIA_DE_BIENESTARDIRECCION DE EDUCACION2 | C128: SECRETARIA_DE_BIENESTAR | D128: DIRECCION DE EDUCACION | E128: =COUNTIF($D$4:D128,D128:D128) -> 2 | F128: Educación Y Capacitación Para El Medio Ambiente | G128: Porcentaje de planteles intervenidos mediante capacitaciones sobre cuidado al medio ambiente | H128: Número de planteles intervenidos | I128: 0 | J128: 80 | K128: Julio Ornelas Camacho | L128: 3336576890 | M128: julio.ornelas@tlaquepaque.gob.mx | N128: Revisado | T128: =SUM(P128:S128/J128) -> 0
A129: =B129&F129 -> SECRETARIA_DE_BIENESTARDIRECCION DE EDUCACION3Cabildo Infantil Y Juvenil | B129: =C129&D129&E129 -> SECRETARIA_DE_BIENESTARDIRECCION DE EDUCACION3 | C129: SECRETARIA_DE_BIENESTAR | D129: DIRECCION DE EDUCACION | E129: =COUNTIF($D$4:D129,D129:D129) -> 3 | F129: Cabildo Infantil Y Juvenil | G129: Porcentaje de alumnos elegidos en el proceso electoral | H129: número de alumnos elegidos en el proceso electoral | I129: 0 | J129: 21 | K129: Julio Ornelas Camacho | L129: 3336576890 | M129: julio.ornelas@tlaquepaque.gob.mx | N129: Revisado/Agregado | T129: =SUM(P129:S129/J129) -> 0
A130: SECRETARIA_DE_BIENESTARDIRECCION DE EDUCACION4Abrigando Tu Bienestar | B130: SECRETARIA_DE_BIENESTARDIRECCION DE EDUCACION4 | C130: SECRETARIA_DE_BIENESTAR | D130: DIRECCION DE EDUCACION | E130: =COUNTIF($D$4:D130,D130:D130) -> 4 | F130: Abrigando Tu Bienestar | G130: Porcentaje de personas benefiaciadas mediante la campaña abrigando tu bienestar | H130: Número de personas beneficiadas | I130: 0 | J130: 1000 | K130: Julio Ornelas Camacho | L130: 3313049438 | M130: julio.ornelas@tlaquepaque.gob.mx | N130: Revisado | T130: =SUM(P130:S130/J130) -> 0
A131: SECRETARIA_DE_BIENESTARDIRECCION DE EDUCACION5Actividades Extraescolares | B131: SECRETARIA_DE_BIENESTARDIRECCION DE EDUCACION5 | C131: SECRETARIA_DE_BIENESTAR | D131: DIRECCION DE EDUCACION | E131: =COUNTIF($D$4:D131,D131:D131) -> 5 | F131: Actividades Extraescolares | G131: Porcentaje de alumnos beneficiados, mediante cursos extraescolares | H131: número de alumnos beneficiados | I131: 0 | J131: 1000 | K131: Julio Ornelas Camacho | L131: 3313049438 | M131: julio.ornelas@tlaquepaque.gob.mx | N131: Revisado | T131: =SUM(P131:S131/J131) -> 0
A132: SECRETARIA_DE_BIENESTARDIRECCION DE EDUCACION6Actividades Extraescolares | B132: SECRETARIA_DE_BIENESTARDIRECCION DE EDUCACION6 | C132: SECRETARIA_DE_BIENESTAR | D132: DIRECCION DE EDUCACION | E132: =COUNTIF($D$4:D132,D132:D132) -> 6 | F132: Actividades Extraescolares | G132: Porcentaje de cursos extraescolares impartidos | H132: números de cursos impartidos | I132: 0 | J132: 1000 | K132: Julio Ornelas Camacho | L132: 3313049438 | M132: julio.ornelas@tlaquepaque.gob.mx | N132: Revisado | T132: =SUM(P132:S132/J132) -> 0
A133: SECRETARIA_DE_BIENESTARSUBDIRECCION DE DESARROLLO Y ATENCION AL SECTOR AGROPECUARIO1Rehabilitación Permanente De Caminos Rurales | B133: SECRETARIA_DE_BIENESTARSUBDIRECCION DE DESARROLLO Y ATENCION AL SECTOR AGROPECUARIO1 | C133: SECRETARIA_DE_BIENESTAR | D133: SUBDIRECCION DE DESARROLLO Y ATENCION AL SECTOR AGROPECUARIO | E133: =COUNTIF($D$4:D133,D133:D133) -> 1 | F133: Rehabilitación Permanente De Caminos Rurales | G133: Porcentaje de etapas de gestión para la adquisición de una Motoconformadora, Material para Caminos (Gravilla) | H133: número de etapas de gestión realizadas | I133: 0 | J133: 2 | K133: Jorge Eduardo Luján Gómez | L133: 33-36-01-14-05 | M133: agropecuariotlaquepaque@gmail.com | N133: Revisado | T133: =SUM(P133:S133/J133) -> 0
A134: SECRETARIA_DE_BIENESTARSUBDIRECCION DE DESARROLLO Y ATENCION AL SECTOR AGROPECUARIO2Rehabilitación Permanente De Caminos Rurales | B134: SECRETARIA_DE_BIENESTARSUBDIRECCION DE DESARROLLO Y ATENCION AL SECTOR AGROPECUARIO2 | C134: SECRETARIA_DE_BIENESTAR | D134: SUBDIRECCION DE DESARROLLO Y ATENCION AL SECTOR AGROPECUARIO | E134: =COUNTIF($D$4:D134,D134:D134) -> 2 | F134: Rehabilitación Permanente De Caminos Rurales | G134: Porcentaje de kilómetros rehabilitados en caminos rurales. | H134: Número de Kilómetros rehabilitados | I134: 60 | J134: 65 | K134: Jorge Eduardo Luján Gómez | L134: 33-36-01-14-05 | M134: agropecuariotlaquepaque@gmail.com | N134: Revisado | T134: =SUM(P134:S134/J134) -> 0
A135: SECRETARIA_DE_BIENESTARSUBDIRECCION DE DESARROLLO Y ATENCION AL SECTOR AGROPECUARIO3Procesadora de composta orgánica. | B135: SECRETARIA_DE_BIENESTARSUBDIRECCION DE DESARROLLO Y ATENCION AL SECTOR AGROPECUARIO3 | C135: SECRETARIA_DE_BIENESTAR | D135: SUBDIRECCION DE DESARROLLO Y ATENCION AL SECTOR AGROPECUARIO | E135: =COUNTIF($D$4:D135,D135:D135) -> 3 | F135: Procesadora de composta orgánica. | G135: Porcentaje de etapas de gestión para el equipamiento de la dirección | H135: número de etapas realizadas | I135: 0 | J135: 7 | K135: Jorge Eduardo Luján Gómez | L135: 33-36-01-14-05 | M135: agropecuariotlaquepaque@gmail.com | N135: Revisado | T135: =SUM(P135:S135/J135) -> 0
A136: SECRETARIA_DE_BIENESTARSUBDIRECCION DE DESARROLLO Y ATENCION AL SECTOR AGROPECUARIO4Pozos de absorción Tecnificados. | B136: SECRETARIA_DE_BIENESTARSUBDIRECCION DE DESARROLLO Y ATENCION AL SECTOR AGROPECUARIO4 | C136: SECRETARIA_DE_BIENESTAR | D136: SUBDIRECCION DE DESARROLLO Y ATENCION AL SECTOR AGROPECUARIO | E136: =COUNTIF($D$4:D136,D136:D136) -> 4 | F136: Pozos de absorción Tecnificados. | G136: Porcentaje de pozos de absorción tecnificados construidos. | H136: Pozos de absorción construidos. | I136: 10 | J136: 10 | K136: Jorge Eduardo Luján Gómez | L136: 33-36-01-14-05 | M136: agropecuariotlaquepaque@gmail.com | N136: Revisado | T136: =SUM(P136:S136/J136) -> 0
A137: SECRETARIA_DE_BIENESTARSUBDIRECCION DE DESARROLLO Y ATENCION AL SECTOR AGROPECUARIO5Conservación y mejoramiento de suelos agrícolas | B137: SECRETARIA_DE_BIENESTARSUBDIRECCION DE DESARROLLO Y ATENCION AL SECTOR AGROPECUARIO5 | C137: SECRETARIA_DE_BIENESTAR | D137: SUBDIRECCION DE DESARROLLO Y ATENCION AL SECTOR AGROPECUARIO | E137: =COUNTIF($D$4:D137,D137:D137) -> 5 | F137: Conservación y mejoramiento de suelos agrícolas | G137: Porcentaje de toneladas de cal y minerales incorporados mediante el Programa de conservación y mejora de los suelos agrícolas | H137: Número de Toneladas incorporadas al suelo | I137: 300 | J137: 300 | K137: Jorge Eduardo Luján Gómez | L137: 33-36-01-14-05 | M137: agropecuariotlaquepaque@gmail.com | N137: Revisado | T137: =SUM(P137:S137/J137) -> 0
A138: SECRETARIA_DE_BIENESTARSUBDIRECCION DE DESARROLLO Y ATENCION AL SECTOR AGROPECUARIO6Conservación y mejoramiento de suelos agrícolas | B138: SECRETARIA_DE_BIENESTARSUBDIRECCION DE DESARROLLO Y ATENCION AL SECTOR AGROPECUARIO6 | C138: SECRETARIA_DE_BIENESTAR | D138: SUBDIRECCION DE DESARROLLO Y ATENCION AL SECTOR AGROPECUARIO | E138: =COUNTIF($D$4:D138,D138:D138) -> 6 | F138: Conservación y mejoramiento de suelos agrícolas | G138: Porcentaje de toneladas de cal y minerales incorporados mediante el Programa de conservación y mejora de los suelos agrícolas | H138: Número de Toneladas incorporadas al suelo | I138: 200 | J138: 200 | K138: Jorge Eduardo Luján Gómez | L138: 33-36-01-14-05 | M138: agropecuariotlaquepaque@gmail.com | N138: Revisado | T138: =SUM(P138:S138/J138) -> 0
A139: SECRETARIA_DE_BIENESTARSUBDIRECCION DE DESARROLLO Y ATENCION AL SECTOR AGROPECUARIO7Hidroponía | B139: SECRETARIA_DE_BIENESTARSUBDIRECCION DE DESARROLLO Y ATENCION AL SECTOR AGROPECUARIO7 | C139: SECRETARIA_DE_BIENESTAR | D139: SUBDIRECCION DE DESARROLLO Y ATENCION AL SECTOR AGROPECUARIO | E139: =COUNTIF($D$4:D139,D139:D139) -> 7 | F139: Hidroponía | G139: Porcentaje de huertos de hidroponia creados en el Municipio | H139: Número de huertos de hidroponia creados | I139: 20 | J139: 40 | K139: Juan Pablo Santana Moya | L139: 33-36-01-14-05 | M139: agropecuariotlaquepaque@gmail.com | N139: Revisado | T139: =SUM(P139:S139/J139) -> 0
A140: SECRETARIA_DE_FOMENTO_ECONOMICO_Y_CULTURALDIRECCION DE CULTURA1Cultura en tu colonia | B140: SECRETARIA_DE_FOMENTO_ECONOMICO_Y_CULTURALDIRECCION DE CULTURA1 | C140: SECRETARIA_DE_FOMENTO_ECONOMICO_Y_CULTURAL | D140: DIRECCION DE CULTURA | E140: =COUNTIF($D$4:D140,D140:D140) -> 1 | F140: Cultura en tu colonia | G140: Porcentaje de artistas contratados para llevar actividades culturales a las colonias vulnerables | H140: Número de artistas contratados | I140: 53 | J140: 50 | K140: Vázquez Sandoval Arianna Janeth | L140: ´'3316018010 | M140: oscar.carrillo.cultura@gmail.com | N140: Revisado | O140: Eficiencia / Eficacia | P140: 0 | T140: =SUM(P140:S140/J140) -> 0 | U140: Durante este trimestre se trabajó en la planeación del programa buscando apoyar a la comunidad artística y por consecuencia a las colonias del municipio, buscamos llegar a artistas de todas las disciplinas para con ellos ofrecer una programación cultural versátil, obteniendo un mejor impacto entre la población de San Pedro Tlaquepaque, con la que rescataremos los valores y tradiciones del municipio.
A141: =B141&F141 -> SECRETARIA_DE_FOMENTO_ECONOMICO_Y_CULTURALDIRECCION DE CULTURA2Cultura Por La Paz | B141: =C141&D141&E141 -> SECRETARIA_DE_FOMENTO_ECONOMICO_Y_CULTURALDIRECCION DE CULTURA2 | C141: SECRETARIA_DE_FOMENTO_ECONOMICO_Y_CULTURAL | D141: DIRECCION DE CULTURA | E141: =COUNTIF($D$4:D141,D141:D141) -> 2 | F141: Cultura Por La Paz | G141: Porcentaje de colonias beneficiadas con actividades culturales. | H141: Numero de colonias beneficiadas | I141: 186 | J141: 80 | K141: Vázquez Sandoval Arianna Janeth | L141: ´'3316018010 | M141: oscar.carrillo.cultura@gmail.com | N141: Revisado/Agregado | O141: Eficiencia / Eficacia | P141: 8 | T141: =SUM(P141:S141/J141) -> 0.1 | U141: El programa de Cultura por la Paz tiene como finalidad llevar la cultura a las comunidades que no cuentan con infraestructura cultural, atendiendo a los ciudadanos que carecen de los medios para acceder a la cultura, por lo cual se diseñó una propuesta en beneficio las colonias vulnerables del municipio y aquellas que son susceptibles de atención, iniciamos este trimestre, llevando, talleres artísticos, actividades de fomento a la lectura y cine al aire libre, hasta el momento se visitaron 8 colonias como: Tateposco, Toluquilla, Las Juntas, El Tapatío, Buenos Aires, La Ladrillera, Lomas del Tepeyac y Santa Cruz, llegando a 1,160 beneficiarios de los cuales, el 80% son menores de edad.
A142: SECRETARIA_DE_FOMENTO_ECONOMICO_Y_CULTURALDIRECCION DE CULTURA3Ferias, Festivales Y Exposiciones | B142: SECRETARIA_DE_FOMENTO_ECONOMICO_Y_CULTURALDIRECCION DE CULTURA3 | C142: SECRETARIA_DE_FOMENTO_ECONOMICO_Y_CULTURAL | D142: DIRECCION DE CULTURA | E142: =COUNTIF($D$4:D142,D142:D142) -> 3 | F142: Ferias, Festivales Y Exposiciones | G142: Porcentaje de avances en Festivales o Ferias | H142: Festivales y/o Ferias realizados | I142: 4 | J142: 3 | K142: Vázquez Sandoval Arianna Janeth | L142: ´'3316018010 | M142: oscar.carrillo.cultura@gmail.com | N142: Revisado | O142: Eficiencia / Eficacia | P142: 0 | T142: =SUM(P142:S142/J142) -> 0 | U142: Durante este trimestre se planteó un calendario de exposiciones y festivales a desarrollarse durante este año en beneficio de la población.
A143: =B143&F143 -> SECRETARIA_DE_FOMENTO_ECONOMICO_Y_CULTURALDIRECCION DE CULTURA4Formación Continua | B143: SECRETARIA_DE_FOMENTO_ECONOMICO_Y_CULTURALDIRECCION DE CULTURA4 | C143: SECRETARIA_DE_FOMENTO_ECONOMICO_Y_CULTURAL | D143: DIRECCION DE CULTURA | E143: =COUNTIF($D$4:D143,D143:D143) -> 4 | F143: Formación Continua | G143: Numero de talleres impartidos en colonias | H143: Talleres impartidos en colonias | I143: 0 | J143: 10 | K143: Vázquez Sandoval Arianna Janeth | L143: ´'3316018010 | M143: oscar.carrillo.cultura@gmail.com | N143: Revisado | O143: Eficiencia / Eficacia | P143: 1 | T143: =SUM(P143:S143/J143) -> 0.1 | U143: Con la finalidad de enseñar un oficio a los asistentes, el cual pueda contribuir a su economía, en este trimestre iniciamos con el taller de creación de paletas de bombón con el que atendimos a 25 personas de la colonia el tapatío.
A144: SECRETARIA_DE_FOMENTO_ECONOMICO_Y_CULTURALDIRECCION DE CULTURA5Amigos de Refugio | B144: SECRETARIA_DE_FOMENTO_ECONOMICO_Y_CULTURALDIRECCION DE CULTURA5 | C144: SECRETARIA_DE_FOMENTO_ECONOMICO_Y_CULTURAL | D144: DIRECCION DE CULTURA | E144: =COUNTIF($D$4:D144,D144:D144) -> 5 | F144: Amigos de Refugio | G144: Porcentaje de visitas al recinto cultural | H144: Numero de visitas al recinto cultural | I144: 43 | J144: 30 | K144: Vázquez Sandoval Arianna Janeth | L144: 3316018010 | M144: oscar.carrillo.cultura@gmail.com | N144: Revisado | O144: Eficiencia / Eficacia | P144: 0 | T144: =SUM(P144:S144/J144) -> 0 | U144: Este periodo trabajamos en un plan para mostrar el patrimonio cultural a niñas, niños y adolescentes del municipio, por lo que realizamos la selección de talleres a impartir así como el listado de escuelas de las colonias.
A145: SECRETARIA_DE_FOMENTO_ECONOMICO_Y_CULTURALSUBDIRECCION DE BIBLIOTECAS1Talleres De Fomento A Cultura | B145: SECRETARIA_DE_FOMENTO_ECONOMICO_Y_CULTURALSUBDIRECCION DE BIBLIOTECAS1 | C145: SECRETARIA_DE_FOMENTO_ECONOMICO_Y_CULTURAL | D145: SUBDIRECCION DE BIBLIOTECAS | E145: =COUNTIF($D$4:D145,D145:D145) -> 1 | F145: Talleres De Fomento A Cultura | G145: Porcentaje de etapas de gestión para la adquisición de un vehículo para equipar la jefatura de bibliotecas | H145: Número de etapas realizadas | I145: 0 | J145: 2 | K145: Christian René García Gutiérrez | L145: 33-10-97-20-56 | M145: libroscoordinacion@gmail.com | N145: Revisado | T145: =SUM(P145:S145/J145) -> 0
A146: SECRETARIA_DE_FOMENTO_ECONOMICO_Y_CULTURALSUBDIRECCION DE BIBLIOTECAS2Talleres De Fomento A Cultura | B146: SECRETARIA_DE_FOMENTO_ECONOMICO_Y_CULTURALSUBDIRECCION DE BIBLIOTECAS2 | C146: SECRETARIA_DE_FOMENTO_ECONOMICO_Y_CULTURAL | D146: SUBDIRECCION DE BIBLIOTECAS | E146: =COUNTIF($D$4:D146,D146:D146) -> 2 | F146: Talleres De Fomento A Cultura | G146: Porcentaje de personas atendidas mediante los talleres de fomento a la cultura y educacion. | H146: Numero de Personas Atendidas | I146: 0 | J146: 100000 | K146: Christian René García Gutiérrez | L146: 33-10-97-20-56 | M146: libroscoordinacion@gmail.com | N146: Revisado | T146: =SUM(P146:S146/J146) -> 0
A147: SECRETARIA_DE_FOMENTO_ECONOMICO_Y_CULTURALSUBDIRECCION DE MUSEOS1Exposiciones Temporales | B147: SECRETARIA_DE_FOMENTO_ECONOMICO_Y_CULTURALSUBDIRECCION DE MUSEOS1 | C147: SECRETARIA_DE_FOMENTO_ECONOMICO_Y_CULTURAL | D147: SUBDIRECCION DE MUSEOS | E147: =COUNTIF($D$4:D147,D147:D147) -> 1 | F147: Exposiciones Temporales | G147: Porcentaje de exposiciones temporales realizadas | H147: Número de exposiciones realizadas | I147: 0 | J147: 4 | K147: DAVID GALLEGOS | L147: 33-36-39-56-46 | M147: pantaleonpanduromuseo@gmail.com | N147: Revisado | T147: =SUM(P147:S147/J147) -> 0
A148: SECRETARIA_DE_FOMENTO_ECONOMICO_Y_CULTURALSUBDIRECCION DE MUSEOS2Museo Itinerante | B148: =C148&D148&E148 -> SECRETARIA_DE_FOMENTO_ECONOMICO_Y_CULTURALSUBDIRECCION DE MUSEOS2 | C148: SECRETARIA_DE_FOMENTO_ECONOMICO_Y_CULTURAL | D148: SUBDIRECCION DE MUSEOS | E148: =COUNTIF($D$4:D148,D148:D148) -> 2 | F148: Museo Itinerante | G148: Porcentaje de exposiciones itinerantes para mostrar el talento artístico de nuestros artesanos, realizadas | H148: número de exposiciones realizadas | I148: 0 | J148: 3 | K148: DAVID GALLEGOS | L148: 33-36-39-56-46 | M148: pantaleonpanduromuseo@gmail.com | N148: Revisado/Agregado | T148: =SUM(P148:S148/J148) -> 0
A149: SECRETARIA_DE_FOMENTO_ECONOMICO_Y_CULTURALSUBDIRECCION DE MUSEOS3Museos a la Calle | B149: SECRETARIA_DE_FOMENTO_ECONOMICO_Y_CULTURALSUBDIRECCION DE MUSEOS3 | C149: SECRETARIA_DE_FOMENTO_ECONOMICO_Y_CULTURAL | D149: SUBDIRECCION DE MUSEOS | E149: =COUNTIF($D$4:D149,D149:D149) -> 3 | F149: Museos a la Calle | G149: Porcentaje de exposiciones itinerantes en colonias marginadas del municipio, realizadas | H149: número de exposiciones realizadas | I149: 0 | J149: 1 | K149: DAVID GALLEGOS | L149: 33-36-39-56-46 | M149: pantaleonpanduromuseo@gmail.com | N149: Revisado | T149: =SUM(P149:S149/J149) -> 0
A150: SECRETARIA_DE_FOMENTO_ECONOMICO_Y_CULTURALSUBDIRECCION DE MUSEOS4Xvlvii Premio Nacional De La Cerámica | B150: SECRETARIA_DE_FOMENTO_ECONOMICO_Y_CULTURALSUBDIRECCION DE MUSEOS4 | C150: SECRETARIA_DE_FOMENTO_ECONOMICO_Y_CULTURAL | D150: SUBDIRECCION DE MUSEOS | E150: =COUNTIF($D$4:D150,D150:D150) -> 4 | F150: Xvlvii Premio Nacional De La Cerámica | G150: Porcentaje de etapas para la realización del Certamen del Premio Nacional de la Cerámica, realizadas | H150: Número de etapas realizadas | I150: 0 | J150: 3 | K150: DAVID GALLEGOS | L150: 33-36-39-56-46 | M150: pantaleonpanduromuseo@gmail.com | N150: Revisado | T150: =SUM(P150:S150/J150) -> 0
A151: SECRETARIA_DE_FOMENTO_ECONOMICO_Y_CULTURALDIRECCION DE DESARROLLO ARTESANAL Y TURISTICO (ARTESANAL)1Capacitación | B151: SECRETARIA_DE_FOMENTO_ECONOMICO_Y_CULTURALDIRECCION DE DESARROLLO ARTESANAL Y TURISTICO (ARTESANAL)1 | C151: SECRETARIA_DE_FOMENTO_ECONOMICO_Y_CULTURAL | D151: DIRECCION DE DESARROLLO ARTESANAL Y TURISTICO (ARTESANAL) | E151: =COUNTIF($D$4:D151,D151:D151) -> 1 | F151: Capacitación | G151: Porcentaje de capacitaciones en técnicas artesanales y modelos de negocios a los artesanos registrados en el padrón artesanal | H151: Numero de capacitaciones realizadas | I151: 9 | J151: 12 | K151: Mtro. Arwin Armando Matanael Ramos Casas | L151: 3310576212 | M151: patricia.cano@tlaquepaque.gob.mx | N151: Revisado | T151: =SUM(P151:S151/J151) -> 0
A152: SECRETARIA_DE_FOMENTO_ECONOMICO_Y_CULTURALDIRECCION DE DESARROLLO ARTESANAL Y TURISTICO (ARTESANAL)2Padrón Artesanal y Credencialización | B152: SECRETARIA_DE_FOMENTO_ECONOMICO_Y_CULTURALDIRECCION DE DESARROLLO ARTESANAL Y TURISTICO (ARTESANAL)2 | C152: SECRETARIA_DE_FOMENTO_ECONOMICO_Y_CULTURAL | D152: DIRECCION DE DESARROLLO ARTESANAL Y TURISTICO (ARTESANAL) | E152: =COUNTIF($D$4:D152,D152:D152) -> 2 | F152: Padrón Artesanal y Credencialización | G152: Porcentaje de avance en la revisión y actualización del padrón de artesanos | H152: Numero de artesanos registrados | I152: 426 | J152: 426 | K152: Mtro. Arwin Armando Matanael Ramos Casas | L152: 3310576212 | M152: patricia.cano@tlaquepaque.gob.mx | N152: Revisado | T152: =SUM(P152:S152/J152) -> 0
A153: SECRETARIA_DE_FOMENTO_ECONOMICO_Y_CULTURALDIRECCION DE DESARROLLO ARTESANAL Y TURISTICO (ARTESANAL)3Padrón Artesanal y Credencialización | B153: =C153&D153&E153 -> SECRETARIA_DE_FOMENTO_ECONOMICO_Y_CULTURALDIRECCION DE DESARROLLO ARTESANAL Y TURISTICO (ARTESANAL)3 | C153: SECRETARIA_DE_FOMENTO_ECONOMICO_Y_CULTURAL | D153: DIRECCION DE DESARROLLO ARTESANAL Y TURISTICO (ARTESANAL) | E153: =COUNTIF($D$4:D153,D153:D153) -> 3 | F153: Padrón Artesanal y Credencialización | G153: Porcentaje de avance en la entrega de credenciales a los artesanos registrados en el padrón | H153: número de credenciales antregadas | I153: 0 | J153: 426 | K153: Mtro. Arwin Armando Matanael Ramos Casas | L153: 3310576212 | M153: patricia.cano@tlaquepaque.gob.mx | N153: Revisado | T153: =SUM(P153:S153/J153) -> 0
A154: SECRETARIA_DE_FOMENTO_ECONOMICO_Y_CULTURALDIRECCION DE DESARROLLO ARTESANAL Y TURISTICO (ARTESANAL)4Rescatando nuestras Tradiciones | B154: SECRETARIA_DE_FOMENTO_ECONOMICO_Y_CULTURALDIRECCION DE DESARROLLO ARTESANAL Y TURISTICO (ARTESANAL)4 | C154: SECRETARIA_DE_FOMENTO_ECONOMICO_Y_CULTURAL | D154: DIRECCION DE DESARROLLO ARTESANAL Y TURISTICO (ARTESANAL) | E154: =COUNTIF($D$4:D154,D154:D154) -> 4 | F154: Rescatando nuestras Tradiciones | G154: Porcentaje de talleres para fomentar el oficio de la artesanía, impartidos | H154: Numero de Talleres impartidos | I154: 95 | J154: 100 | K154: Mtro. Arwin Armando Matanael Ramos Casas | L154: 3310576212 | M154: patricia.cano@tlaquepaque.gob.mx | N154: Revisado | T154: =SUM(P154:S154/J154) -> 0
A155: SECRETARIA_DE_FOMENTO_ECONOMICO_Y_CULTURALDIRECCION DE DESARROLLO ARTESANAL Y TURISTICO (TURISMO)1Festivales, Eventos, Ferias y Exposiciones | B155: SECRETARIA_DE_FOMENTO_ECONOMICO_Y_CULTURALDIRECCION DE DESARROLLO ARTESANAL Y TURISTICO (TURISMO)1 | C155: SECRETARIA_DE_FOMENTO_ECONOMICO_Y_CULTURAL | D155: DIRECCION DE DESARROLLO ARTESANAL Y TURISTICO (TURISMO) | E155: =COUNTIF($D$4:D155,D155:D155) -> 1 | F155: Festivales, Eventos, Ferias y Exposiciones | G155: Porcentaje de actividades turísticas y culturales que promueven el flujo de visitantes, realizadas | H155: Número de actividades turísticas y culturales realizads | I155: 12 | J155: 17 | K155: Jessica Lizbeth Gallardo González / Arwin Armando Matanael Ramos Casas | L155: 33 1057 6212 / 33 1206960 | M155: desarrolloartesanalyturistico@tlaquepaque.gob.mx | N155: Revisado | T155: =SUM(P155:S155/J155) -> 0
A156: SECRETARIA_DE_FOMENTO_ECONOMICO_Y_CULTURALDIRECCION DE DESARROLLO ARTESANAL Y TURISTICO (TURISMO)2Permanencia Pueblo Mágico | B156: SECRETARIA_DE_FOMENTO_ECONOMICO_Y_CULTURALDIRECCION DE DESARROLLO ARTESANAL Y TURISTICO (TURISMO)2 | C156: SECRETARIA_DE_FOMENTO_ECONOMICO_Y_CULTURAL | D156: DIRECCION DE DESARROLLO ARTESANAL Y TURISTICO (TURISMO) | E156: =COUNTIF($D$4:D156,D156:D156) -> 2 | F156: Permanencia Pueblo Mágico | G156: Porcentaje de personas que visitan el municipio registrados en módulos de información, tour-operadores y hoteles | H156: Número de visitantes registrados | I156: 319000 | J156: 400000 | K156: Jessica Lizbeth Gallardo González / Arwin Armando Matanael Ramos Casas | L156: 33 1057 6212 / 33 1206960 | M156: desarrolloartesanalyturistico@tlaquepaque.gob.mx | N156: Revisado | T156: =SUM(P156:S156/J156) -> 0
A157: SECRETARIA_DE_FOMENTO_ECONOMICO_Y_CULTURALDIRECCION DE GESTION EMPRESARIAL E INDUSTRIAL1Vinculación directa con empresas | B157: SECRETARIA_DE_FOMENTO_ECONOMICO_Y_CULTURALDIRECCION DE GESTION EMPRESARIAL E INDUSTRIAL1 | C157: SECRETARIA_DE_FOMENTO_ECONOMICO_Y_CULTURAL | D157: DIRECCION DE GESTION EMPRESARIAL E INDUSTRIAL | E157: =COUNTIF($D$4:D157,D157:D157) -> 1 | F157: Vinculación directa con empresas | G157: Porcentaje de empresas vinculadas | H157: empresarios atendidos/vinculados | I157: 0 | J157: 30 | K157: Lcdo. José Antonio Álvarez Hernández | L157: 3336591599/3336590901 | M157: antonioempresarialindustrial@gmail.com | N157: Revisado | O157: EFICIENCIA | P157: 16 | T157: =SUM(P157:S157/J157) -> 0.5333333333 | U157: Durante este primer trimestre se le dió la atención a 16 empresas las cuales consultaron la bolsa de empleo para poder cubrir sus vacantes
A158: SECRETARIA_DE_FOMENTO_ECONOMICO_Y_CULTURALDIRECCION DE GESTION EMPRESARIAL E INDUSTRIAL2Expo Emprende y Transforma 2025 | B158: SECRETARIA_DE_FOMENTO_ECONOMICO_Y_CULTURALDIRECCION DE GESTION EMPRESARIAL E INDUSTRIAL2 | C158: SECRETARIA_DE_FOMENTO_ECONOMICO_Y_CULTURAL | D158: DIRECCION DE GESTION EMPRESARIAL E INDUSTRIAL | E158: =COUNTIF($D$4:D158,D158:D158) -> 2 | F158: Expo Emprende y Transforma 2025 | G158: Porcentanje de personas atendidas en general y vinculación empresarial | H158: Número de personas atendidas y vinculacion empresarial | I158: 0 | J158: 500 | K158: Lcdo. José Antonio Álvarez Hernández | L158: 3336591599/3336590901 | M158: antonioempresarialindustrial@gmail.com | N158: Revisado | O158: CALIDAD | P158: 0 | T158: =SUM(P158:S158/J158) -> 0 | U158: En este primer reporte no se encuntra con información ya que aún no se cuenta con los recursos económicos para despegar con dicho proyecto.
A159: SECRETARIA_DE_FOMENTO_ECONOMICO_Y_CULTURALDIRECCION DE GESTION EMPRESARIAL E INDUSTRIAL3Empleo a Tu Alcance | B159: SECRETARIA_DE_FOMENTO_ECONOMICO_Y_CULTURALDIRECCION DE GESTION EMPRESARIAL E INDUSTRIAL3 | C159: SECRETARIA_DE_FOMENTO_ECONOMICO_Y_CULTURAL | D159: DIRECCION DE GESTION EMPRESARIAL E INDUSTRIAL | E159: =COUNTIF($D$4:D159,D159:D159) -> 3 | F159: Empleo a Tu Alcance | G159: Porcentaje de personas beneficiadas con alguna vacante, mediante el programa Empleo a tu Alcance | H159: Número de personas atendidas | I159: 0 | J159: 300 | K159: Lcdo. José Antonio Álvarez Hernández | L159: 3336591599/3336590901 | M159: antonioempresarialindustrial@gmail.com | N159: Revisado | O159: EFICIENCIA | P159: 65 | T159: =SUM(P159:S159/J159) -> 0.2166666667 | U159: Se atendió un total de 65 personas buscadoras de empleo, y fueron vinculardos a un empleo formal, a través de la atención en la oficiona , y de los módulos de promoción en Colonias y Delegaciones, Feria de empleo.
A160: SECRETARIA_DE_FOMENTO_ECONOMICO_Y_CULTURALDIRECCION DE GESTION EMPRESARIAL E INDUSTRIAL4Capacitación Permanente Empresarial, Cooperativas bienes y/o Servicios y Talleres Autoempleo | B160: SECRETARIA_DE_FOMENTO_ECONOMICO_Y_CULTURALDIRECCION DE GESTION EMPRESARIAL E INDUSTRIAL4 | C160: SECRETARIA_DE_FOMENTO_ECONOMICO_Y_CULTURAL | D160: DIRECCION DE GESTION EMPRESARIAL E INDUSTRIAL | E160: =COUNTIF($D$4:D160,D160:D160) -> 4 | F160: Capacitación Permanente Empresarial, Cooperativas bienes y/o Servicios y Talleres Autoempleo | G160: Porcentaje de personas capacitadas en temas empresariales | H160: número de personas capacitadas en temas empresariales | I160: 100 | J160: 110 | K160: Lcdo. José Antonio Álvarez Hernández | L160: 3336591599/3336590901 | M160: antonioempresarialindustrial@gmail.com | N160: Revisado | O160: CALIDAD | P160: 79 | T160: =SUM(P160:S160/J160) -> 0.7181818182 | U160: se llevó a cabo el CURSO-TALLER de Económica Social y Solidaria fue impartido por Expositores profesionales de ITESO con la asistencia de 61 invitado de las siguientes instituciones: Universidad Azteca, CECyTEJ, Universidad de Guadalajara, UNIVER, Casa del Artesano y Público en General., se impartió el curso “Cooperativas de Servicio y Producción” con la asistencia de 10 ciudadanos de ellos fueron 08 emprendedores y 2 empresarios, se impartió el curso “IMPI Registro de Marca y Exportación” participando 6 emprendedores y 2 empresarios.
A161: SECRETARIA_DE_FOMENTO_ECONOMICO_Y_CULTURALDIRECCION DE GESTION EMPRESARIAL E INDUSTRIAL5Mujeres Empresarias en Tlaquepaque | B161: SECRETARIA_DE_FOMENTO_ECONOMICO_Y_CULTURALDIRECCION DE GESTION EMPRESARIAL E INDUSTRIAL5 | C161: SECRETARIA_DE_FOMENTO_ECONOMICO_Y_CULTURAL | D161: DIRECCION DE GESTION EMPRESARIAL E INDUSTRIAL | E161: =COUNTIF($D$4:D161,D161:D161) -> 5 | F161: Mujeres Empresarias en Tlaquepaque | G161: Porcentaje de etapas realizadas para el evento MUJERES EMPRESARIAS | H161: Número de etapas realizadas | I161: 1 | J161: 1 | K161: Mtro. Juan David Garcia Camarena | L161: 3336591599/3336590901 | M161: secretariafomentoeconomico01@gmail.com | O161: CALIDAD | P161: 0 | T161: =SUM(P161:S161/J161) -> 0 | U161: En este primer reporte no se encuntra con información ya que aún no se cuenta con los recursos económicospara despegar con dicho proyecto.
A162: SECRETARIA_DE_FOMENTO_ECONOMICO_Y_CULTURALDIRECCION DEL CENTRO HISTORICO1Mantenimiento y Conservación del Centro Histórico | B162: SECRETARIA_DE_FOMENTO_ECONOMICO_Y_CULTURALDIRECCION DEL CENTRO HISTORICO1 | C162: SECRETARIA_DE_FOMENTO_ECONOMICO_Y_CULTURAL | D162: DIRECCION DEL CENTRO HISTORICO | E162: =COUNTIF($D$4:D162,D162:D162) -> 1 | F162: Mantenimiento y Conservación del Centro Histórico | G162: Porcentaje de actividades de mantenimiento y conservación del Centro Histórico, relizadas | H162: Número de actividades realizadas | I162: 0 | J162: 60 | K162: JOSÉ ALONSO FLORES RAMÍREZ | L162: 3322354310 | M162: floresalonso.lcop@gmail.com | T162: =SUM(P162:S162/J162) -> 0
A163: SECRETARIA_DE_FOMENTO_ECONOMICO_Y_CULTURALDIRECCION DEL CENTRO HISTORICO2Agenda del Espacio Público | B163: SECRETARIA_DE_FOMENTO_ECONOMICO_Y_CULTURALDIRECCION DEL CENTRO HISTORICO2 | C163: SECRETARIA_DE_FOMENTO_ECONOMICO_Y_CULTURAL | D163: DIRECCION DEL CENTRO HISTORICO | E163: =COUNTIF($D$4:D163,D163:D163) -> 2 | F163: Agenda del Espacio Público | G163: Porcentaje de autorizaciones para el uso del espacio público del Centro Histórico | H163: Número de autorizaciones emitidas | I163: 0 | J163: 60 | K163: JOSÉ ALONSO FLORES RAMÍREZ | L163: 3322354310 | M163: floresalonso.lcop@gmail.com | N163: Revisado | T163: =SUM(P163:S163/J163) -> 0
A164: =B164&F164 -> SECRETARIA_DE_SERVICIOS_PUBLICOS_Y_MEDIO_AMBIENTEDIRECCIÓN DE CEMENTERIOS1Digitalización Administrativa | B164: =C164&D164&E164 -> SECRETARIA_DE_SERVICIOS_PUBLICOS_Y_MEDIO_AMBIENTEDIRECCIÓN DE CEMENTERIOS1 | C164: SECRETARIA_DE_SERVICIOS_PUBLICOS_Y_MEDIO_AMBIENTE | D164: DIRECCIÓN DE CEMENTERIOS | E164: =COUNTIF($D$4:D164,D164:D164) -> 1 | F164: Digitalización Administrativa | G164: Porcentaje de gestiones para la implementación de un sistema informático que permita llevar un control eficiente de los cementerios | H164: número de gestiones realizadas | I164: 0 | J164: 7 | K164: Marcela Carrillo Ramirez | L164: 3315489068 | M164: tlaqcementerios24@gmail.com | N164: Revisado | T164: =SUM(P164:S164/J164) -> 0
A165: SECRETARIA_DE_SERVICIOS_PUBLICOS_Y_MEDIO_AMBIENTEDEPARTAMENTO DE REGULACION AMBIENTAL1Creadores De Esperanza Para El Medio Ambiente | B165: SECRETARIA_DE_SERVICIOS_PUBLICOS_Y_MEDIO_AMBIENTEDEPARTAMENTO DE REGULACION AMBIENTAL1 | C165: SECRETARIA_DE_SERVICIOS_PUBLICOS_Y_MEDIO_AMBIENTE | D165: DEPARTAMENTO DE REGULACION AMBIENTAL | E165: =COUNTIF($D$4:D165,D165:D165) -> 1 | F165: Creadores De Esperanza Para El Medio Ambiente | G165: Porcentaje de charlas/talleres ambientales de manualidad con reciclado, realizados | H165: Número de charlas/talleres, realizados | I165: 100 | J165: 150 | K165: Carlos Iván Vázquez Muñoz | L165: 3334577356 | M165: carlosambiental2024@gmail.com | N165: Revisado | P165: 120 | T165: =SUM(P165:S165/J165) -> 0.8 | U165: DURANTE ESTE TRIMESTRE SE LOGRO LLEGAR A 8 JARDINES DE NIÑOS Y 1 PRIMARIA DONDE LOGRAMOS CAPACITAR A 1,924 PERSONAS CON CHARLAS AMBIENTALES ,ECO CINE O TEATRINO ASI COMO LOS TALLERES DE MANUALIDADES RECICLANDO 120 KG DE PET REALIZANDO PEQUE HUERTOS Y FLORES DE PET CON ESTAS ACTIVIDADES TAMBIEN SE INCULCO LA CULTURA DE CREAR HUERTOS URBANOS.
A166: SECRETARIA_DE_SERVICIOS_PUBLICOS_Y_MEDIO_AMBIENTEDEPARTAMENTO DE REGULACION AMBIENTAL2Gobierno Con Buen Papel | B166: SECRETARIA_DE_SERVICIOS_PUBLICOS_Y_MEDIO_AMBIENTEDEPARTAMENTO DE REGULACION AMBIENTAL2 | C166: SECRETARIA_DE_SERVICIOS_PUBLICOS_Y_MEDIO_AMBIENTE | D166: DEPARTAMENTO DE REGULACION AMBIENTAL | E166: =COUNTIF($D$4:D166,D166:D166) -> 2 | F166: Gobierno Con Buen Papel | G166: porcentaje de kilogramos de papel recolectado para el proceso de reciclaje | H166: kilogramos de papel recolectado | I166: 3500 | J166: 4000 | K166: Carlos Iván Vázquez Muñoz | L166: 3334577356 | M166: carlosambiental2024@gmail.com | N166: Revisado | P166: 300 | T166: =SUM(P166:S166/J166) -> 0.075 | U166: SE LOGRO VISITAR DIFERENTES DEPENDENCIAS DONDE PUDIMOS OBTENER UN APROXIMADO DE 300Kg DE PAPEL
A167: SECRETARIA_DE_SERVICIOS_PUBLICOS_Y_MEDIO_AMBIENTEDEPARTAMENTO DE REGULACION AMBIENTAL3Sembrando Esperanza | B167: SECRETARIA_DE_SERVICIOS_PUBLICOS_Y_MEDIO_AMBIENTEDEPARTAMENTO DE REGULACION AMBIENTAL3 | C167: SECRETARIA_DE_SERVICIOS_PUBLICOS_Y_MEDIO_AMBIENTE | D167: DEPARTAMENTO DE REGULACION AMBIENTAL | E167: =COUNTIF($D$4:D167,D167:D167) -> 3 | F167: Sembrando Esperanza | G167: Porcentaje de árboles reforestados, mediente el Programa Sembrando Esperanza | H167: número de árboles reforestados | I167: 0 | J167: 150 | K167: Carlos Iván Vázquez Muñoz | L167: 3334577356 | M167: carlosambiental2024@gmail.com | N167: Revisado | P167: 17 | T167: =SUM(P167:S167/J167) -> 0.1133333333 | U167: SE PLANTARON 17 ARBOLES DE DIFERENTESESPECIES ASI COMO LA DISTRIBUCION DE MAS DE 600 PAQUETES DE SEMILLAS DE DIFERENTES TIPOS COMO CHILE,CEBOLLA,MANZANILLA, OREGANO,COL ETC DANDOLE LA OPORTUNIDAD DE CREAR 200 HUERTOS FAMILIARES
A168: SECRETARIA_DE_SERVICIOS_PUBLICOS_Y_MEDIO_AMBIENTEDEPARTAMENTO DE REGULACION AMBIENTAL4Sembrando Esperanza | B168: SECRETARIA_DE_SERVICIOS_PUBLICOS_Y_MEDIO_AMBIENTEDEPARTAMENTO DE REGULACION AMBIENTAL4 | C168: SECRETARIA_DE_SERVICIOS_PUBLICOS_Y_MEDIO_AMBIENTE | D168: DEPARTAMENTO DE REGULACION AMBIENTAL | E168: =COUNTIF($D$4:D168,D168:D168) -> 4 | F168: Sembrando Esperanza | G168: Porcentaje de huertos intervenidos mediante el Programa Sembrando Esperanza | H168: número de huertos intervenidos | I168: 0 | J168: 50 | K168: Carlos Iván Vázquez Muñoz | L168: 3334577356 | M168: carlosambiental2024@gmail.com | N168: Revisado | T168: =SUM(P168:S168/J168) -> 0
A169: SECRETARIA_DE_SERVICIOS_PUBLICOS_Y_MEDIO_AMBIENTEDIRECCION DE AGUA POTABLE, DRENAJE Y ALCANTARILLADO1Padrón Único de Usuarios | B169: SECRETARIA_DE_SERVICIOS_PUBLICOS_Y_MEDIO_AMBIENTEDIRECCION DE AGUA POTABLE, DRENAJE Y ALCANTARILLADO1 | C169: SECRETARIA_DE_SERVICIOS_PUBLICOS_Y_MEDIO_AMBIENTE | D169: DIRECCION DE AGUA POTABLE, DRENAJE Y ALCANTARILLADO | E169: =COUNTIF($D$4:D169,D169:D169) -> 1 | F169: Padrón Único de Usuarios | G169: Porcentaje de viviendas agregadas al padrón único de usuarios. | H169: Número de Viviendas agregadas | I169: 522 | J169: 1200 | K169: ANTONIO GUADALUPE HURTADO NUÑEZ | L169: 3338370430 | M169: aghn1980@gmail.com | N169: Revisado | O169: Eficiencia / Economia | P169: 38 | T169: =SUM(P169:S169/J169) -> 0.03166666667 | U169: Se aperturaron 38 nuevas cuentas que aportaran economicamente a las arcas del ayuntamiento de San pedro tlaquepaque, las cuales son: 5 amaneceres, 1 fracc. Ojo de agua, 23 geovillas los olivos, 1 las liebres, 5 lopez cotilla, 1 san sebastianito, 1 santa maria tequepexpan y 1 toluquilla.
A170: SECRETARIA_DE_SERVICIOS_PUBLICOS_Y_MEDIO_AMBIENTEDIRECCION DE AGUA POTABLE, DRENAJE Y ALCANTARILLADO2Servicio Medido | B170: SECRETARIA_DE_SERVICIOS_PUBLICOS_Y_MEDIO_AMBIENTEDIRECCION DE AGUA POTABLE, DRENAJE Y ALCANTARILLADO2 | C170: SECRETARIA_DE_SERVICIOS_PUBLICOS_Y_MEDIO_AMBIENTE | D170: DIRECCION DE AGUA POTABLE, DRENAJE Y ALCANTARILLADO | E170: =COUNTIF($D$4:D170,D170:D170) -> 2 | F170: Servicio Medido | G170: Porcentaje de gestiones realizadas para la adquisición e Instalación de medidor de agua y piezas especiales | H170: Número de gestiones realizadas | I170: 0 | J170: 3 | K170: ANTONIO GUADALUPE HURTADO NUÑEZ | L170: 3338370430 | M170: aghn1980@gmail.com | N170: Revisado | O170: Eficiencia / Economia | P170: 0 | T170: =SUM(P170:S170/J170) -> 0 | U170: No se obtuvo el presupuesto en este trimestre, por tal motivo no se realizo ningun avance del programa, pero al inicio del año 2025 seguiremos solicitando para la ejecución de este.
A171: SECRETARIA_DE_SERVICIOS_PUBLICOS_Y_MEDIO_AMBIENTEDIRECCION DE AGUA POTABLE, DRENAJE Y ALCANTARILLADO3Servicio Medido | B171: SECRETARIA_DE_SERVICIOS_PUBLICOS_Y_MEDIO_AMBIENTEDIRECCION DE AGUA POTABLE, DRENAJE Y ALCANTARILLADO3 | C171: SECRETARIA_DE_SERVICIOS_PUBLICOS_Y_MEDIO_AMBIENTE | D171: DIRECCION DE AGUA POTABLE, DRENAJE Y ALCANTARILLADO | E171: =COUNTIF($D$4:D171,D171:D171) -> 3 | F171: Servicio Medido | G171: Porcentaje de adquisición e Instalación de medidor de agua y piezas especiales | H171: Número de medidores instalados | I171: 0 | J171: 1200 | K171: ANTONIO GUADALUPE HURTADO NUÑEZ | L171: 3338370430 | M171: aghn1980@gmail.com | N171: Revisado | O171: Eficiencia / Economia | P171: 0 | T171: =SUM(P171:S171/J171) -> 0 | U171: Se antendieron 388 reportes ciudadanos, 29,136 tomas de lecturas de medidores, 3,726 marco de inpedimentos en hoja de lectura, 29,526 revisión y aplicación de adeudos de cuentas en regimen de servicio medido, 28,858 capturas de lecturas de medidor de agua, 22,082 impresiones de recibos, 21,685 entrega de recibos en las colonias que menciono: Arroyo Seco, Barrio De San Miguel, El Real, Valles Del Sur l Y ll, Lomas Del Real, Prado De Santa María, Loma Verde, Villas De Santa María Y Las Brisas, Misión De San Francisco, Pintores Españoles, España, Loreto, Adamas, Los Naranjos, Fracc. Ojo De Agua, Quinta Nova, Infonavit Santa Anita, El Mirador Juan Arias, La Candelaria , La Calidad, Las Varitas, Ponciano Arriaga, Residencial Santa Anita, Villas De Santa Anita, Santa Anita, El Sereno, Aurea Residencial, La Nopalera, Calerilla, paseo del lago, ojo de agua, juan de la barrera y la ladrillera, Toluquilla, Prados de Toluquilla Y Providencia Toluquilla, San Sebastianito, Fracc. Geovillas Los Olivos, Residencial San Sebastianito, Indígena de San Sebastianito, Riveras de San Sebastianito, Olivos II, La Cartonera, fracc. Mision de San Francisco, Lopez Cotilla, las liebres en zonas altas y Portillo Blanco.
A172: SECRETARIA_DE_SERVICIOS_PUBLICOS_Y_MEDIO_AMBIENTEDIRECCION DE AGUA POTABLE, DRENAJE Y ALCANTARILLADO4Trabajos emergentes de redes hidrosanitarias | B172: SECRETARIA_DE_SERVICIOS_PUBLICOS_Y_MEDIO_AMBIENTEDIRECCION DE AGUA POTABLE, DRENAJE Y ALCANTARILLADO4 | C172: SECRETARIA_DE_SERVICIOS_PUBLICOS_Y_MEDIO_AMBIENTE | D172: DIRECCION DE AGUA POTABLE, DRENAJE Y ALCANTARILLADO | E172: =COUNTIF($D$4:D172,D172:D172) -> 4 | F172: Trabajos emergentes de redes hidrosanitarias | G172: Porcentaje de Reportes Atendidos para el Mantenimiento de Redes Hidrosanitarias | H172: Número de Reportes Atendidos | I172: 1750 | J172: 1800 | K172: ANTONIO GUADALUPE HURTADO NUÑEZ | L172: 3338370430 | M172: aghn1980@gmail.com | N172: Revisado | O172: Eficiencia / Calidad | P172: 436 | T172: =SUM(P172:S172/J172) -> 0.2422222222 | U172: En base a los reportes ciudadanos se antendieron 436, se realizaron 353 sondeos, fugas de agua, instalación de medidores y tomas de agua, 83 descargas, desazolve de registro y sondeos sanitarios, esto se realizo en las siguientes delegaciones y colonias que se mencionan: DELEGACION DE SANTA MARIA TEQUEPEXPAN: Arroyo Seco, Barrio De San Miguel, El Real, Valles Del Sur l Y ll, Lomas Del Real, Prado De Santa María, Delegación De Santa María Tequepexpan, Loma Verde, Villas De Santa María Y Las Brisas, DELEGACION DE SANTA ANITA: Misión De San Francisco, Pintores Españoles, España, Loreto, Adamas, Los Naranjos, Fracc. Ojo De Agua, Quinta Nova, Infonavit Santa Anita, El Mirador Juan Arias, La Candelaria , La Calidad, Las Varitas, Ponciano Arriaga, Residencial Santa Anita, Villas De Santa Anita, Santa Anita, El Sereno, Aurea Residencial, La Nopalera, DELEGACION CALERILLA: Calerilla, DELEGACION LAS PINTAS DE ABAJO: paseo del lago, ojo de agua, juan de la barrera y la ladrillera, DELEGACION DE TOLUQUILLA: Toluquilla, Prados de Toluquilla Y Providencia Toluquilla, DELEGACION DE SAN SEBASTIANITO: San Sebastianito, Fracc. Geovillas Los Olivos, Residencial San Sebastianito, Indígena de San Sebastianito, Riveras de San Sebastianito, Olivos II, La Cartonera, las liebres en zonas altas y La Portillo Blanco.
A173: SECRETARIA_DE_SERVICIOS_PUBLICOS_Y_MEDIO_AMBIENTEDIRECCION DE AGUA POTABLE, DRENAJE Y ALCANTARILLADO5Entrega del Vital Líquido | B173: SECRETARIA_DE_SERVICIOS_PUBLICOS_Y_MEDIO_AMBIENTEDIRECCION DE AGUA POTABLE, DRENAJE Y ALCANTARILLADO5 | C173: SECRETARIA_DE_SERVICIOS_PUBLICOS_Y_MEDIO_AMBIENTE | D173: DIRECCION DE AGUA POTABLE, DRENAJE Y ALCANTARILLADO | E173: =COUNTIF($D$4:D173,D173:D173) -> 5 | F173: Entrega del Vital Líquido | G173: Porcentaje de viajes para el suministro de agua, realizados | H173: Número de viajes realizados | I173: 12000 | J173: 14000 | K173: ANTONIO GUADALUPE HURTADO NUÑEZ | L173: 3338370430 | M173: aghn1980@gmail.com | N173: Revisado | O173: Eficiencia / Calidad | P173: 3957 | T173: =SUM(P173:S173/J173) -> 0.2826428571 | U173: Se dio el servicio de 3,957 viajes de entrega de agua potable en pipa a las siguientes colonias EL SAUZ, EL TAPATIO, SAN JUAN, EL ZALATE, BOSQUES DEL CLUB, EX HACIENDA DEL CUATRO, LA GIGANTERA (EL TAJO), FRANCISCO I MADERO, EL TEMPIZQUE, HACIENDA DE VIDRIO, LA ARENA, LOS PUESTOS, PORTILLO BLANCO, LA CALERILLA, SOLIDARIDAD, LOMAS DEL 4 Y SENTIMIENTOS DE LA NACIÓN. dio apoyo en los EDIFICIOS PUBLICOS Y COLONIAS DEL SIAPAR POR FALTA DE AGUA: EL ALAMO (TEXTILES), LOS MESEROS (JUZGADOS), CABECERA MUNICIPAL (MERCADO JUAREZ, CEMENTERIO, CABAÑAS, ARTESANOS, CENTRO CULTURAL EL REFUGIO, INSTITUTO DE LA JUVENTUD, REGULARIZACIÓN DE PREDIOS Y BAÑOS DEL PARIAN), SAN ALFONSO (SUTAJ), SAN ALFONSO, ALFREDO BARBA, LAS POMAS, LAS VARITAS, LA SOLEDAD (CENTRO DE SALUD), LOS OLIVOS, LAS BARITAS, LAS LIEBRES, SAN MARTIN ABAJO, OJO DE AGUA, LOS MESEROS (REGISTRO CIVIL), BUENOS AIRES (COMEDOR COMUNITARIO), BUENOS AIRES (TEMPLO 12 APOSTOLES), LAS JUNTAS (DELEGACIÓN), TOLUQUILLA, FRACCIONAMIENTO ARBOLEDAS, EL ROSARIO (POLITICAS PUBLICAS), CEMENTERIOS DE TOLUQUILLA Y SAN SEBASTIANITO Y EN EL INCENDIO DE LA CENTRAL NUEVA, Beneficiando a 25,164 Niñas y Niños, 18,873 Mujeres y hombres Adultos y 12,582 Mujeres y Hombres Adultos Mayores, con un Consumo de 39´570,000 litros de Agua Potable.
A174: SECRETARIA_DE_SERVICIOS_PUBLICOS_Y_MEDIO_AMBIENTEDIRECCION DE AGUA POTABLE, DRENAJE Y ALCANTARILLADO6Gestión Y Puesta En Marcha Del Laboratorio De Análisis De Agua Potable | B174: SECRETARIA_DE_SERVICIOS_PUBLICOS_Y_MEDIO_AMBIENTEDIRECCION DE AGUA POTABLE, DRENAJE Y ALCANTARILLADO6 | C174: SECRETARIA_DE_SERVICIOS_PUBLICOS_Y_MEDIO_AMBIENTE | D174: DIRECCION DE AGUA POTABLE, DRENAJE Y ALCANTARILLADO | E174: =COUNTIF($D$4:D174,D174:D174) -> 6 | F174: Gestión Y Puesta En Marcha Del Laboratorio De Análisis De Agua Potable | G174: Porcentaje de etapas de gestión para la conclusión y puesta en marcha del laboratorio de análisis del Agua Potable | H174: Número de etapas realizadas | I174: 0 | J174: 10 | K174: ANTONIO GUADALUPE HURTADO NUÑEZ | L174: 3338370430 | M174: aghn1980@gmail.com | O174: Eficiencia / Calidad | P174: 0 | T174: =SUM(P174:S174/J174) -> 0 | U174: No se obtuvo el presupuesto en este trimestre por tal motivo no se realizo ningun avance del programa, pero al inicio del año 2025 seguiremos solicitando para la ejecución de este.
A175: SECRETARIA_DE_SERVICIOS_PUBLICOS_Y_MEDIO_AMBIENTEDIRECCION DE AGUA POTABLE, DRENAJE Y ALCANTARILLADO7Estudio de Factibilidades de Redes Hidrosanitarias | B175: SECRETARIA_DE_SERVICIOS_PUBLICOS_Y_MEDIO_AMBIENTEDIRECCION DE AGUA POTABLE, DRENAJE Y ALCANTARILLADO7 | C175: SECRETARIA_DE_SERVICIOS_PUBLICOS_Y_MEDIO_AMBIENTE | D175: DIRECCION DE AGUA POTABLE, DRENAJE Y ALCANTARILLADO | E175: =COUNTIF($D$4:D175,D175:D175) -> 7 | F175: Estudio de Factibilidades de Redes Hidrosanitarias | G175: Porcentaje de etapas de gestión para obtención de factibilidades | H175: Número de etapas de gestión realizadas | I175: 0 | J175: 3 | K175: ANTONIO GUADALUPE HURTADO NUÑEZ | L175: 3338370430 | M175: aghn1980@gmail.com | O175: Eficiencia / Calidad | P175: 0 | T175: =SUM(P175:S175/J175) -> 0 | U175: En este trimestre no se realizaron supervisiones, ya que no llegaron tramites para factibilidades
A176: SECRETARIA_DE_SERVICIOS_PUBLICOS_Y_MEDIO_AMBIENTEDIRECCION DE AGUA POTABLE, DRENAJE Y ALCANTARILLADO8Estudio de Factibilidades de Redes Hidrosanitarias | B176: SECRETARIA_DE_SERVICIOS_PUBLICOS_Y_MEDIO_AMBIENTEDIRECCION DE AGUA POTABLE, DRENAJE Y ALCANTARILLADO8 | C176: SECRETARIA_DE_SERVICIOS_PUBLICOS_Y_MEDIO_AMBIENTE | D176: DIRECCION DE AGUA POTABLE, DRENAJE Y ALCANTARILLADO | E176: =COUNTIF($D$4:D176,D176:D176) -> 8 | F176: Estudio de Factibilidades de Redes Hidrosanitarias | G176: Porcentaje de Expedientes y Supervisiones de redes hidrosanitarias para factibilidades, realizadas | H176: Número de Supervisiones y Expedientes | I176: 0 | J176: 80 | K176: ANTONIO GUADALUPE HURTADO NUÑEZ | L176: 3338370430 | M176: aghn1980@gmail.com | O176: Eficiencia / Calidad | P176: 0 | T176: =SUM(P176:S176/J176) -> 0 | U176: En este trimestre no se realizaron supervisiones, ya que no llegaron tramites para factibilidades
A177: SECRETARIA_DE_SERVICIOS_PUBLICOS_Y_MEDIO_AMBIENTEDIRECCION DE AGUA POTABLE, DRENAJE Y ALCANTARILLADO9Actualización de Datos de Redes Hidrosanitarias | B177: SECRETARIA_DE_SERVICIOS_PUBLICOS_Y_MEDIO_AMBIENTEDIRECCION DE AGUA POTABLE, DRENAJE Y ALCANTARILLADO9 | C177: SECRETARIA_DE_SERVICIOS_PUBLICOS_Y_MEDIO_AMBIENTE | D177: DIRECCION DE AGUA POTABLE, DRENAJE Y ALCANTARILLADO | E177: =COUNTIF($D$4:D177,D177:D177) -> 9 | F177: Actualización de Datos de Redes Hidrosanitarias | G177: Porcentaje de etapas de gestión para el proyecto de Actualización de datos de redes hidrosanitarias | H177: Número de etapas de gestión realizadas | I177: 0 | J177: 3 | K177: ANTONIO GUADALUPE HURTADO NUÑEZ | L177: 3338370430 | M177: aghn1980@gmail.com | O177: Eficiencia / Calidad | P177: 0 | T177: =SUM(P177:S177/J177) -> 0 | U177: No se obtuvo el presupuesto en este trimestre, por tal motivo no se realizo ningun avance del programa, pero al inicio del año 2025 seguiremos solicitando para la ejecución de este.
A178: SECRETARIA_DE_SERVICIOS_PUBLICOS_Y_MEDIO_AMBIENTEDIRECCION DE AGUA POTABLE, DRENAJE Y ALCANTARILLADO10Actualización de Datos de Redes Hidrosanitarias | B178: SECRETARIA_DE_SERVICIOS_PUBLICOS_Y_MEDIO_AMBIENTEDIRECCION DE AGUA POTABLE, DRENAJE Y ALCANTARILLADO10 | C178: SECRETARIA_DE_SERVICIOS_PUBLICOS_Y_MEDIO_AMBIENTE | D178: DIRECCION DE AGUA POTABLE, DRENAJE Y ALCANTARILLADO | E178: =COUNTIF($D$4:D178,D178:D178) -> 10 | F178: Actualización de Datos de Redes Hidrosanitarias | G178: Porcentaje en la Actualización de datos de kilometros de redes hidrosanitarias | H178: Número de Kilómetros actualizados | I178: 0 | J178: 12.1 | K178: ANTONIO GUADALUPE HURTADO NUÑEZ | L178: 3338370430 | M178: aghn1980@gmail.com | O178: Eficiencia / Calidad | P178: 0 | T178: =SUM(P178:S178/J178) -> 0 | U178: No se obtuvo el presupuesto en este trimestre, por tal motivo no se realizo ningun avance del programa, pero al inicio del año 2025 seguiremos solicitando para la ejecución de este.
A179: SECRETARIA_DE_SERVICIOS_PUBLICOS_Y_MEDIO_AMBIENTEDIRECCION DE AGUA POTABLE, DRENAJE Y ALCANTARILLADO11Recepción, Distribución, Dosificación, Monitoreo de cloro residual de Agua Potable | B179: SECRETARIA_DE_SERVICIOS_PUBLICOS_Y_MEDIO_AMBIENTEDIRECCION DE AGUA POTABLE, DRENAJE Y ALCANTARILLADO11 | C179: SECRETARIA_DE_SERVICIOS_PUBLICOS_Y_MEDIO_AMBIENTE | D179: DIRECCION DE AGUA POTABLE, DRENAJE Y ALCANTARILLADO | E179: =COUNTIF($D$4:D179,D179:D179) -> 11 | F179: Recepción, Distribución, Dosificación, Monitoreo de cloro residual de Agua Potable | G179: Porcentaje de monitoreos de distribución y dosificación de cloro residual en el agua potable, realizados | H179: Número de monitoreos de cloro residual realizados | I179: 23000 | J179: 24000 | K179: ANTONIO GUADALUPE HURTADO NUÑEZ | L179: 3338370430 | M179: aghn1980@gmail.com | O179: Eficiencia / Calidad | P179: 5363 | T179: =SUM(P179:S179/J179) -> 0.2234583333 | U179: Se realizaron 5,363 monitoreos de Cloro residual, se suministraron y consumieron 14,166 Kilogramos de cloro a los pozos: 1 SANTA ANITA (5 DE MAYO Nº 357 Y MATAMOROS), 3 SANTA ANITA (C. 5 DE MAYO Nº 537 Y SAN FRANCISCO), 4 SANTA ANITA (RAMON CORONA Y CAMINO REAL A COLIMA), 5 LA CALERILLA (MIGUEL ALEMAN Y ALLENDE), 6 ARROYO SECO (CAMINO REAL A COLIMA Y ARROYO DEL SUR), 7 STA MARIA TEQUEPEXPAN (ZARAGOZA Y ARENAL), 8 STA MARIA TEQUEPEXPAN (RAMON CORONA Y ARENAL), 9 PRADOS STA MARIA (C. LOS PINOS Y SAUCES), 10 SAN SEBASTIANITO (MORELOS Y PERIFERICO SUR), 11 TOLUQUILLA (GONZALEZ GALLO Y ANTONIO BRAVO), 13 LA LADRILLERA (LOS ARCOS Y FCO VILLA), 14 M. LOPEZ COTILLA (RAMON MARTINEZ E HIDALGO), 15 JUAN DE LA BARRERA (SANTIAGO XICOTENCATL Y CHURUBUSCO), 17 LAS LIEBRES (MIGUEL HIDALGO Y AMADO NERVO), 18 HDAS LA CANDELARIA (VGEN. DE LA CANDELARIA Y VGEN. DE ZAPOPAN), 20 LOS OLIVOS (BOSQUE DE LA PRIMAVERA Y CDA FRESNOS), 21 MISION DE SAN FRANCISCO (CIRC. STA CLARA NTE. Y RAMON MARISCAL), 23 LORETO (AV. MAGALLANES Y AV. LORETO), 24 CENTRO SUR (INDEPENDENCIA Y COMONFORT), 25 PRIVADA LOS OLIVOS PROL. 8 DE JULIO Y ARROYO SECO, 26 EL SERENO (CAMINO REAL DE COLIMA Y BLV. PROL. MARIANO OTERO), 27 AMANECERES PROL. 8 DE JULIO Y ARROYO SECO, 28 SANTIBAÑEZ (LUCIO CABAÑAS Y FRANCISCO VILLA), beneficiandose a estas delegaciones y colonias las cuales se mencionan: DELEGACION DE SANTA MARIA TEQUEPEXPAN: Arroyo Seco, Barrio De San Miguel, El Real, Valles Del Sur l Y ll, Lomas Del Real, Prado De Santa María, Delegación De Santa María Tequepexpan, Loma Verde, Villas De Santa María Y Las Brisas, DELEGACION DE SANTA ANITA: Misión De San Francisco, Pintores Españoles, España, Loreto, Adamas, Los Naranjos, Fracc. Ojo De Agua, Quinta Nova, Infonavit Santa Anita, El Mirador Juan Arias, La Candelaria , La Calidad, Las Varitas, Ponciano Arriaga, Residencial Santa Anita, Villas De Santa Anita, Santa Anita, El Sereno, Aurea Residencial, La Nopalera, DELEGACION CALERILLA: Calerilla, DELEGACION LAS PINTAS DE ABAJO: paseo del lago, ojo de agua, juan de la barrera y la ladrillera, DELEGACION DE TOLUQUILLA: Toluquilla, Prados de Toluquilla Y Providencia Toluquilla, DELEGACION DE SAN SEBASTIANITO: San Sebastianito, Fracc. Geovillas Los Olivos, Residencial San Sebastianito, Indígena de San Sebastianito, Riveras de San Sebastianito, Olivos II, La Cartonera, las liebres en zonas altas y La Portillo Blanco. con un volumen de extracción de 1´312,234m3 y en alguno de estos pozos se les realizo limpieza en general y pintura en la infraestructura.
A180: SECRETARIA_DE_SERVICIOS_PUBLICOS_Y_MEDIO_AMBIENTEDIRECCION DE ALUMBRADO PUBLICO1Sustitución de luminarias a la red de alumbrado publico. | B180: SECRETARIA_DE_SERVICIOS_PUBLICOS_Y_MEDIO_AMBIENTEDIRECCION DE ALUMBRADO PUBLICO1 | C180: SECRETARIA_DE_SERVICIOS_PUBLICOS_Y_MEDIO_AMBIENTE | D180: DIRECCION DE ALUMBRADO PUBLICO | E180: =COUNTIF($D$4:D180,D180:D180) -> 1 | F180: Sustitución de luminarias a la red de alumbrado publico. | G180: Porcentaje en el seguimiento a la prestación del servicio de Alumbrado Público, mediante la susutitución de luminarias con tecnología LED | H180: Número de luminarias sustituidas en el municipio | I180: 2000 | J180: 5000 | K180: Luz Adriana Arellano Lomelí | L180: 33 38388392 | M180: alumbrado.tlq@gmail.co | T180: =SUM(P180:S180/J180) -> 0
A181: SECRETARIA_DE_SERVICIOS_PUBLICOS_Y_MEDIO_AMBIENTEDIRECCION DE ALUMBRADO PUBLICO2Mantenimiento y reparación de luminarias a la red de alumbrado publico. | B181: SECRETARIA_DE_SERVICIOS_PUBLICOS_Y_MEDIO_AMBIENTEDIRECCION DE ALUMBRADO PUBLICO2 | C181: SECRETARIA_DE_SERVICIOS_PUBLICOS_Y_MEDIO_AMBIENTE | D181: DIRECCION DE ALUMBRADO PUBLICO | E181: =COUNTIF($D$4:D181,D181:D181) -> 2 | F181: Mantenimiento y reparación de luminarias a la red de alumbrado publico. | G181: Porcentaje en el segumiento a reportes atendidos para el mantenimiento de las lumianrias | H181: Número de reportes atendidos | I181: 9000 | J181: 9000 | K181: Luz Adriana Arellano Lomelí | L181: 33 38388392 | M181: alumbrado.tlq@gmail.co | T181: =SUM(P181:S181/J181) -> 0
A182: SECRETARIA_DE_SERVICIOS_PUBLICOS_Y_MEDIO_AMBIENTEDIRECCION DE ASEO PUBLICO1Programa De Operativos De Limpieza | B182: SECRETARIA_DE_SERVICIOS_PUBLICOS_Y_MEDIO_AMBIENTEDIRECCION DE ASEO PUBLICO1 | C182: SECRETARIA_DE_SERVICIOS_PUBLICOS_Y_MEDIO_AMBIENTE | D182: DIRECCION DE ASEO PUBLICO | E182: =COUNTIF($D$4:D182,D182:D182) -> 1 | F182: Programa De Operativos De Limpieza | G182: porcentaje de operativos de limpieza, realizados | H182: número de operativos realizados | I182: 1270 | J182: 1270 | K182: Claudia Ivón Hernández Arriaga | L182: 33 36 90 04 08 | M182: cieloaseopublico@gmail.com claudiaaseopublico@gmail.com | O182: EFICIENCIA | P182: 589 | T182: =SUM(P182:S182/J182) -> 0.4637795276 | U182: En este trimestre se realizaron 589 operativos de limpieza por las calles y avenidas principales de diversas colonias de nuestro municipio, en las cuales se encuentran la Av. Lazaro Cardenas hasta Carr. a Chapala a fuera de la Expo Ganadera, Desviacion de Cantarito y Tonala hacia la Central Nueva por Carr. a Zapotlanejo, Calle Hidalgo, Zaragoza, Tonala, Leandro Valle y 16 de Septiembre en Zona Centro de Tlaquepaque, en Av. 8 de Julio de Periferico hasta Cuyucuata, Puentes peatonales de Tateposco, calle Santa Rosalia y Patria hasta carretera a Zapotlanejo, Av. Niños Heroes desde Glorieta del Alamo a Cementerio Municipal, Plaza San Pedrito ubicada en Poza Rica, Tlacotalpan, Central Nueva por carretera a Zapotlanejo hasta Atzcapozalco, Parque del Fraccionamiento Altos Sur, Av. Lázaro Cardenas desde la colonia Hacienda de Vidrio hasta Revolución, Parque lineal glorieta y Av. Patria de Loma Bonita, paradas del camión del Fracc. Revolución y Parques Colón, Lavado del Centro Histórico, Av. Delicias desde Av. Niños Heroes hasta Río Seco, Clínica 39 del IMSS, Poligono de las Preparatorias 6 de Miravalle, Regional de Santa Anita y Preparatoria 16 de San Martin de las Flores (Sendero Seguro); asi como poda. Dichos operativos estan conformados por un equipo de 4 personas
A183: SECRETARIA_DE_SERVICIOS_PUBLICOS_Y_MEDIO_AMBIENTEDIRECCION DE ASEO PUBLICO2Servicio de recolección de residuos urbanos | B183: SECRETARIA_DE_SERVICIOS_PUBLICOS_Y_MEDIO_AMBIENTEDIRECCION DE ASEO PUBLICO2 | C183: SECRETARIA_DE_SERVICIOS_PUBLICOS_Y_MEDIO_AMBIENTE | D183: DIRECCION DE ASEO PUBLICO | E183: =COUNTIF($D$4:D183,D183:D183) -> 2 | F183: Servicio de recolección de residuos urbanos | G183: Porcentaje de avance en el servicio de recolección de residuos sólidos urbanos, realizados | H183: número de servicios de recolección realizados | I183: 12740 | J183: 30624 | K183: Claudia Ivón Hernández Arriaga | L183: 33 36 90 04 08 | M183: cieloaseopublico@gmail.com claudiaaseopublico@gmail.com | O183: EFICIENCIA | P183: 7656 | T183: =SUM(P183:S183/J183) -> 0.25 | U183: optimizamos la eficacia y eficiencia en la gestión de la recolección de residuos en las 319 colonias de nuestro municipio, con 67 rutas de recolección de residuos sólidos mediante la implementación de mejores prácticas organizativas que involucran tanto área administrativa y como operativa,
A184: SECRETARIA_DE_SERVICIOS_PUBLICOS_Y_MEDIO_AMBIENTEDIRECCION DE ASEO PUBLICO3Fortalecimiento y adiestramiento al personal operativo | B184: SECRETARIA_DE_SERVICIOS_PUBLICOS_Y_MEDIO_AMBIENTEDIRECCION DE ASEO PUBLICO3 | C184: SECRETARIA_DE_SERVICIOS_PUBLICOS_Y_MEDIO_AMBIENTE | D184: DIRECCION DE ASEO PUBLICO | E184: =COUNTIF($D$4:D184,D184:D184) -> 3 | F184: Fortalecimiento y adiestramiento al personal operativo | G184: porcentaje de acciones de capacitación del personal | H184: número de acciones de capacitación realizadas | I184: 0 | J184: 4 | K184: Claudia Ivón Hernández Arriaga | L184: 33 36 90 04 08 | M184: cieloaseopublico@gmail.com claudiaaseopublico@gmail.com | N184: Revisado | O184: EFICIENCIA | P184: 0 | T184: =SUM(P184:S184/J184) -> 0 | U184: No se ha realizado la capacitación para el personal ya que se encuentran en operativos todo el tiempo.
A185: SECRETARIA_DE_SERVICIOS_PUBLICOS_Y_MEDIO_AMBIENTEDIRECCION DE ASEO PUBLICO4Plataforma de Atención Ciudadana (Reportes) | B185: SECRETARIA_DE_SERVICIOS_PUBLICOS_Y_MEDIO_AMBIENTEDIRECCION DE ASEO PUBLICO4 | C185: SECRETARIA_DE_SERVICIOS_PUBLICOS_Y_MEDIO_AMBIENTE | D185: DIRECCION DE ASEO PUBLICO | E185: =COUNTIF($D$4:D185,D185:D185) -> 4 | F185: Plataforma de Atención Ciudadana (Reportes) | G185: porcentaje de reportes atendidos dentro de las 24 horas | H185: número de reportes atendidos | I185: 0 | J185: 1550 | K185: Claudia Ivón Hernández Arriaga | L185: 33 36 90 04 08 | M185: cieloaseopublico@gmail.com claudiaaseopublico@gmail.com | N185: Revisado | O185: EFICIENCIA | P185: 1162 | T185: =SUM(P185:S185/J185) -> 0.7496774194 | U185: Recibimos 1203 reportes, de los cuales 1162 fueron resueltos en un periodo no mayor a 24 hrs., de los cuales únicamente no se resolvieron 41 que solicitaron fumigación ya que por el momento no se contaba con veneno para fumigar
A186: SECRETARIA_DE_SERVICIOS_PUBLICOS_Y_MEDIO_AMBIENTEDIRECCION DE ASEO PUBLICO5Servicio de fumigación para prevención del dengue y otras plagas | B186: SECRETARIA_DE_SERVICIOS_PUBLICOS_Y_MEDIO_AMBIENTEDIRECCION DE ASEO PUBLICO5 | C186: SECRETARIA_DE_SERVICIOS_PUBLICOS_Y_MEDIO_AMBIENTE | D186: DIRECCION DE ASEO PUBLICO | E186: =COUNTIF($D$4:D186,D186:D186) -> 5 | F186: Servicio de fumigación para prevención del dengue y otras plagas | G186: porcentaje de avance de las campañas de fumigación para la prevención del dengue y otras plagas | H186: número de descacharrizaciones realizadas | I186: 0 | J186: 4000 | K186: Claudia Ivón Hernández Arriaga | L186: 33 36 90 04 08 | M186: cieloaseopublico@gmail.com claudiaaseopublico@gmail.com | N186: Revisado | O186: EFICIENCIA | P186: 51 | T186: =SUM(P186:S186/J186) -> 0.01275 | U186: Realizamos 51 fumigaciones en escuelas, parques y calles de nuestro municipio, reduciendo la poblacion de plagas y fauna dañina en zonas reportadas por los ciudadanos
A187: SECRETARIA_DE_SERVICIOS_PUBLICOS_Y_MEDIO_AMBIENTEDIRECCION DE RASTRO1Capacitación Continua | B187: SECRETARIA_DE_SERVICIOS_PUBLICOS_Y_MEDIO_AMBIENTEDIRECCION DE RASTRO1 | C187: SECRETARIA_DE_SERVICIOS_PUBLICOS_Y_MEDIO_AMBIENTE | D187: DIRECCION DE RASTRO | E187: =COUNTIF($D$4:D187,D187:D187) -> 1 | F187: Capacitación Continua | G187: Porcentaje de capacitaciones impartidas al personal | H187: Número de capacitaciones | I187: 4 | J187: 2 | K187: Montserrat Carolina Corona Pérez | L187: 3335627069 | M187: administracion.rastro@tlaquepaque.gob.mx | N187: Revisado | T187: =SUM(P187:S187/J187) -> 0
A188: SECRETARIA_DE_SERVICIOS_PUBLICOS_Y_MEDIO_AMBIENTEDIRECCION DE RASTRO2Inspección Cárnica | B188: SECRETARIA_DE_SERVICIOS_PUBLICOS_Y_MEDIO_AMBIENTEDIRECCION DE RASTRO2 | C188: SECRETARIA_DE_SERVICIOS_PUBLICOS_Y_MEDIO_AMBIENTE | D188: DIRECCION DE RASTRO | E188: =COUNTIF($D$4:D188,D188:D188) -> 2 | F188: Inspección Cárnica | G188: Porcentaje de inspecciónes de productos cárnicos, lácteos, mariscos y embutidos a giros y tianguis, realizadas | H188: Número de inspecciones realizadas | I188: 4500 | J188: 13000 | K188: Montserrat Carolina Corona Pérez | L188: 3335627069 | M188: administracion.rastro@tlaquepaque.gob.mx | N188: Revisado | T188: =SUM(P188:S188/J188) -> 0
A189: SECRETARIA_DE_SERVICIOS_PUBLICOS_Y_MEDIO_AMBIENTEDIRECCION DE RASTRO3Participación en campañas | B189: SECRETARIA_DE_SERVICIOS_PUBLICOS_Y_MEDIO_AMBIENTEDIRECCION DE RASTRO3 | C189: SECRETARIA_DE_SERVICIOS_PUBLICOS_Y_MEDIO_AMBIENTE | D189: DIRECCION DE RASTRO | E189: =COUNTIF($D$4:D189,D189:D189) -> 3 | F189: Participación en campañas | G189: Porcentaje de Campañas para la detección de enfermedades en ganado, realizadas | H189: Número de Campañas realizadas | I189: 3 | J189: 12 | K189: Montserrat Carolina Corona Pérez | L189: 3335627069 | M189: administracion.rastro@tlaquepaque.gob.mx | N189: Revisado | T189: =SUM(P189:S189/J189) -> 0
A190: SECRETARIA_DE_SERVICIOS_PUBLICOS_Y_MEDIO_AMBIENTEDIRECCION DE SALUD AMBIENTAL Y CAMBIO CLIMATICO1Registro de ladrilleros | B190: SECRETARIA_DE_SERVICIOS_PUBLICOS_Y_MEDIO_AMBIENTEDIRECCION DE SALUD AMBIENTAL Y CAMBIO CLIMATICO1 | C190: SECRETARIA_DE_SERVICIOS_PUBLICOS_Y_MEDIO_AMBIENTE | D190: DIRECCION DE SALUD AMBIENTAL Y CAMBIO CLIMATICO | E190: =COUNTIF($D$4:D190,D190:D190) -> 1 | F190: Registro de ladrilleros | G190: Porcentaje de ladrilleras registradas. | H190: Número de ladrilleras registradas. | I190: 185 | J190: 200 | K190: Lenin Torres Mondragón | L190: 3314697407 | M190: Ltmondragon@hotmail.com | N190: Revisado | T190: =SUM(P190:S190/J190) -> 0
A191: SECRETARIA_DE_SERVICIOS_PUBLICOS_Y_MEDIO_AMBIENTEDIRECCION DE SALUD AMBIENTAL Y CAMBIO CLIMATICO2Registro de ladrilleros | B191: SECRETARIA_DE_SERVICIOS_PUBLICOS_Y_MEDIO_AMBIENTEDIRECCION DE SALUD AMBIENTAL Y CAMBIO CLIMATICO2 | C191: SECRETARIA_DE_SERVICIOS_PUBLICOS_Y_MEDIO_AMBIENTE | D191: DIRECCION DE SALUD AMBIENTAL Y CAMBIO CLIMATICO | E191: =COUNTIF($D$4:D191,D191:D191) -> 2 | F191: Registro de ladrilleros | G191: Porcentaje de ladrilleras que renuevan convenio. | H191: Número de ladrilleras con renovación | I191: 426 | J191: 450 | K191: Lenin Torres Mondragón | L191: 3314697407 | M191: Ltmondragon@hotmail.com | N191: Revisado | T191: =SUM(P191:S191/J191) -> 0
A192: SECRETARIA_DE_SERVICIOS_PUBLICOS_Y_MEDIO_AMBIENTEDIRECCION DE SALUD AMBIENTAL Y CAMBIO CLIMATICO3Registro De Fuentes Fijas Municipales | B192: SECRETARIA_DE_SERVICIOS_PUBLICOS_Y_MEDIO_AMBIENTEDIRECCION DE SALUD AMBIENTAL Y CAMBIO CLIMATICO3 | C192: SECRETARIA_DE_SERVICIOS_PUBLICOS_Y_MEDIO_AMBIENTE | D192: DIRECCION DE SALUD AMBIENTAL Y CAMBIO CLIMATICO | E192: =COUNTIF($D$4:D192,D192:D192) -> 3 | F192: Registro De Fuentes Fijas Municipales | G192: Porcentaje de avance en el registro de fuentes fijas | H192: Número de fuentes fijas registradas | I192: 14 | J192: 20 | K192: Lenin Torres Mondragón | L192: 3314697407 | M192: Ltmondragon@hotmail.com | N192: Revisado | T192: =SUM(P192:S192/J192) -> 0
A193: SECRETARIA_DE_SERVICIOS_PUBLICOS_Y_MEDIO_AMBIENTEDIRECCION DE SALUD AMBIENTAL Y CAMBIO CLIMATICO4Servicio de dictaminación ambiental | B193: SECRETARIA_DE_SERVICIOS_PUBLICOS_Y_MEDIO_AMBIENTEDIRECCION DE SALUD AMBIENTAL Y CAMBIO CLIMATICO4 | C193: SECRETARIA_DE_SERVICIOS_PUBLICOS_Y_MEDIO_AMBIENTE | D193: DIRECCION DE SALUD AMBIENTAL Y CAMBIO CLIMATICO | E193: =COUNTIF($D$4:D193,D193:D193) -> 4 | F193: Servicio de dictaminación ambiental | G193: Porcentaje de dictaminaciones ambientales evaluadas | H193: Número de dictaminaciones evaluadas | I193: 115 | J193: 130 | K193: Lenin Torres Mondragón | L193: 3314697407 | M193: Ltmondragon@hotmail.com | N193: Revisado | T193: =SUM(P193:S193/J193) -> 0
A194: SECRETARIA_DE_SERVICIOS_PUBLICOS_Y_MEDIO_AMBIENTEDIRECCION DE SALUD AMBIENTAL Y CAMBIO CLIMATICO5Denuncia Ambiental Ciudadana | B194: SECRETARIA_DE_SERVICIOS_PUBLICOS_Y_MEDIO_AMBIENTEDIRECCION DE SALUD AMBIENTAL Y CAMBIO CLIMATICO5 | C194: SECRETARIA_DE_SERVICIOS_PUBLICOS_Y_MEDIO_AMBIENTE | D194: DIRECCION DE SALUD AMBIENTAL Y CAMBIO CLIMATICO | E194: =COUNTIF($D$4:D194,D194:D194) -> 5 | F194: Denuncia Ambiental Ciudadana | G194: Porcentaje de denuncias recibidas y atendidas | H194: Número de denuncias atendidas | I194: 34 | J194: 60 | K194: Lenin Torres Mondragón | L194: 3314697407 | M194: Ltmondragon@hotmail.com | N194: Revisado | T194: =SUM(P194:S194/J194) -> 0
A195: SECRETARIA_DE_SERVICIOS_PUBLICOS_Y_MEDIO_AMBIENTEDIRECCION DE SALUD AMBIENTAL Y CAMBIO CLIMATICO6Retiro de bienes en estado de abandono en la vía pública | B195: SECRETARIA_DE_SERVICIOS_PUBLICOS_Y_MEDIO_AMBIENTEDIRECCION DE SALUD AMBIENTAL Y CAMBIO CLIMATICO6 | C195: SECRETARIA_DE_SERVICIOS_PUBLICOS_Y_MEDIO_AMBIENTE | D195: DIRECCION DE SALUD AMBIENTAL Y CAMBIO CLIMATICO | E195: =COUNTIF($D$4:D195,D195:D195) -> 6 | F195: Retiro de bienes en estado de abandono en la vía pública | G195: Porcentaje de reportes de retiro de vehiculos en vía pública atendidos | H195: Número de reportes atendidos | I195: 45 | J195: 50 | K195: Lenin Torres Mondragón | L195: 3314697407 | M195: Ltmondragon@hotmail.com | N195: Revisado | T195: =SUM(P195:S195/J195) -> 0
A196: SECRETARIA_DE_SERVICIOS_PUBLICOS_Y_MEDIO_AMBIENTESUBDIRECCION DE SERVICIOS ECOSISTEMICOS Y GESTION DEL CAMBIO CLIMATICO DE PARQUES, JARDINES Y GESTIÓN DEL CAMBIO CLIMÁTICO1Operativo Mantenimiento De Áreas Verdes | B196: SECRETARIA_DE_SERVICIOS_PUBLICOS_Y_MEDIO_AMBIENTESUBDIRECCION DE SERVICIOS ECOSISTEMICOS Y GESTION DEL CAMBIO CLIMATICO DE PARQUES, JARDINES Y GESTIÓN DEL CAMBIO CLIMÁTICO1 | C196: SECRETARIA_DE_SERVICIOS_PUBLICOS_Y_MEDIO_AMBIENTE | D196: SUBDIRECCION DE SERVICIOS ECOSISTEMICOS Y GESTION DEL CAMBIO CLIMATICO DE PARQUES, JARDINES Y GESTIÓN DEL CAMBIO CLIMÁTICO | E196: =COUNTIF($D$4:D196,D196:D196) -> 1 | F196: Operativo Mantenimiento De Áreas Verdes | G196: Porcentaje de áreas verdes pertenecientes al Municipio de San Pedro Tlaquepaque, intervenidas en mts2, con mantenimiento | H196: Número de áreas verdes intervenidas en m2 | I196: 9000000 | J196: 9500000 | K196: Maricruz Martínez Macias | L196: 3314446874 | M196: maricruzm057@gmail.com | N196: Revisado | T196: =SUM(P196:S196/J196) -> 0
A197: SECRETARIA_DE_SERVICIOS_PUBLICOS_Y_MEDIO_AMBIENTESUBDIRECCION DE SERVICIOS ECOSISTEMICOS Y GESTION DEL CAMBIO CLIMATICO DE PARQUES, JARDINES Y GESTIÓN DEL CAMBIO CLIMÁTICO2Operativo De Podas Preventivas | B197: SECRETARIA_DE_SERVICIOS_PUBLICOS_Y_MEDIO_AMBIENTESUBDIRECCION DE SERVICIOS ECOSISTEMICOS Y GESTION DEL CAMBIO CLIMATICO DE PARQUES, JARDINES Y GESTIÓN DEL CAMBIO CLIMÁTICO2 | C197: SECRETARIA_DE_SERVICIOS_PUBLICOS_Y_MEDIO_AMBIENTE | D197: SUBDIRECCION DE SERVICIOS ECOSISTEMICOS Y GESTION DEL CAMBIO CLIMATICO DE PARQUES, JARDINES Y GESTIÓN DEL CAMBIO CLIMÁTICO | E197: 2 | F197: Operativo De Podas Preventivas | G197: Porcentaje de podas en nuestras áreas municipales, realizadas | H197: Número total de podas realizadas | I197: 6000 | J197: 6000 | K197: Maricruz Martínez Macias | L197: 3314446874 | M197: maricruzm057@gmail.com | N197: Revisado | T197: =SUM(P197:S197/J197) -> 0
A198: =B198&F198 -> SECRETARIA_DE_SERVICIOS_PUBLICOS_Y_MEDIO_AMBIENTESUBDIRECCION DE SERVICIOS ECOSISTEMICOS Y GESTION DEL CAMBIO CLIMATICO DE PARQUES, JARDINES Y GESTIÓN DEL CAMBIO CLIMÁTICO3Operativo de Reforestación | B198: =C198&D198&E198 -> SECRETARIA_DE_SERVICIOS_PUBLICOS_Y_MEDIO_AMBIENTESUBDIRECCION DE SERVICIOS ECOSISTEMICOS Y GESTION DEL CAMBIO CLIMATICO DE PARQUES, JARDINES Y GESTIÓN DEL CAMBIO CLIMÁTICO3 | C198: SECRETARIA_DE_SERVICIOS_PUBLICOS_Y_MEDIO_AMBIENTE | D198: SUBDIRECCION DE SERVICIOS ECOSISTEMICOS Y GESTION DEL CAMBIO CLIMATICO DE PARQUES, JARDINES Y GESTIÓN DEL CAMBIO CLIMÁTICO | E198: 3 | F198: Operativo de Reforestación | G198: Porcentaje de árboles reforestados en áreas verdes, camellones, parques y jardines. | H198: Número de árboles reforestados | I198: 2000 | J198: 2000 | K198: Maricruz Martínez Macias | L198: 3314446874 | M198: maricruzm057@gmail.com | N198: Revisado/Agregado | T198: =SUM(P198:S198/J198) -> 0
A199: SECRETARIA_DE_SERVICIOS_PUBLICOS_Y_MEDIO_AMBIENTESUBDIRECCION DE SERVICIOS ECOSISTEMICOS Y GESTION DEL CAMBIO CLIMATICO DE PARQUES, JARDINES Y GESTIÓN DEL CAMBIO CLIMÁTICO4Trituración de material orgánico para la elaboración de composta | B199: SECRETARIA_DE_SERVICIOS_PUBLICOS_Y_MEDIO_AMBIENTESUBDIRECCION DE SERVICIOS ECOSISTEMICOS Y GESTION DEL CAMBIO CLIMATICO DE PARQUES, JARDINES Y GESTIÓN DEL CAMBIO CLIMÁTICO4 | C199: SECRETARIA_DE_SERVICIOS_PUBLICOS_Y_MEDIO_AMBIENTE | D199: SUBDIRECCION DE SERVICIOS ECOSISTEMICOS Y GESTION DEL CAMBIO CLIMATICO DE PARQUES, JARDINES Y GESTIÓN DEL CAMBIO CLIMÁTICO | E199: 4 | F199: Trituración de material orgánico para la elaboración de composta | G199: Porcentaje de viajes de ramas resultantes de podas y derribos, realizados | H199: Número de viajes realizados | I199: 900 | J199: 900 | K199: Maricruz Martínez Macias | L199: 3314446874 | M199: maricruzm057@gmail.com | N199: Revisado | T199: =SUM(P199:S199/J199) -> 0
A200: SECRETARIA_DE_SERVICIOS_PUBLICOS_Y_MEDIO_AMBIENTESUBDIRECCION DE SERVICIOS ECOSISTEMICOS Y GESTION DEL CAMBIO CLIMATICO DE PARQUES, JARDINES Y GESTIÓN DEL CAMBIO CLIMÁTICO5Adopta un árbol y dale vida al planeta | B200: SECRETARIA_DE_SERVICIOS_PUBLICOS_Y_MEDIO_AMBIENTESUBDIRECCION DE SERVICIOS ECOSISTEMICOS Y GESTION DEL CAMBIO CLIMATICO DE PARQUES, JARDINES Y GESTIÓN DEL CAMBIO CLIMÁTICO5 | C200: SECRETARIA_DE_SERVICIOS_PUBLICOS_Y_MEDIO_AMBIENTE | D200: SUBDIRECCION DE SERVICIOS ECOSISTEMICOS Y GESTION DEL CAMBIO CLIMATICO DE PARQUES, JARDINES Y GESTIÓN DEL CAMBIO CLIMÁTICO | E200: 5 | F200: Adopta un árbol y dale vida al planeta | G200: Porcentaje de árboles donados | H200: Número de árboles donados | I200: 7000 | J200: 7000 | K200: Maricruz Martínez Macias | L200: 3314446874 | M200: maricruzm057@gmail.com | N200: Revisado | T200: =SUM(P200:S200/J200) -> 0
... 153 more rows

Sheet Hoja1 (hidden)
C3: OFICIALIA_MAYOR | D3: DEPARTAMENTO DE CAPACITACION Y SERVICIO SOCIAL | E3: Capacitación en materia de Derechos Humanos | P3: OFICIALIA_MAYOR | Q3: DEPARTAMENTO DE CAPACITACION Y SERVICIO SOCIAL
C4: OFICIALIA_MAYOR | D4: DEPARTAMENTO DE CAPACITACION Y SERVICIO SOCIAL | E4: Certificación en el ECO385 | P4: OFICIALIA_MAYOR | Q4: DEPARTAMENTO DE INCIDENCIAS Y CALCULO DE NOMINA
C5: OFICIALIA_MAYOR | D5: DEPARTAMENTO DE CAPACITACION Y SERVICIO SOCIAL | E5: Desarrollo Académico Básico de las y los servidores públicos de la Secretaría de Servicios Públicos y Medio Ambiente | P5: OFICIALIA_MAYOR | Q5: DIRECCION DE DESARROLLO ORGANIZACIONAL
C6: OFICIALIA_MAYOR | D6: DEPARTAMENTO DE CAPACITACION Y SERVICIO SOCIAL | E6: Difusión de Protocolos | P6: OFICINA_DE_PRESIDENCIA | Q6: DIRECCION DE ATENCION Y VINCULACION CIUDADANA
C7: OFICIALIA_MAYOR | D7: DEPARTAMENTO DE CAPACITACION Y SERVICIO SOCIAL | E7: Fortalecimiento y Desarrollo de Habilidades Blandas y Desarrollo Humano | P7: OFICINA_DE_PRESIDENCIA | Q7: DIRECCION DE COMUNICACION ESTRATEGICA
C8: OFICIALIA_MAYOR | D8: DEPARTAMENTO DE CAPACITACION Y SERVICIO SOCIAL | E8: Fortalecimiento y Desarrollo de Habilidades Técnicas | P8: OFICINA_DE_PRESIDENCIA | Q8: SUBDIRECCION DE GESTION DE PARTICIPACION TERRITORIAL
C9: OFICIALIA_MAYOR | D9: DEPARTAMENTO DE CAPACITACION Y SERVICIO SOCIAL | E9: Promoción de estilos de vida y entornos laboral, alimentaria y físicamente saludable para el personal | P9: OFICINA_DE_PRESIDENCIA | Q9: UNIDAD DE TRANSPARENCIA
C10: OFICIALIA_MAYOR | D10: DEPARTAMENTO DE CAPACITACION Y SERVICIO SOCIAL | E10: Tlaquepaque Universitario | P10: OPD | Q10: COMUCAT
C11: OFICIALIA_MAYOR | D11: DEPARTAMENTO DE INCIDENCIAS Y CALCULO DE NOMINA | E11: Pago de Nóminas | P11: OPD | Q11: COMUDE
C12: OFICIALIA_MAYOR | D12: DIRECCION DE DESARROLLO ORGANIZACIONAL | E12: Armonización Organizativa | P12: OPD | Q12: IMJUVET
C13: OFICIALIA_MAYOR | D13: DIRECCION DE DESARROLLO ORGANIZACIONAL | E13: Elaboración de Manuales Administrativos | P13: OPD | Q13: IMMUJERES
C14: OFICINA_DE_PRESIDENCIA | D14: DIRECCION DE ATENCION Y VINCULACION CIUDADANA | E14: Atención a Reportes de Servicios Públicos, Información sobre Ayudas Sociales y Reportes en General | P14: OPD | Q14: PREMIO NACIONAL DE LA CERÁMICA
C15: OFICINA_DE_PRESIDENCIA | D15: DIRECCION DE COMUNICACION ESTRATEGICA | E15: Campañas en Redes Sociales | P15: OPD | Q15: Sistema de Desarrollo Integral de la Familia (DIF) de Tlaquepaque
C16: OFICINA_DE_PRESIDENCIA | D16: SUBDIRECCION DE GESTION DE PARTICIPACION TERRITORIAL | E16: Actualizacion de Organizaciones Vecinales | P16: SECRETARIA_DE_ADMINISTRACION_Y_FINANZAS | Q16: DEPARTAMENTO DE BIENES MUEBLES
C17: OFICINA_DE_PRESIDENCIA | D17: SUBDIRECCION DE GESTION DE PARTICIPACION TERRITORIAL | E17: Atencion y capacitacion a organizaciones vecinales en materia de participacion ciudadana | P17: SECRETARIA_DE_ADMINISTRACION_Y_FINANZAS | Q17: DEPARTAMENTO DE REDES Y TELECOMUNICACIONES
C18: OFICINA_DE_PRESIDENCIA | D18: SUBDIRECCION DE GESTION DE PARTICIPACION TERRITORIAL | E18: Socializando y perifoneando para la cuidadania | P18: SECRETARIA_DE_ADMINISTRACION_Y_FINANZAS | Q18: DEPARTAMENTO DE SERVICIOS GENERALES
C19: OFICINA_DE_PRESIDENCIA | D19: UNIDAD DE TRANSPARENCIA | E19: Programa de Transparencia y Atención de solicitudes de acceso a la información y protección de datos personales | P19: SECRETARIA_DE_ADMINISTRACION_Y_FINANZAS | Q19: DEPARTAMENTO DE SOPORTE Y MANTENIMIENTO
C20: OPD | D20: COMUCAT | E20: Atención Terapéutica | P20: SECRETARIA_DE_ADMINISTRACION_Y_FINANZAS | Q20: DEPARTAMENTO DE TALLER MUNICIPAL
C21: OPD | D21: COMUCAT | E21: Capacitaciones Preventivas en Adicciones | P21: SECRETARIA_DE_ADMINISTRACION_Y_FINANZAS | Q21: DIRECCION DE CATASTRO
C22: OPD | D22: COMUCAT | E22: Espacios COMUCAT | P22: SECRETARIA_DE_ADMINISTRACION_Y_FINANZAS | Q22: DIRECCION DE CONTABILIDAD Y GLOSA
C23: OPD | D23: COMUCAT | E23: Red de Apoyo para Establecimientos especializado en Adicciones | P23: SECRETARIA_DE_ADMINISTRACION_Y_FINANZAS | Q23: DIRECCION DE EGRESOS
C24: OPD | D24: COMUDE | E24: Administración y Gestión Institucional | P24: SECRETARIA_DE_ADMINISTRACION_Y_FINANZAS | Q24: DIRECCION DE INGRESOS
C25: OPD | D25: COMUDE | E25: Infraestructura | P25: SECRETARIA_DE_ADMINISTRACION_Y_FINANZAS | Q25: DIRECCION DE RECURSOS MATERIALES
C26: OPD | D26: COMUDE | E26: Macro Eventos | P26: SECRETARIA_DE_ADMINISTRACION_Y_FINANZAS | Q26: SUBDIRECCION DE COMPRAS Y ADQUISICIONES
C27: OPD | D27: COMUDE | E27: Tlaquepaque Acude | P27: SECRETARIA_DE_ADMINISTRACION_Y_FINANZAS | Q27: SUBDIRECCION DE CONTROL DE PAGOS
C28: OPD | D28: COMUDE | E28: Vía recreactiva metropolitana San Pedro Tlaquepaque | P28: SECRETARIA_DE_ADMINISTRACION_Y_FINANZAS | Q28: SUBDIRECCION DE PATRIMONIO
C29: OPD | D29: IMJUVET | E29: Beca Joven | P29: SECRETARIA_DE_BIENESTAR | Q29: DIRECCION DE EDUCACION
C30: OPD | D30: IMJUVET | E30: Cabildo Juvenil | P30: SECRETARIA_DE_BIENESTAR | Q30: DIRECCION DE PROGRAMAS SOCIALES PARA EL BIENESTAR
C31: OPD | D31: IMJUVET | E31: Cine en tu Barrio | P31: SECRETARIA_DE_BIENESTAR | Q31: SUBDIRECCION DE DESARROLLO Y ATENCION AL SECTOR AGROPECUARIO
C32: OPD | D32: IMJUVET | E32: Coloquios Juveniles | P32: SECRETARIA_DE_CONTRALORIA_MUNICIPAL_Y_COMBATE_A_LA_CORRUPCION | Q32: DIRECCION DE AUDITORIA A OBRA PUBLICA Y SERVICIOS
C33: OPD | D33: IMJUVET | E33: Conoce tus derechos | P33: SECRETARIA_DE_CONTRALORIA_MUNICIPAL_Y_COMBATE_A_LA_CORRUPCION | Q33: DIRECCION DE AUDITORIA GUBERNAMENTAL Y COMBATE A LA CORRUPCION
C34: OPD | D34: IMJUVET | E34: Cultiva-T | P34: SECRETARIA_DE_CONTRALORIA_MUNICIPAL_Y_COMBATE_A_LA_CORRUPCION | Q34: DIRECCION DE RESPONSABILIDADES Y EVOLUCION PATRIMONIAL
C35: OPD | D35: IMJUVET | E35: Cultura en tu escuela | P35: SECRETARIA_DE_CONTRALORIA_MUNICIPAL_Y_COMBATE_A_LA_CORRUPCION | Q35: SUBDIRECCION DE AUDITORIA FINANCIERA Y DE DESEMPEÑO
C36: OPD | D36: IMJUVET | E36: Enchula tu barrio | P36: SECRETARIA_DE_FOMENTO_ECONOMICO_Y_CULTURAL | Q36: DIRECCIÓN DE CEMENTERIOS
C37: OPD | D37: IMJUVET | E37: Festival Juventudes Tlaquepaque | P37: SECRETARIA_DE_FOMENTO_ECONOMICO_Y_CULTURAL | Q37: DIRECCION DE CULTURA
C38: OPD | D38: IMJUVET | E38: Jóvenes con arte | P38: SECRETARIA_DE_FOMENTO_ECONOMICO_Y_CULTURAL | Q38: DIRECCION DE DESARROLLO ARTESANAL Y TURISTICO
C39: OPD | D39: IMJUVET | E39: Jóvenes Con-Ciencia | P39: SECRETARIA_DE_FOMENTO_ECONOMICO_Y_CULTURAL | Q39: DIRECCION DE GESTION EMPRESARIAL E INDUSTRIAL
C40: OPD | D40: IMJUVET | E40: Juventudes a la cancha | P40: SECRETARIA_DE_FOMENTO_ECONOMICO_Y_CULTURAL | Q40: DIRECCION DEL CENTRO HISTORICO
C41: OPD | D41: IMJUVET | E41: Juventudes con historia | P41: SECRETARIA_DE_FOMENTO_ECONOMICO_Y_CULTURAL | Q41: SUBDIRECCION DE BIBLIOTECAS
C42: OPD | D42: IMJUVET | E42: Juventudes Emprendedoras | P42: SECRETARIA_DE_FOMENTO_ECONOMICO_Y_CULTURAL | Q42: SUBDIRECCION DE MUSEOS
C43: OPD | D43: IMJUVET | E43: Oportunidad joven | P43: SECRETARIA_DE_GOBERNANZA_Y_TERRITORIO | Q43: DELEGACION SAN SEBASTIANITO
C44: OPD | D44: IMJUVET | E44: Premio de las juventudes | P44: SECRETARIA_DE_GOBERNANZA_Y_TERRITORIO | Q44: DEPARTAMENTO DE ASUNTOS RELIGIOSOS
C45: OPD | D45: IMJUVET | E45: Servicio Social Integral | P45: SECRETARIA_DE_GOBERNANZA_Y_TERRITORIO | Q45: DEPARTAMENTO DE OFICINA DE PASAPORTES
C46: OPD | D46: IMJUVET | E46: Suetertón & Juguetón | P46: SECRETARIA_DE_GOBERNANZA_Y_TERRITORIO | Q46: DIRECCION DE ARCHIVO MUNICIPAL
C47: OPD | D47: IMJUVET | E47: Tlaque-Can | P47: SECRETARIA_DE_GOBERNANZA_Y_TERRITORIO | Q47: DIRECCION DE DELEGACIONES Y AGENCIAS
C48: OPD | D48: IMMUJERES | E48: Enfoque Transversal con Perspectiva de Género | P48: SECRETARIA_DE_GOBERNANZA_Y_TERRITORIO | Q48: DIRECCION DE INSPECCION Y VIGILANCIA
C49: OPD | D49: IMMUJERES | E49: Libres por la igualdad | P49: SECRETARIA_DE_GOBERNANZA_Y_TERRITORIO | Q49: DIRECCION DE PADRON Y LICENCIAS
C50: OPD | D50: IMMUJERES | E50: Vivir sin violencia | P50: SECRETARIA_DE_GOBERNANZA_Y_TERRITORIO | Q50: DIRECCION DE PADRON Y LICENCIAS 1
C51: OPD | D51: PREMIO NACIONAL DE LA CERÁMICA | E51: Premio Nacional de la Cerámica | P51: SECRETARIA_DE_GOBERNANZA_Y_TERRITORIO | Q51: SUBDIRECCION DE ATENCION E INSPECCION A TIANGUIS Y ESPACIOS ABIERTOS
C52: OPD | D52: Sistema de Desarrollo Integral de la Familia (DIF) de Tlaquepaque | E52: Albergue Vista Hermosa | P52: SECRETARIA_DE_GOBERNANZA_Y_TERRITORIO | Q52: SUBDIRECCION DE ATENCION E INSPECCION DE MERCADOS
C53: OPD | D53: Sistema de Desarrollo Integral de la Familia (DIF) de Tlaquepaque | E53: Área Alimentaria | P53: SECRETARIA_DE_GOBERNANZA_Y_TERRITORIO | Q53: SUBDIRECCION DE INSPECCION AMBIENTAL
C54: OPD | D54: Sistema de Desarrollo Integral de la Familia (DIF) de Tlaquepaque | E54: Área Médica | P54: SECRETARIA_DE_LA_CONSEJERIA_JURIDICA | Q54: DEPARTAMENTO DE RECLUTAMIENTO MILITAR
C55: OPD | D55: Sistema de Desarrollo Integral de la Familia (DIF) de Tlaquepaque | E55: Atención a la Población en Condiciones de Emergencia | P55: SECRETARIA_DE_LA_CONSEJERIA_JURIDICA | Q55: DIRECCION DE APOYO A CABILDO
C56: OPD | D56: Sistema de Desarrollo Integral de la Familia (DIF) de Tlaquepaque | E56: Atención Integral a personas a Adultos Mayores | P56: SECRETARIA_DE_LA_CONSEJERIA_JURIDICA | Q56: DIRECCION DE DERECHOS HUMANOS
C57: OPD | D57: Sistema de Desarrollo Integral de la Familia (DIF) de Tlaquepaque | E57: CDC | P57: SECRETARIA_DE_LA_CONSEJERIA_JURIDICA | Q57: DIRECCION DE MEDIACION Y JUZGADOS CIVICOS MUNICIPALES
C58: OPD | D58: Sistema de Desarrollo Integral de la Familia (DIF) de Tlaquepaque | E58: Clínica Deportiva Prevención de Adicciones | P58: SECRETARIA_DE_LA_CONSEJERIA_JURIDICA | Q58: DIRECCION DE REGISTRO CIVIL
C59: OPD | D59: Sistema de Desarrollo Integral de la Familia (DIF) de Tlaquepaque | E59: Crecer sin Violencia | P59: SECRETARIA_DE_LA_CONSEJERIA_JURIDICA | Q59: DIRECCION LEGAL-CONSULTIVA
C60: OPD | D60: Sistema de Desarrollo Integral de la Familia (DIF) de Tlaquepaque | E60: Fortalecimiento Sociofamiliar | P60: SECRETARIA_DE_LA_CONSEJERIA_JURIDICA | Q60: OFICINA DEL REGISTRO CIVIL NO. 1
C61: OPD | D61: Sistema de Desarrollo Integral de la Familia (DIF) de Tlaquepaque | E61: Inclusión y Derechos Humanos de las Personas con Discapacidad | P61: SECRETARIA_DE_LA_CONSEJERIA_JURIDICA | Q61: SECRETARIA DE LA CONSEJERIA JURIDICA
C62: OPD | D62: Sistema de Desarrollo Integral de la Familia (DIF) de Tlaquepaque | E62: Laboratorio Clínico | P62: SECRETARIA_DE_OBRAS_PUBLICAS | Q62: DIRECCION DE CONSTRUCCION Y MANTENIMIENTO
C63: OPD | D63: Sistema de Desarrollo Integral de la Familia (DIF) de Tlaquepaque | E63: Mejoramiento Educativo | P63: SECRETARIA_DE_OBRAS_PUBLICAS | Q63: DIRECCION DE PRESUPUESTOS Y CONTRATACION DE OBRA PUBLICA
C64: OPD | D64: Sistema de Desarrollo Integral de la Familia (DIF) de Tlaquepaque | E64: Por una Gestión Responsable | P64: SECRETARIA_DE_OBRAS_PUBLICAS | Q64: SUBDIRECCION DE INSPECCION DE CONTROL DE LA EDIFICACION Y ORDENAMIENTO TERRITORIAL
C65: OPD | D65: Sistema de Desarrollo Integral de la Familia (DIF) de Tlaquepaque | E65: Prevención de Embarazo Adolescente | P65: SECRETARIA_DE_OBRAS_PUBLICAS | Q65: SUBDIRECCION DE MANTENIMIENTO
C66: OPD | D66: Sistema de Desarrollo Integral de la Familia (DIF) de Tlaquepaque | E66: Prevención y Detención de abuso Sexual | P66: SECRETARIA_DE_PLANIFICACION_ANALISIS_Y_GESTION_URBANA | Q66: DEPARTAMENTO DE EVALUACION DE PROYECTOS Y PROGRAMAS
C67: OPD | D67: Sistema de Desarrollo Integral de la Familia (DIF) de Tlaquepaque | E67: Procuraduría de Protección de NNA | P67: SECRETARIA_DE_PLANIFICACION_ANALISIS_Y_GESTION_URBANA | Q67: DEPARTAMENTO DE GESTION TERRITORIAL SUELO Y VIVIENDA
C68: OPD | D68: Sistema de Desarrollo Integral de la Familia (DIF) de Tlaquepaque | E68: Programa de Atención a la Discapacidad | P68: SECRETARIA_DE_PLANIFICACION_ANALISIS_Y_GESTION_URBANA | Q68: DEPARTAMENTO DE INDICADORES Y METAS PARA RESULTADOS
C69: OPD | D69: Sistema de Desarrollo Integral de la Familia (DIF) de Tlaquepaque | E69: Protección y Atención ante casos de Violencia Familia | P69: SECRETARIA_DE_PLANIFICACION_ANALISIS_Y_GESTION_URBANA | Q69: DEPARTAMENTO DE PLANEACION URBANA
C70: OPD | D70: Sistema de Desarrollo Integral de la Familia (DIF) de Tlaquepaque | E70: Protección y Restitución de Derechos de Niñas. Niños y Adolescentes | P70: SECRETARIA_DE_PLANIFICACION_ANALISIS_Y_GESTION_URBANA | Q70: DEPARTAMENTO DEL SISTEMA DE EVALUACION DEL DESEMPEÑO
C71: OPD | D71: Sistema de Desarrollo Integral de la Familia (DIF) de Tlaquepaque | E71: Psicología | P71: SECRETARIA_DE_PLANIFICACION_ANALISIS_Y_GESTION_URBANA | Q71: DIRECCION DE GESTION DEL DESEMPEÑO, EVALUACION DE RESULTADOS Y TABLERO DE CONTROL
C72: OPD | D72: Sistema de Desarrollo Integral de la Familia (DIF) de Tlaquepaque | E72: Rehabilitación | P72: SECRETARIA_DE_PLANIFICACION_ANALISIS_Y_GESTION_URBANA | Q72: DIRECCION DE GESTION TERRITORIAL Y PLANEACION URBANA
C73: OPD | D73: Sistema de Desarrollo Integral de la Familia (DIF) de Tlaquepaque | E73: Situación de Calle | P73: SECRETARIA_DE_PLANIFICACION_ANALISIS_Y_GESTION_URBANA | Q73: DIRECCION DEL BANCO INTEGRADO DE PROYECTOS Y PROGRAMAS
C74: OPD | D74: Sistema de Desarrollo Integral de la Familia (DIF) de Tlaquepaque | E74: Talleres de Esperanza | P74: SECRETARIA_DE_PLANIFICACION_ANALISIS_Y_GESTION_URBANA | Q74: SECRETARIA DE PLANIFICACION, ANALISIS Y GESTION URBANA
C75: SECRETARIA_DE_ADMINISTRACION_Y_FINANZAS | D75: DEPARTAMENTO DE BIENES MUEBLES | E75: Actualización y control de los inventarios de los bienes muebles. | P75: SECRETARIA_DE_SALUD | Q75: DEPARTAMENTO DE TRABAJO SOCIAL
C76: SECRETARIA_DE_ADMINISTRACION_Y_FINANZAS | D76: DEPARTAMENTO DE REDES Y TELECOMUNICACIONES | E76: Instalación de Cámaras de Seguridad | P76: SECRETARIA_DE_SALUD | Q76: DIRECCION DE SALUD PUBLICA
C77: SECRETARIA_DE_ADMINISTRACION_Y_FINANZAS | D77: DEPARTAMENTO DE SERVICIOS GENERALES | E77: Recursos Humanos eficiente | P77: SECRETARIA_DE_SALUD | Q77: DIRECCION DE URGENCIAS MEDICAS
C78: SECRETARIA_DE_ADMINISTRACION_Y_FINANZAS | D78: DEPARTAMENTO DE SOPORTE Y MANTENIMIENTO | E78: Sistema de control de servicios | P78: SECRETARIA_DE_SALUD | Q78: SUBDIRECCION DE ENSEÑANZA
C79: SECRETARIA_DE_ADMINISTRACION_Y_FINANZAS | D79: DEPARTAMENTO DE TALLER MUNICIPAL | E79: Mantenimiento preventivo y correctivo del parque vehicular | P79: SECRETARIA_DE_SALUD | Q79: SUBDIRECCION DE SALUD ANIMAL
C80: SECRETARIA_DE_ADMINISTRACION_Y_FINANZAS | D80: DIRECCION DE CATASTRO | E80: Tramites y Servicios | P80: SECRETARIA_DE_SEGURIDAD_Y_PROTECCION_CIUDADANA | Q80: DEPARTAMENTO DE AREA DE PREVENCION
C81: SECRETARIA_DE_ADMINISTRACION_Y_FINANZAS | D81: DIRECCION DE CONTABILIDAD Y GLOSA | E81: Programa de elaboración y presentación de Cuentas Públicas | P81: SECRETARIA_DE_SEGURIDAD_Y_PROTECCION_CIUDADANA | Q81: DIRECCION ADMINISTRATIVA
C82: SECRETARIA_DE_ADMINISTRACION_Y_FINANZAS | D82: DIRECCION DE EGRESOS | E82: Porcentaje De Presupuesto Ejercido De Acuerdo Con Criterios De Eficiencia, Austeridad Y Ahorro | P82: SECRETARIA_DE_SEGURIDAD_Y_PROTECCION_CIUDADANA | Q82: DIRECCION DE ATENCION A LA VIOLENCIA DE GENERO
C83: SECRETARIA_DE_ADMINISTRACION_Y_FINANZAS | D83: DIRECCION DE INGRESOS | E83: Programa De Apoyo A Adultos Mayores | P83: SECRETARIA_DE_SEGURIDAD_Y_PROTECCION_CIUDADANA | Q83: DIRECCION DE BOMBEROS Y PROTECCION CIVIL
C84: SECRETARIA_DE_ADMINISTRACION_Y_FINANZAS | D84: DIRECCION DE INGRESOS | E84: Programa de Convenios | P84: SECRETARIA_DE_SEGURIDAD_Y_PROTECCION_CIUDADANA | Q84: DIRECCION OPERATIVA
C85: SECRETARIA_DE_ADMINISTRACION_Y_FINANZAS | D85: DIRECCION DE INGRESOS | E85: Programa Integral de Recaudación | P85: SECRETARIA_DE_SEGURIDAD_Y_PROTECCION_CIUDADANA | Q85: SUBDIRECCION DE GESTION GENERAL DEL RIESGO
C86: SECRETARIA_DE_ADMINISTRACION_Y_FINANZAS | D86: DIRECCION DE RECURSOS MATERIALES | E86: Administración y control de los Recursos Materiales | P86: SECRETARIA_DE_SEGURIDAD_Y_PROTECCION_CIUDADANA | Q86: SUBDIRECCION DE PLANEACION ESTRATEGICA
C87: SECRETARIA_DE_ADMINISTRACION_Y_FINANZAS | D87: SUBDIRECCION DE COMPRAS Y ADQUISICIONES | E87: Capacitación para Adquisiciones | P87: SECRETARIA_DE_SEGURIDAD_Y_PROTECCION_CIUDADANA | Q87: SUBDIRECCION DE PREVENCION AL DELITO
C88: SECRETARIA_DE_ADMINISTRACION_Y_FINANZAS | D88: SUBDIRECCION DE COMPRAS Y ADQUISICIONES | E88: Licitaciones Ejecutadas | P88: SECRETARIA_DE_SEGURIDAD_Y_PROTECCION_CIUDADANA | Q88: SUBDIRECCION DE PROFESIONALIZACION Y ACREDITACION POLICIAL
C89: SECRETARIA_DE_ADMINISTRACION_Y_FINANZAS | D89: SUBDIRECCION DE CONTROL DE PAGOS | E89: Optimizar el proceso de pagos | P89: SECRETARIA_DE_SEGURIDAD_Y_PROTECCION_CIUDADANA | Q89: SUBDIRECCION DE VIALIDAD
C90: SECRETARIA_DE_ADMINISTRACION_Y_FINANZAS | D90: SUBDIRECCION DE PATRIMONIO | E90: Administración de Bienes Inmuebles | P90: SECRETARIA_DE_SEGURIDAD_Y_PROTECCION_CIUDADANA | Q90: SUBDIRECCION DE VINCULACION CIUDADANA
C91: SECRETARIA_DE_BIENESTAR | D91: DIRECCION DE EDUCACION | E91: Abrigando Tu Bienestar | P91: SECRETARIA_DE_SEGURIDAD_Y_PROTECCION_CIUDADANA | Q91: SUBDIRECCION JURIDICA Y DE DERECHOS HUMANOS
C92: SECRETARIA_DE_BIENESTAR | D92: DIRECCION DE EDUCACION | E92: Actividades Extraescolares | P92: SECRETARIA_DE_SEGURIDAD_Y_PROTECCION_CIUDADANA | Q92: SUBDIRECCION OPERATIVA
C93: SECRETARIA_DE_BIENESTAR | D93: DIRECCION DE EDUCACION | E93: Cabildo Infantil Y Juvenil | P93: SECRETARIA_DE_SERVICIOS_PUBLICOS_Y_MEDIO_AMBIENTE | Q93: DEPARTAMENTO DE REGULACION AMBIENTAL
C94: SECRETARIA_DE_BIENESTAR | D94: DIRECCION DE EDUCACION | E94: Educación Y Capacitación Para El Medio Ambiente | P94: SECRETARIA_DE_SERVICIOS_PUBLICOS_Y_MEDIO_AMBIENTE | Q94: DIRECCION DE AGUA POTABLE, DRENAJE Y ALCANTARILLADO
C95: SECRETARIA_DE_BIENESTAR | D95: DIRECCION DE EDUCACION | E95: Feria de la oferta educativa media superior y superior | P95: SECRETARIA_DE_SERVICIOS_PUBLICOS_Y_MEDIO_AMBIENTE | Q95: DIRECCION DE ALUMBRADO PUBLICO
C96: SECRETARIA_DE_BIENESTAR | D96: DIRECCION DE PROGRAMAS SOCIALES PARA EL BIENESTAR | E96: Aprendiendo con Bienestar | P96: SECRETARIA_DE_SERVICIOS_PUBLICOS_Y_MEDIO_AMBIENTE | Q96: DIRECCION DE ASEO PUBLICO
C97: SECRETARIA_DE_BIENESTAR | D97: DIRECCION DE PROGRAMAS SOCIALES PARA EL BIENESTAR | E97: Bienestar Incluyente | P97: SECRETARIA_DE_SERVICIOS_PUBLICOS_Y_MEDIO_AMBIENTE | Q97: DIRECCION DE RASTRO
C98: SECRETARIA_DE_BIENESTAR | D98: DIRECCION DE PROGRAMAS SOCIALES PARA EL BIENESTAR | E98: Líderes de Esperanza | P98: SECRETARIA_DE_SERVICIOS_PUBLICOS_Y_MEDIO_AMBIENTE | Q98: DIRECCION DE SALUD AMBIENTAL Y CAMBIO CLIMATICO MEDIO AMBIENTE
C99: SECRETARIA_DE_BIENESTAR | D99: DIRECCION DE PROGRAMAS SOCIALES PARA EL BIENESTAR | E99: Raíces de Esperanza | P99: SECRETARIA_DE_SERVICIOS_PUBLICOS_Y_MEDIO_AMBIENTE | Q99: DIRECCION MEDIO AMBIENTE (DE SALUD AMBIENTAL Y CAMBIO CLIMATICO
C100: SECRETARIA_DE_BIENESTAR | D100: SUBDIRECCION DE DESARROLLO Y ATENCION AL SECTOR AGROPECUARIO | E100: Conservación y mejoramiento de suelos agrícolas | P100: SECRETARIA_DE_SERVICIOS_PUBLICOS_Y_MEDIO_AMBIENTE | Q100: SUBDIRECCION DE SERVICIOS ECOSISTEMICOS Y GESTION DEL CAMBIO CLIMATICO DE PARQUES, JARDINES Y GESTIÓN DEL CAMBIO CLIMÁTICO
C101: SECRETARIA_DE_BIENESTAR | D101: SUBDIRECCION DE DESARROLLO Y ATENCION AL SECTOR AGROPECUARIO | E101: Hidroponía | P101: SECRETARIA_DE_SERVICIOS_PUBLICOS_Y_MEDIO_AMBIENTE | Q101: SUBDIRECCION DE PARQUES, JARDINES Y GESTIÓN DEL CAMBIO CLIMÁTICO DE SERVICIOS ECOSISTEMICOS Y GESTION DEL CAMBIO CLIMATICO
C102: SECRETARIA_DE_BIENESTAR | D102: SUBDIRECCION DE DESARROLLO Y ATENCION AL SECTOR AGROPECUARIO | E102: Pozos de absorción Tecnificados. | P102: SINDICATURA | Q102: DEPARTAMENTO DE CONTRATOS Y CONVENIOS
C103: SECRETARIA_DE_BIENESTAR | D103: SUBDIRECCION DE DESARROLLO Y ATENCION AL SECTOR AGROPECUARIO | E103: Procesadora de composta orgánica. | P103: SINDICATURA | Q103: DEPARTAMENTO DE MEJORA REGULATORIA
C104: SECRETARIA_DE_BIENESTAR | D104: SUBDIRECCION DE DESARROLLO Y ATENCION AL SECTOR AGROPECUARIO | E104: Rehabilitación Permanente De Caminos Rurales | P104: SINDICATURA | Q104: DIRECCION JURIDICA
C105: SECRETARIA_DE_CONTRALORIA_MUNICIPAL_Y_COMBATE_A_LA_CORRUPCION | D105: DIRECCION DE AUDITORIA A OBRA PUBLICA Y SERVICIOS | E105: Análisis documental de expedientes de obras | P105: SINDICATURA | Q105: SINDICATURA
C106: SECRETARIA_DE_CONTRALORIA_MUNICIPAL_Y_COMBATE_A_LA_CORRUPCION | D106: DIRECCION DE AUDITORIA A OBRA PUBLICA Y SERVICIOS | E106: Control documental de expedientes de obras
C107: SECRETARIA_DE_CONTRALORIA_MUNICIPAL_Y_COMBATE_A_LA_CORRUPCION | D107: DIRECCION DE AUDITORIA GUBERNAMENTAL Y COMBATE A LA CORRUPCION | E107: Auditorías
C108: SECRETARIA_DE_CONTRALORIA_MUNICIPAL_Y_COMBATE_A_LA_CORRUPCION | D108: DIRECCION DE AUDITORIA GUBERNAMENTAL Y COMBATE A LA CORRUPCION | E108: Visitas de Inspección
C109: SECRETARIA_DE_CONTRALORIA_MUNICIPAL_Y_COMBATE_A_LA_CORRUPCION | D109: DIRECCION DE RESPONSABILIDADES Y EVOLUCION PATRIMONIAL | E109: Educación e Innovación Tecnológica
C110: SECRETARIA_DE_CONTRALORIA_MUNICIPAL_Y_COMBATE_A_LA_CORRUPCION | D110: SUBDIRECCION DE AUDITORIA FINANCIERA Y DE DESEMPEÑO | E110: Auditorías
C111: SECRETARIA_DE_CONTRALORIA_MUNICIPAL_Y_COMBATE_A_LA_CORRUPCION | D111: SUBDIRECCION DE AUDITORIA FINANCIERA Y DE DESEMPEÑO | E111: Procedimientos de aclaración derivados de entrega recepción
C112: SECRETARIA_DE_CONTRALORIA_MUNICIPAL_Y_COMBATE_A_LA_CORRUPCION | D112: SUBDIRECCION DE AUDITORIA FINANCIERA Y DE DESEMPEÑO | E112: Visitas de Inspección
C113: SECRETARIA_DE_FOMENTO_ECONOMICO_Y_CULTURAL | D113: DIRECCIÓN DE CEMENTERIOS | E113: Digitalización Administrativa
C114: SECRETARIA_DE_FOMENTO_ECONOMICO_Y_CULTURAL | D114: DIRECCION DE CULTURA | E114: Amigos de Refugio
C115: SECRETARIA_DE_FOMENTO_ECONOMICO_Y_CULTURAL | D115: DIRECCION DE CULTURA | E115: Cultura en tu colonia
C116: SECRETARIA_DE_FOMENTO_ECONOMICO_Y_CULTURAL | D116: DIRECCION DE CULTURA | E116: Cultura Por La Paz
C117: SECRETARIA_DE_FOMENTO_ECONOMICO_Y_CULTURAL | D117: DIRECCION DE CULTURA | E117: Ferias, Festivales Y Exposiciones
C118: SECRETARIA_DE_FOMENTO_ECONOMICO_Y_CULTURAL | D118: DIRECCION DE CULTURA | E118: Formacion Continua
C119: SECRETARIA_DE_FOMENTO_ECONOMICO_Y_CULTURAL | D119: DIRECCION DE DESARROLLO ARTESANAL Y TURISTICO | E119: Capacitación
C120: SECRETARIA_DE_FOMENTO_ECONOMICO_Y_CULTURAL | D120: DIRECCION DE DESARROLLO ARTESANAL Y TURISTICO | E120: Festivales, Eventos, Ferías y Exposiciones
C121: SECRETARIA_DE_FOMENTO_ECONOMICO_Y_CULTURAL | D121: DIRECCION DE DESARROLLO ARTESANAL Y TURISTICO | E121: Padrón Artesanal y Credencialización
C122: SECRETARIA_DE_FOMENTO_ECONOMICO_Y_CULTURAL | D122: DIRECCION DE DESARROLLO ARTESANAL Y TURISTICO | E122: Permanencia Pueblo Mágico
C123: SECRETARIA_DE_FOMENTO_ECONOMICO_Y_CULTURAL | D123: DIRECCION DE DESARROLLO ARTESANAL Y TURISTICO | E123: Rescatando nuestras Tradiciones
C124: SECRETARIA_DE_FOMENTO_ECONOMICO_Y_CULTURAL | D124: DIRECCION DE GESTION EMPRESARIAL E INDUSTRIAL | E124: Capacitación Permanente Empresarial, Cooperativas bienes y/o Servicios y Talleres Autoempleo
C125: SECRETARIA_DE_FOMENTO_ECONOMICO_Y_CULTURAL | D125: DIRECCION DE GESTION EMPRESARIAL E INDUSTRIAL | E125: Empleo a Tu Alcance
C126: SECRETARIA_DE_FOMENTO_ECONOMICO_Y_CULTURAL | D126: DIRECCION DE GESTION EMPRESARIAL E INDUSTRIAL | E126: Expo Emprende y Transforma 2025
C127: SECRETARIA_DE_FOMENTO_ECONOMICO_Y_CULTURAL | D127: DIRECCION DE GESTION EMPRESARIAL E INDUSTRIAL | E127: Mujeres Empresarias en Tlaquepaque
C128: SECRETARIA_DE_FOMENTO_ECONOMICO_Y_CULTURAL | D128: DIRECCION DE GESTION EMPRESARIAL E INDUSTRIAL | E128: Vinculación directa con empresas
C129: SECRETARIA_DE_FOMENTO_ECONOMICO_Y_CULTURAL | D129: DIRECCION DEL CENTRO HISTORICO | E129: Agenda del Espacio Público
C130: SECRETARIA_DE_FOMENTO_ECONOMICO_Y_CULTURAL | D130: DIRECCION DEL CENTRO HISTORICO | E130: Mantenimiento y Conservación del Centro Histórico
C131: SECRETARIA_DE_FOMENTO_ECONOMICO_Y_CULTURAL | D131: SUBDIRECCION DE BIBLIOTECAS | E131: Talleres De Fomento A Cultura
C132: SECRETARIA_DE_FOMENTO_ECONOMICO_Y_CULTURAL | D132: SUBDIRECCION DE MUSEOS | E132: Exposiciones Temporales
C133: SECRETARIA_DE_FOMENTO_ECONOMICO_Y_CULTURAL | D133: SUBDIRECCION DE MUSEOS | E133: Museo Itinerante
C134: SECRETARIA_DE_FOMENTO_ECONOMICO_Y_CULTURAL | D134: SUBDIRECCION DE MUSEOS | E134: Museos a la Calle
C135: SECRETARIA_DE_FOMENTO_ECONOMICO_Y_CULTURAL | D135: SUBDIRECCION DE MUSEOS | E135: Xvlvii Premio Nacional De La Cerámica
C136: SECRETARIA_DE_GOBERNANZA_Y_TERRITORIO | D136: DELEGACION SAN SEBASTIANITO | E136: VISITAS A COLONIAS
C137: SECRETARIA_DE_GOBERNANZA_Y_TERRITORIO | D137: DEPARTAMENTO DE ASUNTOS RELIGIOSOS | E137: Servicio de atención a las necesidades de las distintas asociaciones religiosas del municipio
C138: SECRETARIA_DE_GOBERNANZA_Y_TERRITORIO | D138: DEPARTAMENTO DE OFICINA DE PASAPORTES | E138: Trámite de Pasaporte Mexicano en Oficinas de Enlace de Tlaquepaque
C139: SECRETARIA_DE_GOBERNANZA_Y_TERRITORIO | D139: DIRECCION DE ARCHIVO MUNICIPAL | E139: Campaña de divulgación cultural histórica del Archivo Muicipal a escuelas de educación básica en Tlaquepaque
C140: SECRETARIA_DE_GOBERNANZA_Y_TERRITORIO | D140: DIRECCION DE ARCHIVO MUNICIPAL | E140: Programa de capacitación para la clasificación, organización, transferencia, resguardo y consulta de información oficial
C141: SECRETARIA_DE_GOBERNANZA_Y_TERRITORIO | D141: DIRECCION DE ARCHIVO MUNICIPAL | E141: Proyecto de digitalización para el Archivo Municipal
C142: SECRETARIA_DE_GOBERNANZA_Y_TERRITORIO | D142: DIRECCION DE DELEGACIONES Y AGENCIAS | E142: Actividades Administrativas
C143: SECRETARIA_DE_GOBERNANZA_Y_TERRITORIO | D143: DIRECCION DE DELEGACIONES Y AGENCIAS | E143: Atención a Solicitudes Ciudadanas
C144: SECRETARIA_DE_GOBERNANZA_Y_TERRITORIO | D144: DIRECCION DE DELEGACIONES Y AGENCIAS | E144: Brigadas de Mantenimiento y Recuperación de Espacios Públicos
C145: SECRETARIA_DE_GOBERNANZA_Y_TERRITORIO | D145: DIRECCION DE DELEGACIONES Y AGENCIAS | E145: Festividades Tradicionales Cívicas
C146: SECRETARIA_DE_GOBERNANZA_Y_TERRITORIO | D146: DIRECCION DE INSPECCION Y VIGILANCIA | E146: Verificación De Giros Comerciales Rezagados En El Municipio De San Pedro Tlaquepaque
C147: SECRETARIA_DE_GOBERNANZA_Y_TERRITORIO | D147: DIRECCION DE PADRON Y LICENCIAS | E147: Servicio eficaz de trámite de licencias municipal presencial y en línea
C148: SECRETARIA_DE_GOBERNANZA_Y_TERRITORIO | D148: DIRECCION DE PADRON Y LICENCIAS 1 | E148: Regularizacion de licencias en base a la ley de hacienda
C149: SECRETARIA_DE_GOBERNANZA_Y_TERRITORIO | D149: SUBDIRECCION DE ATENCION E INSPECCION A TIANGUIS Y ESPACIOS ABIERTOS | E149: Actualizar los padrones de los comerciantes de tianguis
C150: SECRETARIA_DE_GOBERNANZA_Y_TERRITORIO | D150: SUBDIRECCION DE ATENCION E INSPECCION A TIANGUIS Y ESPACIOS ABIERTOS | E150: Regularizar comercio en espacio abierto en la colonia San Martín de las Flores
C151: SECRETARIA_DE_GOBERNANZA_Y_TERRITORIO | D151: SUBDIRECCION DE ATENCION E INSPECCION DE MERCADOS | E151: Recuperación de locales abandonados en merados municipales
C152: SECRETARIA_DE_GOBERNANZA_Y_TERRITORIO | D152: SUBDIRECCION DE INSPECCION AMBIENTAL | E152: Verificación y regularización de residuos peligrosos y emisiones en talleres de laminado y pintura
C153: SECRETARIA_DE_LA_CONSEJERIA_JURIDICA | D153: DEPARTAMENTO DE RECLUTAMIENTO MILITAR | E153: Cartillas Militares
C154: SECRETARIA_DE_LA_CONSEJERIA_JURIDICA | D154: DIRECCION DE APOYO A CABILDO | E154: Apoyo Asuntos derivados por Secretaría
C155: SECRETARIA_DE_LA_CONSEJERIA_JURIDICA | D155: DIRECCION DE APOYO A CABILDO | E155: Consolidar El Sistema De Información De Acuerdos Del Pleno
C156: SECRETARIA_DE_LA_CONSEJERIA_JURIDICA | D156: DIRECCION DE APOYO A CABILDO | E156: Integración, Dictaminación de Iniciativas
C157: SECRETARIA_DE_LA_CONSEJERIA_JURIDICA | D157: DIRECCION DE APOYO A CABILDO | E157: Participación En Sesiones Del Ayuntamiento
C158: SECRETARIA_DE_LA_CONSEJERIA_JURIDICA | D158: DIRECCION DE APOYO A CABILDO | E158: Sitio Web de Actas y Acuerdos
C159: SECRETARIA_DE_LA_CONSEJERIA_JURIDICA | D159: DIRECCION DE DERECHOS HUMANOS | E159: Atención a los grupos vulnerables.
C160: SECRETARIA_DE_LA_CONSEJERIA_JURIDICA | D160: DIRECCION DE MEDIACION Y JUZGADOS CIVICOS MUNICIPALES | E160: Atención y desahogo de los MASC
C161: SECRETARIA_DE_LA_CONSEJERIA_JURIDICA | D161: DIRECCION DE MEDIACION Y JUZGADOS CIVICOS MUNICIPALES | E161: Calificación de Actas de Infracción
C162: SECRETARIA_DE_LA_CONSEJERIA_JURIDICA | D162: DIRECCION DE MEDIACION Y JUZGADOS CIVICOS MUNICIPALES | E162: Difusión de la Cultura de Paz en conflictos comunitarios
C163: SECRETARIA_DE_LA_CONSEJERIA_JURIDICA | D163: DIRECCION DE MEDIACION Y JUZGADOS CIVICOS MUNICIPALES | E163: La Mediación Con Rumbo A Tu Colonia
C164: SECRETARIA_DE_LA_CONSEJERIA_JURIDICA | D164: DIRECCION DE MEDIACION Y JUZGADOS CIVICOS MUNICIPALES | E164: Orientación y Asesoría Jurídica
C165: SECRETARIA_DE_LA_CONSEJERIA_JURIDICA | D165: DIRECCION DE MEDIACION Y JUZGADOS CIVICOS MUNICIPALES | E165: Servicio de trabajo social y psicología a Juzgados Cívicos Municipales
C166: SECRETARIA_DE_LA_CONSEJERIA_JURIDICA | D166: DIRECCION DE REGISTRO CIVIL | E166: Celebración de Matrimonios en Lugares emblemáticos
C167: SECRETARIA_DE_LA_CONSEJERIA_JURIDICA | D167: DIRECCION LEGAL-CONSULTIVA | E167: Consultas Y Asesoría Jurídica
C168: SECRETARIA_DE_LA_CONSEJERIA_JURIDICA | D168: DIRECCION LEGAL-CONSULTIVA | E168: Opiniones Jurídicas
C169: SECRETARIA_DE_LA_CONSEJERIA_JURIDICA | D169: OFICINA DEL REGISTRO CIVIL NO. 1 | E169: Campaña de Integración Familiar 2025
C170: SECRETARIA_DE_LA_CONSEJERIA_JURIDICA | D170: SECRETARIA DE LA CONSEJERIA JURIDICA | E170: Atención Y Orientación Jurídica A La Ciudadanía
C171: SECRETARIA_DE_LA_CONSEJERIA_JURIDICA | D171: SECRETARIA DE LA CONSEJERIA JURIDICA | E171: Capacitación Jurídica Al Gobierno Municipal
C172: SECRETARIA_DE_LA_CONSEJERIA_JURIDICA | D172: SECRETARIA DE LA CONSEJERIA JURIDICA | E172: Participación Comisiones, Comités Y Grupos De Trabajo
C173: SECRETARIA_DE_LA_CONSEJERIA_JURIDICA | D173: SECRETARIA DE LA CONSEJERIA JURIDICA | E173: Revisión Documentos Para Firma Presidenta
C174: SECRETARIA_DE_OBRAS_PUBLICAS | D174: DIRECCION DE CONSTRUCCION Y MANTENIMIENTO | E174: Programa De Urbanización
C175: SECRETARIA_DE_OBRAS_PUBLICAS | D175: DIRECCION DE PRESUPUESTOS Y CONTRATACION DE OBRA PUBLICA | E175: Programa Fortalecimiento institucional financiero y operativo, para la provisión de los servicios públicos municipales bajo criterios de calidad, eficiencia y oportunidad.
C176: SECRETARIA_DE_OBRAS_PUBLICAS | D176: DIRECCION DE PRESUPUESTOS Y CONTRATACION DE OBRA PUBLICA | E176: Programa para la gestión sustentable de la infraestructura básica.
C177: SECRETARIA_DE_OBRAS_PUBLICAS | D177: DIRECCION DE PRESUPUESTOS Y CONTRATACION DE OBRA PUBLICA | E177: Programa para la gestión sustentable de la infraestructura y movilidad segura.
C178: SECRETARIA_DE_OBRAS_PUBLICAS | D178: DIRECCION DE PRESUPUESTOS Y CONTRATACION DE OBRA PUBLICA | E178: Programa para la recuperación del espacio público y regeneración del tejido social
C179: SECRETARIA_DE_OBRAS_PUBLICAS | D179: SUBDIRECCION DE INSPECCION DE CONTROL DE LA EDIFICACION Y ORDENAMIENTO TERRITORIAL | E179: Programa de Inspección y Vigilancia de Tramites y Licencias de Construcción.
C180: SECRETARIA_DE_OBRAS_PUBLICAS | D180: SUBDIRECCION DE INSPECCION DE CONTROL DE LA EDIFICACION Y ORDENAMIENTO TERRITORIAL | E180: Trámites y Servicios
C181: SECRETARIA_DE_OBRAS_PUBLICAS | D181: SUBDIRECCION DE MANTENIMIENTO | E181: Intervenciones Al Entorno Urbano
C182: SECRETARIA_DE_OBRAS_PUBLICAS | D182: SUBDIRECCION DE MANTENIMIENTO | E182: Mantenimiento a Edificios y Espacios Públicos
C183: SECRETARIA_DE_OBRAS_PUBLICAS | D183: SUBDIRECCION DE MANTENIMIENTO | E183: Mantenimiento A Escuelas
C184: SECRETARIA_DE_OBRAS_PUBLICAS | D184: SUBDIRECCION DE MANTENIMIENTO | E184: Programa Permanente De Mantenimiento De Vialidades
C185: SECRETARIA_DE_OBRAS_PUBLICAS | D185: SUBDIRECCION DE MANTENIMIENTO | E185: Señalización Horizontal y Vertical
C186: SECRETARIA_DE_PLANIFICACION_ANALISIS_Y_GESTION_URBANA | D186: DEPARTAMENTO DE EVALUACION DE PROYECTOS Y PROGRAMAS | E186: Dictamen de evaluación de solicitud de obras
C187: SECRETARIA_DE_PLANIFICACION_ANALISIS_Y_GESTION_URBANA | D187: DEPARTAMENTO DE GESTION TERRITORIAL SUELO Y VIVIENDA | E187: Mejoramiento de la atencion al publico asi como fiscalización de la Auditoria Superior del Estado
C188: SECRETARIA_DE_PLANIFICACION_ANALISIS_Y_GESTION_URBANA | D188: DEPARTAMENTO DE INDICADORES Y METAS PARA RESULTADOS | E188: Servicio de Acompañamiento para la gestión del sistema de Planeación Municipal
C189: SECRETARIA_DE_PLANIFICACION_ANALISIS_Y_GESTION_URBANA | D189: DEPARTAMENTO DE PLANEACION URBANA | E189: Planes parciales y reglamentos municipales actualizados
C190: SECRETARIA_DE_PLANIFICACION_ANALISIS_Y_GESTION_URBANA | D190: DEPARTAMENTO DEL SISTEMA DE EVALUACION DEL DESEMPEÑO | E190: Seguimiento y Evaluación a la Administración Pública Municipal
C191: SECRETARIA_DE_PLANIFICACION_ANALISIS_Y_GESTION_URBANA | D191: DEPARTAMENTO DEL SISTEMA DE EVALUACION DEL DESEMPEÑO | E191: Seguimiento y Evaluación a los Programas Sociales
C192: SECRETARIA_DE_PLANIFICACION_ANALISIS_Y_GESTION_URBANA | D192: DIRECCION DE GESTION DEL DESEMPEÑO, EVALUACION DE RESULTADOS Y TABLERO DE CONTROL | E192: Coordinación de actividades de los departamentos de la Dirección de Desempeño, Resultados y Tablero de Control
C193: SECRETARIA_DE_PLANIFICACION_ANALISIS_Y_GESTION_URBANA | D193: DIRECCION DE GESTION DEL DESEMPEÑO, EVALUACION DE RESULTADOS Y TABLERO DE CONTROL | E193: Gestión para el sistema integral para la planeación y evaluación de la auditoria publica municipal
C194: SECRETARIA_DE_PLANIFICACION_ANALISIS_Y_GESTION_URBANA | D194: DIRECCION DE GESTION DEL DESEMPEÑO, EVALUACION DE RESULTADOS Y TABLERO DE CONTROL | E194: Seguimiento y Evaluación a los Fondos de Origen Federal
C195: SECRETARIA_DE_PLANIFICACION_ANALISIS_Y_GESTION_URBANA | D195: DIRECCION DE GESTION TERRITORIAL Y PLANEACION URBANA | E195: Regularización de predios efectiva
C196: SECRETARIA_DE_PLANIFICACION_ANALISIS_Y_GESTION_URBANA | D196: DIRECCION DEL BANCO INTEGRADO DE PROYECTOS Y PROGRAMAS | E196: Banco integrado de proyectos y programas
C197: SECRETARIA_DE_PLANIFICACION_ANALISIS_Y_GESTION_URBANA | D197: DIRECCION DEL BANCO INTEGRADO DE PROYECTOS Y PROGRAMAS | E197: Seguimiento de Mesas de gestión Metropolitana ante el IMEPLAN
C198: SECRETARIA_DE_PLANIFICACION_ANALISIS_Y_GESTION_URBANA | D198: SECRETARIA DE PLANIFICACION, ANALISIS Y GESTION URBANA | E198: Coordinación de actividades de las direcciones que integran la Secretaría de Planificación, Análisis y Gestión Urbana
C199: SECRETARIA_DE_SALUD | D199: DEPARTAMENTO DE TRABAJO SOCIAL | E199: Vinculación De Asistencia Social
C200: SECRETARIA_DE_SALUD | D200: DIRECCION DE SALUD PUBLICA | E200: Ferias de la Salud Tlaquepaque
C201: SECRETARIA_DE_SALUD | D201: DIRECCION DE URGENCIAS MEDICAS | E201: Atención Urgente En Sala De Choque
C202: SECRETARIA_DE_SALUD | D202: SUBDIRECCION DE ENSEÑANZA | E202: Enseñanza Continua
... 70 more rows
